{"text_format":"1","workbook":"xlsx","n_sheets":15,"sheets":["Portada","Entrada","Criterio1","Criterio2","Criterio3","Criterio4","Criterio5","Criterio6","Criterio7","Criterio8","Criterio9","Criterio10","Criterios","Resultados","Matriz"],"not_rendered":{"charts":1,"images":7,"macros":1,"external_links":0,"defined_names":0,"comments":0,"pivot_tables":0},"unopened":[],"bounds":{"document_bytes":16777216,"sheet_cells":100000,"rows_first":2000,"rows_last":500,"rows_between":2000,"halvings":0,"cell_chars":16384,"cell_head_chars":4096},"cells_cut":0,"cells_raw":0,"read":"whole","date_system":"1900"}

{"sheet":"Portada","index":0,"n_rows":28,"n_cols":13,"rows_kept":28,"cut":false,"hidden":false,"merged":[[20,3,21,15]]}
[]
[]
[]
[]
[]
[]
[]
[]
[]
[]
[]
[]
[]
[]
[]
[]
[]
[]
[]
[]
[null,null,null,"Proceso Jerárquico Analítico\nSelección de una Modalidad de Contratación"]
[]
[]
[]
[]
[]
[]
[null,null,null,null,null,null,null,null,null,null,null,null,"Preparado por: "]

{"sheet":"Entrada","index":1,"n_rows":487,"n_cols":213,"rows_kept":487,"cut":false,"hidden":false,"merged":[[9,2,9,16],[1,4,1,16],[7,4,7,16],[3,2,3,16],[4,2,4,16],[5,2,5,16],[17,2,17,16],[18,2,18,16],[10,2,10,16],[11,2,11,16],[12,2,12,16],[13,2,13,16],[14,2,14,16],[15,2,15,16],[16,2,16,16]]}
[]
[null,null,3,null,"Alternativas"]
[]
[null,"A1","Obra Pública Tradicional (OPT)"]
[null,"A2","OPT (Etapa de Construcción) + APP (Etapa de Operación y Mantenimiento)"]
[null,"A3","Asociación Pública-Privada (APP)"]
[]
[null,null,null,null,"Criterios"]
[]
[null,null,null,null,null,null,null,null,null,null,null,null,null,null,null,null,null,null,null,null,null,null,null,null,null,null,null,null,null,null,null,null,null,null,null,null,null,null,null,null,null,null,null,null,null,null,null,null,null,null,null,null,null,null,null,null,null,null,null,null,null,null,null,null,null,null,null,null,null,null,null,null,null,null,null,null,null,null,null,null,null,null,null,null,null,null,null,null,null,null,null,null,null,null,null,null,null,null,null,null,null,null,null,null,null,null,null,null,null,null,null,null,null,null,null,null,null,null,null,null,null,null,null,null,null,null,null,null,null,null,null,null,null,null,null,null,null,null,null,null,null,null,null,null,null,null,null,null,null,null,null,null,null,null,null,null,null,null,null,null,null,null,null,null,null,null,null,null,null,null,null,null,null,null,null,null,null,null,null,null,null,null,null,null,null,null,null,null,null,null,null,null,null,null,null,null,null,null,null,null,null,null,null,null,null,null,null,null,null,null,null,null,2]
[null,null,null,null,null,null,null,null,null,null,null,null,null,null,null,null,null,null,null,null,null,null,null,null,null,null,null,null,null,null,null,null,null,null,null,null,null,null,null,null,null,null,null,null,null,null,null,null,null,null,null,null,null,null,null,null,null,null,null,null,null,null,null,null,null,null,null,null,null,null,null,null,null,null,null,null,null,null,null,null,null,null,null,null,null,null,null,null,null,null,null,null,null,null,null,null,null,null,null,null,null,null,null,null,null,null,null,null,null,null,null,null,null,null,null,null,null,null,null,null,null,null,null,null,null,null,null,null,null,null,null,null,null,null,null,null,null,null,null,null,null,null,null,null,null,null,null,null,null,null,null,null,null,null,null,null,null,null,null,null,null,null,null,null,null,null,null,null,null,null,null,null,null,null,null,null,null,null,null,null,null,null,null,null,null,null,null,null,null,null,null,null,null,null,null,null,null,null,null,null,null,null,null,null,null,null,null,null,null,null,null,null,2]
[]
[]
[]
[]
[]
[]
[]
[]
[]
[]
[]
[]
[]
[]
[]
[]
[]
[]
[]
[]
[]
[]
[]
[]
[]
[]
[]
[]
[]
[]
[]
[]
[]
[]
[]
[]
[]
[]
[]
[]
[]
[]
[]
[]
[]
[]
[]
[]
[]
[]
[]
[]
[]
[]
[]
[]
[]
[]
[]
[]
[]
[]
[]
[]
[]
[]
[]
[null,"CAMPO NO HABILITADO","CAMPO NO HABILITADO","CAMPO NO HABILITADO","CAMPO NO HABILITADO","CAMPO NO HABILITADO","CAMPO NO HABILITADO","CAMPO NO HABILITADO","CAMPO NO HABILITADO","CAMPO NO HABILITADO","CAMPO NO HABILITADO","CAMPO NO HABILITADO","CAMPO NO HABILITADO",null,"CAMPO NO HABILITADO","CAMPO NO HABILITADO","CAMPO NO HABILITADO","CAMPO NO HABILITADO","CAMPO NO HABILITADO","CAMPO NO HABILITADO","CAMPO NO HABILITADO","CAMPO NO HABILITADO","CAMPO NO HABILITADO","CAMPO NO HABILITADO","CAMPO NO HABILITADO","CAMPO NO HABILITADO"]
[null,"CAMPO NO HABILITADO","CAMPO NO HABILITADO","CAMPO NO HABILITADO","CAMPO NO HABILITADO","CAMPO NO HABILITADO","CAMPO NO HABILITADO","CAMPO NO HABILITADO","CAMPO NO HABILITADO","CAMPO NO HABILITADO","CAMPO NO HABILITADO","CAMPO NO HABILITADO","CAMPO NO HABILITADO",null,"CAMPO NO HABILITADO","CAMPO NO HABILITADO","CAMPO NO HABILITADO","CAMPO NO HABILITADO","CAMPO NO HABILITADO","CAMPO NO HABILITADO","CAMPO NO HABILITADO","CAMPO NO HABILITADO","CAMPO NO HABILITADO","CAMPO NO HABILITADO","CAMPO NO HABILITADO","CAMPO NO HABILITADO"]
[]
[]
[]
[]
[]
[]
[]
[]
[]
[null,"CAMPO NO HABILITADO","CAMPO NO HABILITADO","CAMPO NO HABILITADO","CAMPO NO HABILITADO","CAMPO NO HABILITADO","CAMPO NO HABILITADO","CAMPO NO HABILITADO","CAMPO NO HABILITADO","CAMPO NO HABILITADO","CAMPO NO HABILITADO","CAMPO NO HABILITADO","CAMPO NO HABILITADO",null,"CAMPO NO HABILITADO","CAMPO NO HABILITADO","CAMPO NO HABILITADO","CAMPO NO HABILITADO","CAMPO NO HABILITADO","CAMPO NO HABILITADO","CAMPO NO HABILITADO","CAMPO NO HABILITADO","CAMPO NO HABILITADO","CAMPO NO HABILITADO","CAMPO NO HABILITADO","CAMPO NO HABILITADO"]
[null,"CAMPO NO HABILITADO","CAMPO NO HABILITADO","CAMPO NO HABILITADO","CAMPO NO HABILITADO","CAMPO NO HABILITADO","CAMPO NO HABILITADO","CAMPO NO HABILITADO","CAMPO NO HABILITADO","CAMPO NO HABILITADO","CAMPO NO HABILITADO","CAMPO NO HABILITADO","CAMPO NO HABILITADO",null,"CAMPO NO HABILITADO","CAMPO NO HABILITADO","CAMPO NO HABILITADO","CAMPO NO HABILITADO","CAMPO NO HABILITADO","CAMPO NO HABILITADO","CAMPO NO HABILITADO","CAMPO NO HABILITADO","CAMPO NO HABILITADO","CAMPO NO HABILITADO","CAMPO NO HABILITADO","CAMPO NO HABILITADO"]
[]
[]
[]
[]
[]
[]
[]
[]
[]
[null,"CAMPO NO HABILITADO","CAMPO NO HABILITADO","CAMPO NO HABILITADO","CAMPO NO HABILITADO","CAMPO NO HABILITADO","CAMPO NO HABILITADO","CAMPO NO HABILITADO","CAMPO NO HABILITADO","CAMPO NO HABILITADO","CAMPO NO HABILITADO","CAMPO NO HABILITADO","CAMPO NO HABILITADO",null,"CAMPO NO HABILITADO","CAMPO NO HABILITADO","CAMPO NO HABILITADO","CAMPO NO HABILITADO","CAMPO NO HABILITADO","CAMPO NO HABILITADO","CAMPO NO HABILITADO","CAMPO NO HABILITADO","CAMPO NO HABILITADO","CAMPO NO HABILITADO","CAMPO NO HABILITADO","CAMPO NO HABILITADO"]
[null,"CAMPO NO HABILITADO","CAMPO NO HABILITADO","CAMPO NO HABILITADO","CAMPO NO HABILITADO","CAMPO NO HABILITADO","CAMPO NO HABILITADO","CAMPO NO HABILITADO","CAMPO NO HABILITADO","CAMPO NO HABILITADO","CAMPO NO HABILITADO","CAMPO NO HABILITADO","CAMPO NO HABILITADO",null,"CAMPO NO HABILITADO","CAMPO NO HABILITADO","CAMPO NO HABILITADO","CAMPO NO HABILITADO","CAMPO NO HABILITADO","CAMPO NO HABILITADO","CAMPO NO HABILITADO","CAMPO NO HABILITADO","CAMPO NO HABILITADO","CAMPO NO HABILITADO","CAMPO NO HABILITADO","CAMPO NO HABILITADO"]
[]
[]
[]
[]
[]
[]
[]
[]
[]
[null,"CAMPO NO HABILITADO","CAMPO NO HABILITADO","CAMPO NO HABILITADO","CAMPO NO HABILITADO","CAMPO NO HABILITADO","CAMPO NO HABILITADO","CAMPO NO HABILITADO","CAMPO NO HABILITADO","CAMPO NO HABILITADO","CAMPO NO HABILITADO","CAMPO NO HABILITADO","CAMPO NO HABILITADO",null,"CAMPO NO HABILITADO","CAMPO NO HABILITADO","CAMPO NO HABILITADO","CAMPO NO HABILITADO","CAMPO NO HABILITADO","CAMPO NO HABILITADO","CAMPO NO HABILITADO","CAMPO NO HABILITADO","CAMPO NO HABILITADO","CAMPO NO HABILITADO","CAMPO NO HABILITADO","CAMPO NO HABILITADO"]
[null,"CAMPO NO HABILITADO","CAMPO NO HABILITADO","CAMPO NO HABILITADO","CAMPO NO HABILITADO","CAMPO NO HABILITADO","CAMPO NO HABILITADO","CAMPO NO HABILITADO","CAMPO NO HABILITADO","CAMPO NO HABILITADO","CAMPO NO HABILITADO","CAMPO NO HABILITADO","CAMPO NO HABILITADO",null,"CAMPO NO HABILITADO","CAMPO NO HABILITADO","CAMPO NO HABILITADO","CAMPO NO HABILITADO","CAMPO NO HABILITADO","CAMPO NO HABILITADO","CAMPO NO HABILITADO","CAMPO NO HABILITADO","CAMPO NO HABILITADO","CAMPO NO HABILITADO","CAMPO NO HABILITADO","CAMPO NO HABILITADO"]
[]
[]
[]
[]
[]
[]
[]
[]
[]
[null,"CAMPO NO HABILITADO","CAMPO NO HABILITADO","CAMPO NO HABILITADO","CAMPO NO HABILITADO","CAMPO NO HABILITADO","CAMPO NO HABILITADO","CAMPO NO HABILITADO","CAMPO NO HABILITADO","CAMPO NO HABILITADO","CAMPO NO HABILITADO","CAMPO NO HABILITADO","CAMPO NO HABILITADO",null,"CAMPO NO HABILITADO","CAMPO NO HABILITADO","CAMPO NO HABILITADO","CAMPO NO HABILITADO","CAMPO NO HABILITADO","CAMPO NO HABILITADO","CAMPO NO HABILITADO","CAMPO NO HABILITADO","CAMPO NO HABILITADO","CAMPO NO HABILITADO","CAMPO NO HABILITADO","CAMPO NO HABILITADO"]
[null,"CAMPO NO HABILITADO","CAMPO NO HABILITADO","CAMPO NO HABILITADO","CAMPO NO HABILITADO","CAMPO NO HABILITADO","CAMPO NO HABILITADO","CAMPO NO HABILITADO","CAMPO NO HABILITADO","CAMPO NO HABILITADO","CAMPO NO HABILITADO","CAMPO NO HABILITADO","CAMPO NO HABILITADO",null,"CAMPO NO HABILITADO","CAMPO NO HABILITADO","CAMPO NO HABILITADO","CAMPO NO HABILITADO","CAMPO NO HABILITADO","CAMPO NO HABILITADO","CAMPO NO HABILITADO","CAMPO NO HABILITADO","CAMPO NO HABILITADO","CAMPO NO HABILITADO","CAMPO NO HABILITADO","CAMPO NO HABILITADO"]
[]
[]
[]
[]
[]
[]
[]
[]
[]
[null,"CAMPO NO HABILITADO","CAMPO NO HABILITADO","CAMPO NO HABILITADO","CAMPO NO HABILITADO","CAMPO NO HABILITADO","CAMPO NO HABILITADO","CAMPO NO HABILITADO","CAMPO NO HABILITADO","CAMPO NO HABILITADO","CAMPO NO HABILITADO","CAMPO NO HABILITADO","CAMPO NO HABILITADO",null,"CAMPO NO HABILITADO","CAMPO NO HABILITADO","CAMPO NO HABILITADO","CAMPO NO HABILITADO","CAMPO NO HABILITADO","CAMPO NO HABILITADO","CAMPO NO HABILITADO","CAMPO NO HABILITADO","CAMPO NO HABILITADO","CAMPO NO HABILITADO","CAMPO NO HABILITADO","CAMPO NO HABILITADO"]
[null,"CAMPO NO HABILITADO","CAMPO NO HABILITADO","CAMPO NO HABILITADO","CAMPO NO HABILITADO","CAMPO NO HABILITADO","CAMPO NO HABILITADO","CAMPO NO HABILITADO","CAMPO NO HABILITADO","CAMPO NO HABILITADO","CAMPO NO HABILITADO","CAMPO NO HABILITADO","CAMPO NO HABILITADO",null,"CAMPO NO HABILITADO","CAMPO NO HABILITADO","CAMPO NO HABILITADO","CAMPO NO HABILITADO","CAMPO NO HABILITADO","CAMPO NO HABILITADO","CAMPO NO HABILITADO","CAMPO NO HABILITADO","CAMPO NO HABILITADO","CAMPO NO HABILITADO","CAMPO NO HABILITADO","CAMPO NO HABILITADO"]
[]
[]
[]
[]
[]
[]
[]
[]
[]
[null,"CAMPO NO HABILITADO","CAMPO NO HABILITADO","CAMPO NO HABILITADO","CAMPO NO HABILITADO","CAMPO NO HABILITADO","CAMPO NO HABILITADO","CAMPO NO HABILITADO","CAMPO NO HABILITADO","CAMPO NO HABILITADO","CAMPO NO HABILITADO","CAMPO NO HABILITADO","CAMPO NO HABILITADO",null,"CAMPO NO HABILITADO","CAMPO NO HABILITADO","CAMPO NO HABILITADO","CAMPO NO HABILITADO","CAMPO NO HABILITADO","CAMPO NO HABILITADO","CAMPO NO HABILITADO","CAMPO NO HABILITADO","CAMPO NO HABILITADO","CAMPO NO HABILITADO","CAMPO NO HABILITADO","CAMPO NO HABILITADO"]
[null,"CAMPO NO HABILITADO","CAMPO NO HABILITADO","CAMPO NO HABILITADO","CAMPO NO HABILITADO","CAMPO NO HABILITADO","CAMPO NO HABILITADO","CAMPO NO HABILITADO","CAMPO NO HABILITADO","CAMPO NO HABILITADO","CAMPO NO HABILITADO","CAMPO NO HABILITADO","CAMPO NO HABILITADO",null,"CAMPO NO HABILITADO","CAMPO NO HABILITADO","CAMPO NO HABILITADO","CAMPO NO HABILITADO","CAMPO NO HABILITADO","CAMPO NO HABILITADO","CAMPO NO HABILITADO","CAMPO NO HABILITADO","CAMPO NO HABILITADO","CAMPO NO HABILITADO","CAMPO NO HABILITADO","CAMPO NO HABILITADO"]
[]
[]
[]
[]
[]
[]
[]
[]
[]
[null,"CAMPO NO HABILITADO","CAMPO NO HABILITADO","CAMPO NO HABILITADO","CAMPO NO HABILITADO","CAMPO NO HABILITADO","CAMPO NO HABILITADO","CAMPO NO HABILITADO","CAMPO NO HABILITADO","CAMPO NO HABILITADO","CAMPO NO HABILITADO","CAMPO NO HABILITADO","CAMPO NO HABILITADO",null,"CAMPO NO HABILITADO","CAMPO NO HABILITADO","CAMPO NO HABILITADO","CAMPO NO HABILITADO","CAMPO NO HABILITADO","CAMPO NO HABILITADO","CAMPO NO HABILITADO","CAMPO NO HABILITADO","CAMPO NO HABILITADO","CAMPO NO HABILITADO","CAMPO NO HABILITADO","CAMPO NO HABILITADO"]
[null,"CAMPO NO HABILITADO","CAMPO NO HABILITADO","CAMPO NO HABILITADO","CAMPO NO HABILITADO","CAMPO NO HABILITADO","CAMPO NO HABILITADO","CAMPO NO HABILITADO","CAMPO NO HABILITADO","CAMPO NO HABILITADO","CAMPO NO HABILITADO","CAMPO NO HABILITADO","CAMPO NO HABILITADO",null,"CAMPO NO HABILITADO","CAMPO NO HABILITADO","CAMPO NO HABILITADO","CAMPO NO HABILITADO","CAMPO NO HABILITADO","CAMPO NO HABILITADO","CAMPO NO HABILITADO","CAMPO NO HABILITADO","CAMPO NO HABILITADO","CAMPO NO HABILITADO","CAMPO NO HABILITADO","CAMPO NO HABILITADO"]
[]
[]
[]
[]
[]
[]
[]
[]
[]
[null,"CAMPO NO HABILITADO","CAMPO NO HABILITADO","CAMPO NO HABILITADO","CAMPO NO HABILITADO","CAMPO NO HABILITADO","CAMPO NO HABILITADO","CAMPO NO HABILITADO","CAMPO NO HABILITADO","CAMPO NO HABILITADO","CAMPO NO HABILITADO","CAMPO NO HABILITADO","CAMPO NO HABILITADO",null,"CAMPO NO HABILITADO","CAMPO NO HABILITADO","CAMPO NO HABILITADO","CAMPO NO HABILITADO","CAMPO NO HABILITADO","CAMPO NO HABILITADO","CAMPO NO HABILITADO","CAMPO NO HABILITADO","CAMPO NO HABILITADO","CAMPO NO HABILITADO","CAMPO NO HABILITADO","CAMPO NO HABILITADO"]
[null,"CAMPO NO HABILITADO","CAMPO NO HABILITADO","CAMPO NO HABILITADO","CAMPO NO HABILITADO","CAMPO NO HABILITADO","CAMPO NO HABILITADO","CAMPO NO HABILITADO","CAMPO NO HABILITADO","CAMPO NO HABILITADO","CAMPO NO HABILITADO","CAMPO NO HABILITADO","CAMPO NO HABILITADO",null,"CAMPO NO HABILITADO","CAMPO NO HABILITADO","CAMPO NO HABILITADO","CAMPO NO HABILITADO","CAMPO NO HABILITADO","CAMPO NO HABILITADO","CAMPO NO HABILITADO","CAMPO NO HABILITADO","CAMPO NO HABILITADO","CAMPO NO HABILITADO","CAMPO NO HABILITADO","CAMPO NO HABILITADO"]
[]
[]
[]
[]
[]
[]
[]
[]
[]
[null,"CAMPO NO HABILITADO","CAMPO NO HABILITADO","CAMPO NO HABILITADO","CAMPO NO HABILITADO","CAMPO NO HABILITADO","CAMPO NO HABILITADO","CAMPO NO HABILITADO","CAMPO NO HABILITADO","CAMPO NO HABILITADO","CAMPO NO HABILITADO","CAMPO NO HABILITADO","CAMPO NO HABILITADO",null,"CAMPO NO HABILITADO","CAMPO NO HABILITADO","CAMPO NO HABILITADO","CAMPO NO HABILITADO","CAMPO NO HABILITADO","CAMPO NO HABILITADO","CAMPO NO HABILITADO","CAMPO NO HABILITADO","CAMPO NO HABILITADO","CAMPO NO HABILITADO","CAMPO NO HABILITADO","CAMPO NO HABILITADO"]
[null,"CAMPO NO HABILITADO","CAMPO NO HABILITADO","CAMPO NO HABILITADO","CAMPO NO HABILITADO","CAMPO NO HABILITADO","CAMPO NO HABILITADO","CAMPO NO HABILITADO","CAMPO NO HABILITADO","CAMPO NO HABILITADO","CAMPO NO HABILITADO","CAMPO NO HABILITADO","CAMPO NO HABILITADO",null,"CAMPO NO HABILITADO","CAMPO NO HABILITADO","CAMPO NO HABILITADO","CAMPO NO HABILITADO","CAMPO NO HABILITADO","CAMPO NO HABILITADO","CAMPO NO HABILITADO","CAMPO NO HABILITADO","CAMPO NO HABILITADO","CAMPO NO HABILITADO","CAMPO NO HABILITADO","CAMPO NO HABILITADO"]
[]
[]
[]
[]
[]
[]
[]
[]
[]
[null,"CAMPO NO HABILITADO","CAMPO NO HABILITADO","CAMPO NO HABILITADO","CAMPO NO HABILITADO","CAMPO NO HABILITADO","CAMPO NO HABILITADO","CAMPO NO HABILITADO","CAMPO NO HABILITADO","CAMPO NO HABILITADO","CAMPO NO HABILITADO","CAMPO NO HABILITADO","CAMPO NO HABILITADO",null,"CAMPO NO HABILITADO","CAMPO NO HABILITADO","CAMPO NO HABILITADO","CAMPO NO HABILITADO","CAMPO NO HABILITADO","CAMPO NO HABILITADO","CAMPO NO HABILITADO","CAMPO NO HABILITADO","CAMPO NO HABILITADO","CAMPO NO HABILITADO","CAMPO NO HABILITADO","CAMPO NO HABILITADO"]
[null,"CAMPO NO HABILITADO","CAMPO NO HABILITADO","CAMPO NO HABILITADO","CAMPO NO HABILITADO","CAMPO NO HABILITADO","CAMPO NO HABILITADO","CAMPO NO HABILITADO","CAMPO NO HABILITADO","CAMPO NO HABILITADO","CAMPO NO HABILITADO","CAMPO NO HABILITADO","CAMPO NO HABILITADO",null,"CAMPO NO HABILITADO","CAMPO NO HABILITADO","CAMPO NO HABILITADO","CAMPO NO HABILITADO","CAMPO NO HABILITADO","CAMPO NO HABILITADO","CAMPO NO HABILITADO","CAMPO NO HABILITADO","CAMPO NO HABILITADO","CAMPO NO HABILITADO","CAMPO NO HABILITADO","CAMPO NO HABILITADO"]
[]
[]
[]
[]
[]
[]
[]
[]
[]
[null,"CAMPO NO HABILITADO","CAMPO NO HABILITADO","CAMPO NO HABILITADO","CAMPO NO HABILITADO","CAMPO NO HABILITADO","CAMPO NO HABILITADO","CAMPO NO HABILITADO","CAMPO NO HABILITADO","CAMPO NO HABILITADO","CAMPO NO HABILITADO","CAMPO NO HABILITADO","CAMPO NO HABILITADO",null,"CAMPO NO HABILITADO","CAMPO NO HABILITADO","CAMPO NO HABILITADO","CAMPO NO HABILITADO","CAMPO NO HABILITADO","CAMPO NO HABILITADO","CAMPO NO HABILITADO","CAMPO NO HABILITADO","CAMPO NO HABILITADO","CAMPO NO HABILITADO","CAMPO NO HABILITADO","CAMPO NO HABILITADO"]
[null,"CAMPO NO HABILITADO","CAMPO NO HABILITADO","CAMPO NO HABILITADO","CAMPO NO HABILITADO","CAMPO NO HABILITADO","CAMPO NO HABILITADO","CAMPO NO HABILITADO","CAMPO NO HABILITADO","CAMPO NO HABILITADO","CAMPO NO HABILITADO","CAMPO NO HABILITADO","CAMPO NO HABILITADO",null,"CAMPO NO HABILITADO","CAMPO NO HABILITADO","CAMPO NO HABILITADO","CAMPO NO HABILITADO","CAMPO NO HABILITADO","CAMPO NO HABILITADO","CAMPO NO HABILITADO","CAMPO NO HABILITADO","CAMPO NO HABILITADO","CAMPO NO HABILITADO","CAMPO NO HABILITADO","CAMPO NO HABILITADO"]
[]
[]
[]
[]
[]
[]
[]
[]
[]
[null,"CAMPO NO HABILITADO","CAMPO NO HABILITADO","CAMPO NO HABILITADO","CAMPO NO HABILITADO","CAMPO NO HABILITADO","CAMPO NO HABILITADO","CAMPO NO HABILITADO","CAMPO NO HABILITADO","CAMPO NO HABILITADO","CAMPO NO HABILITADO","CAMPO NO HABILITADO","CAMPO NO HABILITADO",null,"CAMPO NO HABILITADO","CAMPO NO HABILITADO","CAMPO NO HABILITADO","CAMPO NO HABILITADO","CAMPO NO HABILITADO","CAMPO NO HABILITADO","CAMPO NO HABILITADO","CAMPO NO HABILITADO","CAMPO NO HABILITADO","CAMPO NO HABILITADO","CAMPO NO HABILITADO","CAMPO NO HABILITADO"]
[null,"CAMPO NO HABILITADO","CAMPO NO HABILITADO","CAMPO NO HABILITADO","CAMPO NO HABILITADO","CAMPO NO HABILITADO","CAMPO NO HABILITADO","CAMPO NO HABILITADO","CAMPO NO HABILITADO","CAMPO NO HABILITADO","CAMPO NO HABILITADO","CAMPO NO HABILITADO","CAMPO NO HABILITADO",null,"CAMPO NO HABILITADO","CAMPO NO HABILITADO","CAMPO NO HABILITADO","CAMPO NO HABILITADO","CAMPO NO HABILITADO","CAMPO NO HABILITADO","CAMPO NO HABILITADO","CAMPO NO HABILITADO","CAMPO NO HABILITADO","CAMPO NO HABILITADO","CAMPO NO HABILITADO","CAMPO NO HABILITADO"]
[]
[]
[]
[]
[]
[]
[]
[]
[]
[null,"CAMPO NO HABILITADO","CAMPO NO HABILITADO","CAMPO NO HABILITADO","CAMPO NO HABILITADO","CAMPO NO HABILITADO","CAMPO NO HABILITADO","CAMPO NO HABILITADO","CAMPO NO HABILITADO","CAMPO NO HABILITADO","CAMPO NO HABILITADO","CAMPO NO HABILITADO","CAMPO NO HABILITADO",null,"CAMPO NO HABILITADO","CAMPO NO HABILITADO","CAMPO NO HABILITADO","CAMPO NO HABILITADO","CAMPO NO HABILITADO","CAMPO NO HABILITADO","CAMPO NO HABILITADO","CAMPO NO HABILITADO","CAMPO NO HABILITADO","CAMPO NO HABILITADO","CAMPO NO HABILITADO","CAMPO NO HABILITADO"]
[null,"CAMPO NO HABILITADO","CAMPO NO HABILITADO","CAMPO NO HABILITADO","CAMPO NO HABILITADO","CAMPO NO HABILITADO","CAMPO NO HABILITADO","CAMPO NO HABILITADO","CAMPO NO HABILITADO","CAMPO NO HABILITADO","CAMPO NO HABILITADO","CAMPO NO HABILITADO","CAMPO NO HABILITADO",null,"CAMPO NO HABILITADO","CAMPO NO HABILITADO","CAMPO NO HABILITADO","CAMPO NO HABILITADO","CAMPO NO HABILITADO","CAMPO NO HABILITADO","CAMPO NO HABILITADO","CAMPO NO HABILITADO","CAMPO NO HABILITADO","CAMPO NO HABILITADO","CAMPO NO HABILITADO","CAMPO NO HABILITADO"]
[]
[]
[]
[]
[]
[]
[]
[]
[]
[null,"CAMPO NO HABILITADO","CAMPO NO HABILITADO","CAMPO NO HABILITADO","CAMPO NO HABILITADO","CAMPO NO HABILITADO","CAMPO NO HABILITADO","CAMPO NO HABILITADO","CAMPO NO HABILITADO","CAMPO NO HABILITADO","CAMPO NO HABILITADO","CAMPO NO HABILITADO","CAMPO NO HABILITADO",null,"CAMPO NO HABILITADO","CAMPO NO HABILITADO","CAMPO NO HABILITADO","CAMPO NO HABILITADO","CAMPO NO HABILITADO","CAMPO NO HABILITADO","CAMPO NO HABILITADO","CAMPO NO HABILITADO","CAMPO NO HABILITADO","CAMPO NO HABILITADO","CAMPO NO HABILITADO","CAMPO NO HABILITADO"]
[null,"CAMPO NO HABILITADO","CAMPO NO HABILITADO","CAMPO NO HABILITADO","CAMPO NO HABILITADO","CAMPO NO HABILITADO","CAMPO NO HABILITADO","CAMPO NO HABILITADO","CAMPO NO HABILITADO","CAMPO NO HABILITADO","CAMPO NO HABILITADO","CAMPO NO HABILITADO","CAMPO NO HABILITADO",null,"CAMPO NO HABILITADO","CAMPO NO HABILITADO","CAMPO NO HABILITADO","CAMPO NO HABILITADO","CAMPO NO HABILITADO","CAMPO NO HABILITADO","CAMPO NO HABILITADO","CAMPO NO HABILITADO","CAMPO NO HABILITADO","CAMPO NO HABILITADO","CAMPO NO HABILITADO","CAMPO NO HABILITADO"]
[]
[]
[]
[]
[]
[]
[]
[]
[]
[null,"CAMPO NO HABILITADO","CAMPO NO HABILITADO","CAMPO NO HABILITADO","CAMPO NO HABILITADO","CAMPO NO HABILITADO","CAMPO NO HABILITADO","CAMPO NO HABILITADO","CAMPO NO HABILITADO","CAMPO NO HABILITADO","CAMPO NO HABILITADO","CAMPO NO HABILITADO","CAMPO NO HABILITADO",null,"CAMPO NO HABILITADO","CAMPO NO HABILITADO","CAMPO NO HABILITADO","CAMPO NO HABILITADO","CAMPO NO HABILITADO","CAMPO NO HABILITADO","CAMPO NO HABILITADO","CAMPO NO HABILITADO","CAMPO NO HABILITADO","CAMPO NO HABILITADO","CAMPO NO HABILITADO","CAMPO NO HABILITADO"]
[null,"CAMPO NO HABILITADO","CAMPO NO HABILITADO","CAMPO NO HABILITADO","CAMPO NO HABILITADO","CAMPO NO HABILITADO","CAMPO NO HABILITADO","CAMPO NO HABILITADO","CAMPO NO HABILITADO","CAMPO NO HABILITADO","CAMPO NO HABILITADO","CAMPO NO HABILITADO","CAMPO NO HABILITADO",null,"CAMPO NO HABILITADO","CAMPO NO HABILITADO","CAMPO NO HABILITADO","CAMPO NO HABILITADO","CAMPO NO HABILITADO","CAMPO NO HABILITADO","CAMPO NO HABILITADO","CAMPO NO HABILITADO","CAMPO NO HABILITADO","CAMPO NO HABILITADO","CAMPO NO HABILITADO","CAMPO NO HABILITADO"]
[]
[]
[]
[]
[]
[]
[]
[]
[]
[null,"CAMPO NO HABILITADO","CAMPO NO HABILITADO","CAMPO NO HABILITADO","CAMPO NO HABILITADO","CAMPO NO HABILITADO","CAMPO NO HABILITADO","CAMPO NO HABILITADO","CAMPO NO HABILITADO","CAMPO NO HABILITADO","CAMPO NO HABILITADO","CAMPO NO HABILITADO","CAMPO NO HABILITADO",null,"CAMPO NO HABILITADO","CAMPO NO HABILITADO","CAMPO NO HABILITADO","CAMPO NO HABILITADO","CAMPO NO HABILITADO","CAMPO NO HABILITADO","CAMPO NO HABILITADO","CAMPO NO HABILITADO","CAMPO NO HABILITADO","CAMPO NO HABILITADO","CAMPO NO HABILITADO","CAMPO NO HABILITADO"]
[null,"CAMPO NO HABILITADO","CAMPO NO HABILITADO","CAMPO NO HABILITADO","CAMPO NO HABILITADO","CAMPO NO HABILITADO","CAMPO NO HABILITADO","CAMPO NO HABILITADO","CAMPO NO HABILITADO","CAMPO NO HABILITADO","CAMPO NO HABILITADO","CAMPO NO HABILITADO","CAMPO NO HABILITADO",null,"CAMPO NO HABILITADO","CAMPO NO HABILITADO","CAMPO NO HABILITADO","CAMPO NO HABILITADO","CAMPO NO HABILITADO","CAMPO NO HABILITADO","CAMPO NO HABILITADO","CAMPO NO HABILITADO","CAMPO NO HABILITADO","CAMPO NO HABILITADO","CAMPO NO HABILITADO","CAMPO NO HABILITADO"]
[]
[]
[]
[]
[]
[]
[]
[]
[]
[null,"CAMPO NO HABILITADO","CAMPO NO HABILITADO","CAMPO NO HABILITADO","CAMPO NO HABILITADO","CAMPO NO HABILITADO","CAMPO NO HABILITADO","CAMPO NO HABILITADO","CAMPO NO HABILITADO","CAMPO NO HABILITADO","CAMPO NO HABILITADO","CAMPO NO HABILITADO","CAMPO NO HABILITADO",null,"CAMPO NO HABILITADO","CAMPO NO HABILITADO","CAMPO NO HABILITADO","CAMPO NO HABILITADO","CAMPO NO HABILITADO","CAMPO NO HABILITADO","CAMPO NO HABILITADO","CAMPO NO HABILITADO","CAMPO NO HABILITADO","CAMPO NO HABILITADO","CAMPO NO HABILITADO","CAMPO NO HABILITADO"]
[null,"CAMPO NO HABILITADO","CAMPO NO HABILITADO","CAMPO NO HABILITADO","CAMPO NO HABILITADO","CAMPO NO HABILITADO","CAMPO NO HABILITADO","CAMPO NO HABILITADO","CAMPO NO HABILITADO","CAMPO NO HABILITADO","CAMPO NO HABILITADO","CAMPO NO HABILITADO","CAMPO NO HABILITADO",null,"CAMPO NO HABILITADO","CAMPO NO HABILITADO","CAMPO NO HABILITADO","CAMPO NO HABILITADO","CAMPO NO HABILITADO","CAMPO NO HABILITADO","CAMPO NO HABILITADO","CAMPO NO HABILITADO","CAMPO NO HABILITADO","CAMPO NO HABILITADO","CAMPO NO HABILITADO","CAMPO NO HABILITADO"]
[]
[]
[]
[]
[]
[]
[]
[]
[]
[null,"CAMPO NO HABILITADO","CAMPO NO HABILITADO","CAMPO NO HABILITADO","CAMPO NO HABILITADO","CAMPO NO HABILITADO","CAMPO NO HABILITADO","CAMPO NO HABILITADO","CAMPO NO HABILITADO","CAMPO NO HABILITADO","CAMPO NO HABILITADO","CAMPO NO HABILITADO","CAMPO NO HABILITADO",null,"CAMPO NO HABILITADO","CAMPO NO HABILITADO","CAMPO NO HABILITADO","CAMPO NO HABILITADO","CAMPO NO HABILITADO","CAMPO NO HABILITADO","CAMPO NO HABILITADO","CAMPO NO HABILITADO","CAMPO NO HABILITADO","CAMPO NO HABILITADO","CAMPO NO HABILITADO","CAMPO NO HABILITADO"]
[null,"CAMPO NO HABILITADO","CAMPO NO HABILITADO","CAMPO NO HABILITADO","CAMPO NO HABILITADO","CAMPO NO HABILITADO","CAMPO NO HABILITADO","CAMPO NO HABILITADO","CAMPO NO HABILITADO","CAMPO NO HABILITADO","CAMPO NO HABILITADO","CAMPO NO HABILITADO","CAMPO NO HABILITADO",null,"CAMPO NO HABILITADO","CAMPO NO HABILITADO","CAMPO NO HABILITADO","CAMPO NO HABILITADO","CAMPO NO HABILITADO","CAMPO NO HABILITADO","CAMPO NO HABILITADO","CAMPO NO HABILITADO","CAMPO NO HABILITADO","CAMPO NO HABILITADO","CAMPO NO HABILITADO","CAMPO NO HABILITADO"]
[]
[]
[]
[]
[]
[]
[]
[]
[]
[null,"CAMPO NO HABILITADO","CAMPO NO HABILITADO","CAMPO NO HABILITADO","CAMPO NO HABILITADO","CAMPO NO HABILITADO","CAMPO NO HABILITADO","CAMPO NO HABILITADO","CAMPO NO HABILITADO","CAMPO NO HABILITADO","CAMPO NO HABILITADO","CAMPO NO HABILITADO","CAMPO NO HABILITADO",null,"CAMPO NO HABILITADO","CAMPO NO HABILITADO","CAMPO NO HABILITADO","CAMPO NO HABILITADO","CAMPO NO HABILITADO","CAMPO NO HABILITADO","CAMPO NO HABILITADO","CAMPO NO HABILITADO","CAMPO NO HABILITADO","CAMPO NO HABILITADO","CAMPO NO HABILITADO","CAMPO NO HABILITADO"]
[null,"CAMPO NO HABILITADO","CAMPO NO HABILITADO","CAMPO NO HABILITADO","CAMPO NO HABILITADO","CAMPO NO HABILITADO","CAMPO NO HABILITADO","CAMPO NO HABILITADO","CAMPO NO HABILITADO","CAMPO NO HABILITADO","CAMPO NO HABILITADO","CAMPO NO HABILITADO","CAMPO NO HABILITADO",null,"CAMPO NO HABILITADO","CAMPO NO HABILITADO","CAMPO NO HABILITADO","CAMPO NO HABILITADO","CAMPO NO HABILITADO","CAMPO NO HABILITADO","CAMPO NO HABILITADO","CAMPO NO HABILITADO","CAMPO NO HABILITADO","CAMPO NO HABILITADO","CAMPO NO HABILITADO","CAMPO NO HABILITADO"]
[]
[]
[]
[]
[]
[]
[]
[]
[]
[null,"CAMPO NO HABILITADO","CAMPO NO HABILITADO","CAMPO NO HABILITADO","CAMPO NO HABILITADO","CAMPO NO HABILITADO","CAMPO NO HABILITADO","CAMPO NO HABILITADO","CAMPO NO HABILITADO","CAMPO NO HABILITADO","CAMPO NO HABILITADO","CAMPO NO HABILITADO","CAMPO NO HABILITADO",null,"CAMPO NO HABILITADO","CAMPO NO HABILITADO","CAMPO NO HABILITADO","CAMPO NO HABILITADO","CAMPO NO HABILITADO","CAMPO NO HABILITADO","CAMPO NO HABILITADO","CAMPO NO HABILITADO","CAMPO NO HABILITADO","CAMPO NO HABILITADO","CAMPO NO HABILITADO","CAMPO NO HABILITADO"]
[null,"CAMPO NO HABILITADO","CAMPO NO HABILITADO","CAMPO NO HABILITADO","CAMPO NO HABILITADO","CAMPO NO HABILITADO","CAMPO NO HABILITADO","CAMPO NO HABILITADO","CAMPO NO HABILITADO","CAMPO NO HABILITADO","CAMPO NO HABILITADO","CAMPO NO HABILITADO","CAMPO NO HABILITADO",null,"CAMPO NO HABILITADO","CAMPO NO HABILITADO","CAMPO NO HABILITADO","CAMPO NO HABILITADO","CAMPO NO HABILITADO","CAMPO NO HABILITADO","CAMPO NO HABILITADO","CAMPO NO HABILITADO","CAMPO NO HABILITADO","CAMPO NO HABILITADO","CAMPO NO HABILITADO","CAMPO NO HABILITADO"]
[]
[]
[]
[]
[]
[]
[]
[]
[]
[null,"CAMPO NO HABILITADO","CAMPO NO HABILITADO","CAMPO NO HABILITADO","CAMPO NO HABILITADO","CAMPO NO HABILITADO","CAMPO NO HABILITADO","CAMPO NO HABILITADO","CAMPO NO HABILITADO","CAMPO NO HABILITADO","CAMPO NO HABILITADO","CAMPO NO HABILITADO","CAMPO NO HABILITADO",null,"CAMPO NO HABILITADO","CAMPO NO HABILITADO","CAMPO NO HABILITADO","CAMPO NO HABILITADO","CAMPO NO HABILITADO","CAMPO NO HABILITADO","CAMPO NO HABILITADO","CAMPO NO HABILITADO","CAMPO NO HABILITADO","CAMPO NO HABILITADO","CAMPO NO HABILITADO","CAMPO NO HABILITADO"]
[null,"CAMPO NO HABILITADO","CAMPO NO HABILITADO","CAMPO NO HABILITADO","CAMPO NO HABILITADO","CAMPO NO HABILITADO","CAMPO NO HABILITADO","CAMPO NO HABILITADO","CAMPO NO HABILITADO","CAMPO NO HABILITADO","CAMPO NO HABILITADO","CAMPO NO HABILITADO","CAMPO NO HABILITADO",null,"CAMPO NO HABILITADO","CAMPO NO HABILITADO","CAMPO NO HABILITADO","CAMPO NO HABILITADO","CAMPO NO HABILITADO","CAMPO NO HABILITADO","CAMPO NO HABILITADO","CAMPO NO HABILITADO","CAMPO NO HABILITADO","CAMPO NO HABILITADO","CAMPO NO HABILITADO","CAMPO NO HABILITADO"]
[]
[]
[]
[]
[]
[]
[]
[]
[]
[null,"CAMPO NO HABILITADO","CAMPO NO HABILITADO","CAMPO NO HABILITADO","CAMPO NO HABILITADO","CAMPO NO HABILITADO","CAMPO NO HABILITADO","CAMPO NO HABILITADO","CAMPO NO HABILITADO","CAMPO NO HABILITADO","CAMPO NO HABILITADO","CAMPO NO HABILITADO","CAMPO NO HABILITADO",null,"CAMPO NO HABILITADO","CAMPO NO HABILITADO","CAMPO NO HABILITADO","CAMPO NO HABILITADO","CAMPO NO HABILITADO","CAMPO NO HABILITADO","CAMPO NO HABILITADO","CAMPO NO HABILITADO","CAMPO NO HABILITADO","CAMPO NO HABILITADO","CAMPO NO HABILITADO","CAMPO NO HABILITADO"]
[null,"CAMPO NO HABILITADO","CAMPO NO HABILITADO","CAMPO NO HABILITADO","CAMPO NO HABILITADO","CAMPO NO HABILITADO","CAMPO NO HABILITADO","CAMPO NO HABILITADO","CAMPO NO HABILITADO","CAMPO NO HABILITADO","CAMPO NO HABILITADO","CAMPO NO HABILITADO","CAMPO NO HABILITADO",null,"CAMPO NO HABILITADO","CAMPO NO HABILITADO","CAMPO NO HABILITADO","CAMPO NO HABILITADO","CAMPO NO HABILITADO","CAMPO NO HABILITADO","CAMPO NO HABILITADO","CAMPO NO HABILITADO","CAMPO NO HABILITADO","CAMPO NO HABILITADO","CAMPO NO HABILITADO","CAMPO NO HABILITADO"]
[]
[]
[]
[]
[]
[]
[]
[]
[]
[null,"CAMPO NO HABILITADO","CAMPO NO HABILITADO","CAMPO NO HABILITADO","CAMPO NO HABILITADO","CAMPO NO HABILITADO","CAMPO NO HABILITADO","CAMPO NO HABILITADO","CAMPO NO HABILITADO","CAMPO NO HABILITADO","CAMPO NO HABILITADO","CAMPO NO HABILITADO","CAMPO NO HABILITADO",null,"CAMPO NO HABILITADO","CAMPO NO HABILITADO","CAMPO NO HABILITADO","CAMPO NO HABILITADO","CAMPO NO HABILITADO","CAMPO NO HABILITADO","CAMPO NO HABILITADO","CAMPO NO HABILITADO","CAMPO NO HABILITADO","CAMPO NO HABILITADO","CAMPO NO HABILITADO","CAMPO NO HABILITADO"]
[null,"CAMPO NO HABILITADO","CAMPO NO HABILITADO","CAMPO NO HABILITADO","CAMPO NO HABILITADO","CAMPO NO HABILITADO","CAMPO NO HABILITADO","CAMPO NO HABILITADO","CAMPO NO HABILITADO","CAMPO NO HABILITADO","CAMPO NO HABILITADO","CAMPO NO HABILITADO","CAMPO NO HABILITADO",null,"CAMPO NO HABILITADO","CAMPO NO HABILITADO","CAMPO NO HABILITADO","CAMPO NO HABILITADO","CAMPO NO HABILITADO","CAMPO NO HABILITADO","CAMPO NO HABILITADO","CAMPO NO HABILITADO","CAMPO NO HABILITADO","CAMPO NO HABILITADO","CAMPO NO HABILITADO","CAMPO NO HABILITADO"]
[]
[]
[]
[]
[]
[]
[]
[]
[]
[null,"CAMPO NO HABILITADO","CAMPO NO HABILITADO","CAMPO NO HABILITADO","CAMPO NO HABILITADO","CAMPO NO HABILITADO","CAMPO NO HABILITADO","CAMPO NO HABILITADO","CAMPO NO HABILITADO","CAMPO NO HABILITADO","CAMPO NO HABILITADO","CAMPO NO HABILITADO","CAMPO NO HABILITADO",null,"CAMPO NO HABILITADO","CAMPO NO HABILITADO","CAMPO NO HABILITADO","CAMPO NO HABILITADO","CAMPO NO HABILITADO","CAMPO NO HABILITADO","CAMPO NO HABILITADO","CAMPO NO HABILITADO","CAMPO NO HABILITADO","CAMPO NO HABILITADO","CAMPO NO HABILITADO","CAMPO NO HABILITADO"]
[null,"CAMPO NO HABILITADO","CAMPO NO HABILITADO","CAMPO NO HABILITADO","CAMPO NO HABILITADO","CAMPO NO HABILITADO","CAMPO NO HABILITADO","CAMPO NO HABILITADO","CAMPO NO HABILITADO","CAMPO NO HABILITADO","CAMPO NO HABILITADO","CAMPO NO HABILITADO","CAMPO NO HABILITADO",null,"CAMPO NO HABILITADO","CAMPO NO HABILITADO","CAMPO NO HABILITADO","CAMPO NO HABILITADO","CAMPO NO HABILITADO","CAMPO NO HABILITADO","CAMPO NO HABILITADO","CAMPO NO HABILITADO","CAMPO NO HABILITADO","CAMPO NO HABILITADO","CAMPO NO HABILITADO","CAMPO NO HABILITADO"]
[]
[]
[]
[]
[]
[]
[]
[]
[]
[null,"CAMPO NO HABILITADO","CAMPO NO HABILITADO","CAMPO NO HABILITADO","CAMPO NO HABILITADO","CAMPO NO HABILITADO","CAMPO NO HABILITADO","CAMPO NO HABILITADO","CAMPO NO HABILITADO","CAMPO NO HABILITADO","CAMPO NO HABILITADO","CAMPO NO HABILITADO","CAMPO NO HABILITADO",null,"CAMPO NO HABILITADO","CAMPO NO HABILITADO","CAMPO NO HABILITADO","CAMPO NO HABILITADO","CAMPO NO HABILITADO","CAMPO NO HABILITADO","CAMPO NO HABILITADO","CAMPO NO HABILITADO","CAMPO NO HABILITADO","CAMPO NO HABILITADO","CAMPO NO HABILITADO","CAMPO NO HABILITADO"]
[null,"CAMPO NO HABILITADO","CAMPO NO HABILITADO","CAMPO NO HABILITADO","CAMPO NO HABILITADO","CAMPO NO HABILITADO","CAMPO NO HABILITADO","CAMPO NO HABILITADO","CAMPO NO HABILITADO","CAMPO NO HABILITADO","CAMPO NO HABILITADO","CAMPO NO HABILITADO","CAMPO NO HABILITADO",null,"CAMPO NO HABILITADO","CAMPO NO HABILITADO","CAMPO NO HABILITADO","CAMPO NO HABILITADO","CAMPO NO HABILITADO","CAMPO NO HABILITADO","CAMPO NO HABILITADO","CAMPO NO HABILITADO","CAMPO NO HABILITADO","CAMPO NO HABILITADO","CAMPO NO HABILITADO","CAMPO NO HABILITADO"]
[]
[]
[]
[]
[]
[]
[]
[]
[]
[null,"CAMPO NO HABILITADO","CAMPO NO HABILITADO","CAMPO NO HABILITADO","CAMPO NO HABILITADO","CAMPO NO HABILITADO","CAMPO NO HABILITADO","CAMPO NO HABILITADO","CAMPO NO HABILITADO","CAMPO NO HABILITADO","CAMPO NO HABILITADO","CAMPO NO HABILITADO","CAMPO NO HABILITADO",null,"CAMPO NO HABILITADO","CAMPO NO HABILITADO","CAMPO NO HABILITADO","CAMPO NO HABILITADO","CAMPO NO HABILITADO","CAMPO NO HABILITADO","CAMPO NO HABILITADO","CAMPO NO HABILITADO","CAMPO NO HABILITADO","CAMPO NO HABILITADO","CAMPO NO HABILITADO","CAMPO NO HABILITADO"]
[null,"CAMPO NO HABILITADO","CAMPO NO HABILITADO","CAMPO NO HABILITADO","CAMPO NO HABILITADO","CAMPO NO HABILITADO","CAMPO NO HABILITADO","CAMPO NO HABILITADO","CAMPO NO HABILITADO","CAMPO NO HABILITADO","CAMPO NO HABILITADO","CAMPO NO HABILITADO","CAMPO NO HABILITADO",null,"CAMPO NO HABILITADO","CAMPO NO HABILITADO","CAMPO NO HABILITADO","CAMPO NO HABILITADO","CAMPO NO HABILITADO","CAMPO NO HABILITADO","CAMPO NO HABILITADO","CAMPO NO HABILITADO","CAMPO NO HABILITADO","CAMPO NO HABILITADO","CAMPO NO HABILITADO","CAMPO NO HABILITADO"]
[]
[]
[]
[]
[]
[]
[]
[]
[]
[null,"CAMPO NO HABILITADO","CAMPO NO HABILITADO","CAMPO NO HABILITADO","CAMPO NO HABILITADO","CAMPO NO HABILITADO","CAMPO NO HABILITADO","CAMPO NO HABILITADO","CAMPO NO HABILITADO","CAMPO NO HABILITADO","CAMPO NO HABILITADO","CAMPO NO HABILITADO","CAMPO NO HABILITADO",null,"CAMPO NO HABILITADO","CAMPO NO HABILITADO","CAMPO NO HABILITADO","CAMPO NO HABILITADO","CAMPO NO HABILITADO","CAMPO NO HABILITADO","CAMPO NO HABILITADO","CAMPO NO HABILITADO","CAMPO NO HABILITADO","CAMPO NO HABILITADO","CAMPO NO HABILITADO","CAMPO NO HABILITADO"]
[null,"CAMPO NO HABILITADO","CAMPO NO HABILITADO","CAMPO NO HABILITADO","CAMPO NO HABILITADO","CAMPO NO HABILITADO","CAMPO NO HABILITADO","CAMPO NO HABILITADO","CAMPO NO HABILITADO","CAMPO NO HABILITADO","CAMPO NO HABILITADO","CAMPO NO HABILITADO","CAMPO NO HABILITADO",null,"CAMPO NO HABILITADO","CAMPO NO HABILITADO","CAMPO NO HABILITADO","CAMPO NO HABILITADO","CAMPO NO HABILITADO","CAMPO NO HABILITADO","CAMPO NO HABILITADO","CAMPO NO HABILITADO","CAMPO NO HABILITADO","CAMPO NO HABILITADO","CAMPO NO HABILITADO","CAMPO NO HABILITADO"]
[]
[]
[]
[]
[]
[]
[]
[]
[]
[null,"CAMPO NO HABILITADO","CAMPO NO HABILITADO","CAMPO NO HABILITADO","CAMPO NO HABILITADO","CAMPO NO HABILITADO","CAMPO NO HABILITADO","CAMPO NO HABILITADO","CAMPO NO HABILITADO","CAMPO NO HABILITADO","CAMPO NO HABILITADO","CAMPO NO HABILITADO","CAMPO NO HABILITADO",null,"CAMPO NO HABILITADO","CAMPO NO HABILITADO","CAMPO NO HABILITADO","CAMPO NO HABILITADO","CAMPO NO HABILITADO","CAMPO NO HABILITADO","CAMPO NO HABILITADO","CAMPO NO HABILITADO","CAMPO NO HABILITADO","CAMPO NO HABILITADO","CAMPO NO HABILITADO","CAMPO NO HABILITADO"]
[null,"CAMPO NO HABILITADO","CAMPO NO HABILITADO","CAMPO NO HABILITADO","CAMPO NO HABILITADO","CAMPO NO HABILITADO","CAMPO NO HABILITADO","CAMPO NO HABILITADO","CAMPO NO HABILITADO","CAMPO NO HABILITADO","CAMPO NO HABILITADO","CAMPO NO HABILITADO","CAMPO NO HABILITADO",null,"CAMPO NO HABILITADO","CAMPO NO HABILITADO","CAMPO NO HABILITADO","CAMPO NO HABILITADO","CAMPO NO HABILITADO","CAMPO NO HABILITADO","CAMPO NO HABILITADO","CAMPO NO HABILITADO","CAMPO NO HABILITADO","CAMPO NO HABILITADO","CAMPO NO HABILITADO","CAMPO NO HABILITADO"]
[]
[]
[]
[]
[]
[]
[]
[]
[]
[null,"CAMPO NO HABILITADO","CAMPO NO HABILITADO","CAMPO NO HABILITADO","CAMPO NO HABILITADO","CAMPO NO HABILITADO","CAMPO NO HABILITADO","CAMPO NO HABILITADO","CAMPO NO HABILITADO","CAMPO NO HABILITADO","CAMPO NO HABILITADO","CAMPO NO HABILITADO","CAMPO NO HABILITADO",null,"CAMPO NO HABILITADO","CAMPO NO HABILITADO","CAMPO NO HABILITADO","CAMPO NO HABILITADO","CAMPO NO HABILITADO","CAMPO NO HABILITADO","CAMPO NO HABILITADO","CAMPO NO HABILITADO","CAMPO NO HABILITADO","CAMPO NO HABILITADO","CAMPO NO HABILITADO","CAMPO NO HABILITADO"]
[null,"CAMPO NO HABILITADO","CAMPO NO HABILITADO","CAMPO NO HABILITADO","CAMPO NO HABILITADO","CAMPO NO HABILITADO","CAMPO NO HABILITADO","CAMPO NO HABILITADO","CAMPO NO HABILITADO","CAMPO NO HABILITADO","CAMPO NO HABILITADO","CAMPO NO HABILITADO","CAMPO NO HABILITADO",null,"CAMPO NO HABILITADO","CAMPO NO HABILITADO","CAMPO NO HABILITADO","CAMPO NO HABILITADO","CAMPO NO HABILITADO","CAMPO NO HABILITADO","CAMPO NO HABILITADO","CAMPO NO HABILITADO","CAMPO NO HABILITADO","CAMPO NO HABILITADO","CAMPO NO HABILITADO","CAMPO NO HABILITADO"]
[]
[]
[]
[]
[]
[]
[]
[]
[]
[null,"CAMPO NO HABILITADO","CAMPO NO HABILITADO","CAMPO NO HABILITADO","CAMPO NO HABILITADO","CAMPO NO HABILITADO","CAMPO NO HABILITADO","CAMPO NO HABILITADO","CAMPO NO HABILITADO","CAMPO NO HABILITADO","CAMPO NO HABILITADO","CAMPO NO HABILITADO","CAMPO NO HABILITADO",null,"CAMPO NO HABILITADO","CAMPO NO HABILITADO","CAMPO NO HABILITADO","CAMPO NO HABILITADO","CAMPO NO HABILITADO","CAMPO NO HABILITADO","CAMPO NO HABILITADO","CAMPO NO HABILITADO","CAMPO NO HABILITADO","CAMPO NO HABILITADO","CAMPO NO HABILITADO","CAMPO NO HABILITADO"]
[null,"CAMPO NO HABILITADO","CAMPO NO HABILITADO","CAMPO NO HABILITADO","CAMPO NO HABILITADO","CAMPO NO HABILITADO","CAMPO NO HABILITADO","CAMPO NO HABILITADO","CAMPO NO HABILITADO","CAMPO NO HABILITADO","CAMPO NO HABILITADO","CAMPO NO HABILITADO","CAMPO NO HABILITADO",null,"CAMPO NO HABILITADO","CAMPO NO HABILITADO","CAMPO NO HABILITADO","CAMPO NO HABILITADO","CAMPO NO HABILITADO","CAMPO NO HABILITADO","CAMPO NO HABILITADO","CAMPO NO HABILITADO","CAMPO NO HABILITADO","CAMPO NO HABILITADO","CAMPO NO HABILITADO","CAMPO NO HABILITADO"]
[]
[]
[]
[]
[]
[]
[]
[]
[]
[null,"CAMPO NO HABILITADO","CAMPO NO HABILITADO","CAMPO NO HABILITADO","CAMPO NO HABILITADO","CAMPO NO HABILITADO","CAMPO NO HABILITADO","CAMPO NO HABILITADO","CAMPO NO HABILITADO","CAMPO NO HABILITADO","CAMPO NO HABILITADO","CAMPO NO HABILITADO","CAMPO NO HABILITADO",null,"CAMPO NO HABILITADO","CAMPO NO HABILITADO","CAMPO NO HABILITADO","CAMPO NO HABILITADO","CAMPO NO HABILITADO","CAMPO NO HABILITADO","CAMPO NO HABILITADO","CAMPO NO HABILITADO","CAMPO NO HABILITADO","CAMPO NO HABILITADO","CAMPO NO HABILITADO","CAMPO NO HABILITADO"]
[null,"CAMPO NO HABILITADO","CAMPO NO HABILITADO","CAMPO NO HABILITADO","CAMPO NO HABILITADO","CAMPO NO HABILITADO","CAMPO NO HABILITADO","CAMPO NO HABILITADO","CAMPO NO HABILITADO","CAMPO NO HABILITADO","CAMPO NO HABILITADO","CAMPO NO HABILITADO","CAMPO NO HABILITADO",null,"CAMPO NO HABILITADO","CAMPO NO HABILITADO","CAMPO NO HABILITADO","CAMPO NO HABILITADO","CAMPO NO HABILITADO","CAMPO NO HABILITADO","CAMPO NO HABILITADO","CAMPO NO HABILITADO","CAMPO NO HABILITADO","CAMPO NO HABILITADO","CAMPO NO HABILITADO","CAMPO NO HABILITADO"]
[]
[]
[]
[]
[]
[]
[]
[]
[]
[null,"CAMPO NO HABILITADO","CAMPO NO HABILITADO","CAMPO NO HABILITADO","CAMPO NO HABILITADO","CAMPO NO HABILITADO","CAMPO NO HABILITADO","CAMPO NO HABILITADO","CAMPO NO HABILITADO","CAMPO NO HABILITADO","CAMPO NO HABILITADO","CAMPO NO HABILITADO","CAMPO NO HABILITADO",null,"CAMPO NO HABILITADO","CAMPO NO HABILITADO","CAMPO NO HABILITADO","CAMPO NO HABILITADO","CAMPO NO HABILITADO","CAMPO NO HABILITADO","CAMPO NO HABILITADO","CAMPO NO HABILITADO","CAMPO NO HABILITADO","CAMPO NO HABILITADO","CAMPO NO HABILITADO","CAMPO NO HABILITADO"]
[null,"CAMPO NO HABILITADO","CAMPO NO HABILITADO","CAMPO NO HABILITADO","CAMPO NO HABILITADO","CAMPO NO HABILITADO","CAMPO NO HABILITADO","CAMPO NO HABILITADO","CAMPO NO HABILITADO","CAMPO NO HABILITADO","CAMPO NO HABILITADO","CAMPO NO HABILITADO","CAMPO NO HABILITADO",null,"CAMPO NO HABILITADO","CAMPO NO HABILITADO","CAMPO NO HABILITADO","CAMPO NO HABILITADO","CAMPO NO HABILITADO","CAMPO NO HABILITADO","CAMPO NO HABILITADO","CAMPO NO HABILITADO","CAMPO NO HABILITADO","CAMPO NO HABILITADO","CAMPO NO HABILITADO","CAMPO NO HABILITADO"]
[]
[]
[]
[]
[]
[]
[]
[]
[]
[null,"CAMPO NO HABILITADO","CAMPO NO HABILITADO","CAMPO NO HABILITADO","CAMPO NO HABILITADO","CAMPO NO HABILITADO","CAMPO NO HABILITADO","CAMPO NO HABILITADO","CAMPO NO HABILITADO","CAMPO NO HABILITADO","CAMPO NO HABILITADO","CAMPO NO HABILITADO","CAMPO NO HABILITADO",null,"CAMPO NO HABILITADO","CAMPO NO HABILITADO","CAMPO NO HABILITADO","CAMPO NO HABILITADO","CAMPO NO HABILITADO","CAMPO NO HABILITADO","CAMPO NO HABILITADO","CAMPO NO HABILITADO","CAMPO NO HABILITADO","CAMPO NO HABILITADO","CAMPO NO HABILITADO","CAMPO NO HABILITADO"]
[null,"CAMPO NO HABILITADO","CAMPO NO HABILITADO","CAMPO NO HABILITADO","CAMPO NO HABILITADO","CAMPO NO HABILITADO","CAMPO NO HABILITADO","CAMPO NO HABILITADO","CAMPO NO HABILITADO","CAMPO NO HABILITADO","CAMPO NO HABILITADO","CAMPO NO HABILITADO","CAMPO NO HABILITADO",null,"CAMPO NO HABILITADO","CAMPO NO HABILITADO","CAMPO NO HABILITADO","CAMPO NO HABILITADO","CAMPO NO HABILITADO","CAMPO NO HABILITADO","CAMPO NO HABILITADO","CAMPO NO HABILITADO","CAMPO NO HABILITADO","CAMPO NO HABILITADO","CAMPO NO HABILITADO","CAMPO NO HABILITADO"]
[]
[]
[]
[]
[]
[]
[]
[]
[]
[null,"CAMPO NO HABILITADO","CAMPO NO HABILITADO","CAMPO NO HABILITADO","CAMPO NO HABILITADO","CAMPO NO HABILITADO","CAMPO NO HABILITADO","CAMPO NO HABILITADO","CAMPO NO HABILITADO","CAMPO NO HABILITADO","CAMPO NO HABILITADO","CAMPO NO HABILITADO","CAMPO NO HABILITADO",null,"CAMPO NO HABILITADO","CAMPO NO HABILITADO","CAMPO NO HABILITADO","CAMPO NO HABILITADO","CAMPO NO HABILITADO","CAMPO NO HABILITADO","CAMPO NO HABILITADO","CAMPO NO HABILITADO","CAMPO NO HABILITADO","CAMPO NO HABILITADO","CAMPO NO HABILITADO","CAMPO NO HABILITADO"]
[null,"CAMPO NO HABILITADO","CAMPO NO HABILITADO","CAMPO NO HABILITADO","CAMPO NO HABILITADO","CAMPO NO HABILITADO","CAMPO NO HABILITADO","CAMPO NO HABILITADO","CAMPO NO HABILITADO","CAMPO NO HABILITADO","CAMPO NO HABILITADO","CAMPO NO HABILITADO","CAMPO NO HABILITADO",null,"CAMPO NO HABILITADO","CAMPO NO HABILITADO","CAMPO NO HABILITADO","CAMPO NO HABILITADO","CAMPO NO HABILITADO","CAMPO NO HABILITADO","CAMPO NO HABILITADO","CAMPO NO HABILITADO","CAMPO NO HABILITADO","CAMPO NO HABILITADO","CAMPO NO HABILITADO","CAMPO NO HABILITADO"]
[]
[]
[]
[]
[]
[]
[]
[]
[]
[null,"CAMPO NO HABILITADO","CAMPO NO HABILITADO","CAMPO NO HABILITADO","CAMPO NO HABILITADO","CAMPO NO HABILITADO","CAMPO NO HABILITADO","CAMPO NO HABILITADO","CAMPO NO HABILITADO","CAMPO NO HABILITADO","CAMPO NO HABILITADO","CAMPO NO HABILITADO","CAMPO NO HABILITADO",null,"CAMPO NO HABILITADO","CAMPO NO HABILITADO","CAMPO NO HABILITADO","CAMPO NO HABILITADO","CAMPO NO HABILITADO","CAMPO NO HABILITADO","CAMPO NO HABILITADO","CAMPO NO HABILITADO","CAMPO NO HABILITADO","CAMPO NO HABILITADO","CAMPO NO HABILITADO","CAMPO NO HABILITADO"]
[null,"CAMPO NO HABILITADO","CAMPO NO HABILITADO","CAMPO NO HABILITADO","CAMPO NO HABILITADO","CAMPO NO HABILITADO","CAMPO NO HABILITADO","CAMPO NO HABILITADO","CAMPO NO HABILITADO","CAMPO NO HABILITADO","CAMPO NO HABILITADO","CAMPO NO HABILITADO","CAMPO NO HABILITADO",null,"CAMPO NO HABILITADO","CAMPO NO HABILITADO","CAMPO NO HABILITADO","CAMPO NO HABILITADO","CAMPO NO HABILITADO","CAMPO NO HABILITADO","CAMPO NO HABILITADO","CAMPO NO HABILITADO","CAMPO NO HABILITADO","CAMPO NO HABILITADO","CAMPO NO HABILITADO","CAMPO NO HABILITADO"]
[]
[]
[]
[]
[]
[]
[]
[]
[]
[null,"CAMPO NO HABILITADO","CAMPO NO HABILITADO","CAMPO NO HABILITADO","CAMPO NO HABILITADO","CAMPO NO HABILITADO","CAMPO NO HABILITADO","CAMPO NO HABILITADO","CAMPO NO HABILITADO","CAMPO NO HABILITADO","CAMPO NO HABILITADO","CAMPO NO HABILITADO","CAMPO NO HABILITADO",null,"CAMPO NO HABILITADO","CAMPO NO HABILITADO","CAMPO NO HABILITADO","CAMPO NO HABILITADO","CAMPO NO HABILITADO","CAMPO NO HABILITADO","CAMPO NO HABILITADO","CAMPO NO HABILITADO","CAMPO NO HABILITADO","CAMPO NO HABILITADO","CAMPO NO HABILITADO","CAMPO NO HABILITADO"]
[null,"CAMPO NO HABILITADO","CAMPO NO HABILITADO","CAMPO NO HABILITADO","CAMPO NO HABILITADO","CAMPO NO HABILITADO","CAMPO NO HABILITADO","CAMPO NO HABILITADO","CAMPO NO HABILITADO","CAMPO NO HABILITADO","CAMPO NO HABILITADO","CAMPO NO HABILITADO","CAMPO NO HABILITADO",null,"CAMPO NO HABILITADO","CAMPO NO HABILITADO","CAMPO NO HABILITADO","CAMPO NO HABILITADO","CAMPO NO HABILITADO","CAMPO NO HABILITADO","CAMPO NO HABILITADO","CAMPO NO HABILITADO","CAMPO NO HABILITADO","CAMPO NO HABILITADO","CAMPO NO HABILITADO","CAMPO NO HABILITADO"]
[]
[]
[]
[]
[]
[]
[]
[]
[]
[null,"CAMPO NO HABILITADO","CAMPO NO HABILITADO","CAMPO NO HABILITADO","CAMPO NO HABILITADO","CAMPO NO HABILITADO","CAMPO NO HABILITADO","CAMPO NO HABILITADO","CAMPO NO HABILITADO","CAMPO NO HABILITADO","CAMPO NO HABILITADO","CAMPO NO HABILITADO","CAMPO NO HABILITADO",null,"CAMPO NO HABILITADO","CAMPO NO HABILITADO","CAMPO NO HABILITADO","CAMPO NO HABILITADO","CAMPO NO HABILITADO","CAMPO NO HABILITADO","CAMPO NO HABILITADO","CAMPO NO HABILITADO","CAMPO NO HABILITADO","CAMPO NO HABILITADO","CAMPO NO HABILITADO","CAMPO NO HABILITADO"]
[null,"CAMPO NO HABILITADO","CAMPO NO HABILITADO","CAMPO NO HABILITADO","CAMPO NO HABILITADO","CAMPO NO HABILITADO","CAMPO NO HABILITADO","CAMPO NO HABILITADO","CAMPO NO HABILITADO","CAMPO NO HABILITADO","CAMPO NO HABILITADO","CAMPO NO HABILITADO","CAMPO NO HABILITADO",null,"CAMPO NO HABILITADO","CAMPO NO HABILITADO","CAMPO NO HABILITADO","CAMPO NO HABILITADO","CAMPO NO HABILITADO","CAMPO NO HABILITADO","CAMPO NO HABILITADO","CAMPO NO HABILITADO","CAMPO NO HABILITADO","CAMPO NO HABILITADO","CAMPO NO HABILITADO","CAMPO NO HABILITADO"]

{"sheet":"Criterio1","index":2,"n_rows":34,"n_cols":214,"rows_kept":34,"cut":false,"hidden":true,"merged":[[25,1,26,12],[25,14,26,25],[1,1,1,25],[3,1,4,12],[3,14,4,25],[14,1,15,12],[14,14,15,25]]}
[]
[null,"Valor por Dinero"]
[]
[null,"Obra Pública Tradicional (OPT)",null,null,null,null,null,null,null,null,null,null,null,null,"OPT (Etapa de Construcción) + APP (Etapa de Operación y Mantenimiento)"]
[]
[]
[]
[]
[]
[]
[]
[null,null,null,null,null,null,null,null,null,null,null,null,null,null,null,null,null,null,null,null,null,null,null,null,null,null,null,null,null,null,null,null,null,null,null,null,null,null,null,null,null,null,null,null,null,null,null,null,null,null,null,null,null,null,null,null,null,null,null,null,null,null,null,null,null,null,null,null,null,null,null,null,null,null,null,null,null,null,null,null,null,null,null,null,null,null,null,null,null,null,null,null,null,null,null,null,null,null,null,null,null,null,null,null,null,null,null,null,null,null,null,null,null,null,null,null,null,null,null,null,null,null,null,null,null,null,null,null,null,null,null,null,null,null,null,null,null,null,null,null,null,null,null,null,null,null,null,null,null,null,null,null,null,null,null,null,null,null,null,null,null,null,null,null,null,null,null,null,null,null,null,null,null,null,null,null,null,null,null,null,null,null,null,null,null,null,null,null,null,null,null,null,null,null,null,null,null,null,null,null,null,null,null,null,null,null,null,null,null,null,null,null,5,{"$f":"IF(HE12<9,10-HE12,IF(HE12=9,1,1/(HE12-8)))","v":5}]
[]
[]
[null,"Obra Pública Tradicional (OPT)",null,null,null,null,null,null,null,null,null,null,null,null,"Asociación Pública-Privada (APP)"]
[]
[]
[]
[]
[]
[]
[]
[null,null,null,null,null,null,null,null,null,null,null,null,null,null,null,null,null,null,null,null,null,null,null,null,null,null,null,null,null,null,null,null,null,null,null,null,null,null,null,null,null,null,null,null,null,null,null,null,null,null,null,null,null,null,null,null,null,null,null,null,null,null,null,null,null,null,null,null,null,null,null,null,null,null,null,null,null,null,null,null,null,null,null,null,null,null,null,null,null,null,null,null,null,null,null,null,null,null,null,null,null,null,null,null,null,null,null,null,null,null,null,null,null,null,null,null,null,null,null,null,null,null,null,null,null,null,null,null,null,null,null,null,null,null,null,null,null,null,null,null,null,null,null,null,null,null,null,null,null,null,null,null,null,null,null,null,null,null,null,null,null,null,null,null,null,null,null,null,null,null,null,null,null,null,null,null,null,null,null,null,null,null,null,null,null,null,null,null,null,null,null,null,null,null,null,null,null,null,null,null,null,null,null,null,null,null,null,null,null,null,null,null,9,{"$f":"IF(HE23<9,10-HE23,IF(HE23=9,1,1/(HE23-8)))","v":1}]
[]
[]
[null,"OPT (Etapa de Construcción) + APP (Etapa de Operación y Mantenimiento)",null,null,null,null,null,null,null,null,null,null,null,null,"Asociación Pública-Privada (APP)"]
[]
[null,"CAMPO NO HABILITADO",null,null,null,null,null,null,null,null,null,null,null,null,"CAMPO NO HABILITADO"]
[]
[]
[]
[]
[]
[null,null,null,null,null,null,null,null,null,null,null,null,null,null,null,null,null,null,null,null,null,null,null,null,null,null,null,null,null,null,null,null,null,null,null,null,null,null,null,null,null,null,null,null,null,null,null,null,null,null,null,null,null,null,null,null,null,null,null,null,null,null,null,null,null,null,null,null,null,null,null,null,null,null,null,null,null,null,null,null,null,null,null,null,null,null,null,null,null,null,null,null,null,null,null,null,null,null,null,null,null,null,null,null,null,null,null,null,null,null,null,null,null,null,null,null,null,null,null,null,null,null,null,null,null,null,null,null,null,null,null,null,null,null,null,null,null,null,null,null,null,null,null,null,null,null,null,null,null,null,null,null,null,null,null,null,null,null,null,null,null,null,null,null,null,null,null,null,null,null,null,null,null,null,null,null,null,null,null,null,null,null,null,null,null,null,null,null,null,null,null,null,null,null,null,null,null,null,null,null,null,null,null,null,null,null,null,null,null,null,null,null,12,{"$f":"IF(HE34<9,10-HE34,IF(HE34=9,1,1/(HE34-8)))","v":0.25}]

{"sheet":"Criterio2","index":3,"n_rows":34,"n_cols":214,"rows_kept":34,"cut":false,"hidden":true,"merged":[[1,1,1,25],[3,14,4,25],[14,1,15,12],[14,14,15,25],[25,1,26,12],[25,14,26,25],[3,1,4,12]]}
[]
[null,"Consideraciones Políticas"]
[]
[null,"Obra Pública Tradicional (OPT)",null,null,null,null,null,null,null,null,null,null,null,null,"OPT (Etapa de Construcción) + APP (Etapa de Operación y Mantenimiento)"]
[]
[]
[]
[]
[]
[]
[]
[null,null,null,null,null,null,null,null,null,null,null,null,null,null,null,null,null,null,null,null,null,null,null,null,null,null,null,null,null,null,null,null,null,null,null,null,null,null,null,null,null,null,null,null,null,null,null,null,null,null,null,null,null,null,null,null,null,null,null,null,null,null,null,null,null,null,null,null,null,null,null,null,null,null,null,null,null,null,null,null,null,null,null,null,null,null,null,null,null,null,null,null,null,null,null,null,null,null,null,null,null,null,null,null,null,null,null,null,null,null,null,null,null,null,null,null,null,null,null,null,null,null,null,null,null,null,null,null,null,null,null,null,null,null,null,null,null,null,null,null,null,null,null,null,null,null,null,null,null,null,null,null,null,null,null,null,null,null,null,null,null,null,null,null,null,null,null,null,null,null,null,null,null,null,null,null,null,null,null,null,null,null,null,null,null,null,null,null,null,null,null,null,null,null,null,null,null,null,null,null,null,null,null,null,null,null,null,null,null,null,null,null,5,{"$f":"IF(HE12<9,10-HE12,IF(HE12=9,1,1/(HE12-8)))","v":5}]
[]
[]
[null,"Obra Pública Tradicional (OPT)",null,null,null,null,null,null,null,null,null,null,null,null,"Asociación Pública-Privada (APP)"]
[]
[]
[]
[]
[]
[]
[]
[null,null,null,null,null,null,null,null,null,null,null,null,null,null,null,null,null,null,null,null,null,null,null,null,null,null,null,null,null,null,null,null,null,null,null,null,null,null,null,null,null,null,null,null,null,null,null,null,null,null,null,null,null,null,null,null,null,null,null,null,null,null,null,null,null,null,null,null,null,null,null,null,null,null,null,null,null,null,null,null,null,null,null,null,null,null,null,null,null,null,null,null,null,null,null,null,null,null,null,null,null,null,null,null,null,null,null,null,null,null,null,null,null,null,null,null,null,null,null,null,null,null,null,null,null,null,null,null,null,null,null,null,null,null,null,null,null,null,null,null,null,null,null,null,null,null,null,null,null,null,null,null,null,null,null,null,null,null,null,null,null,null,null,null,null,null,null,null,null,null,null,null,null,null,null,null,null,null,null,null,null,null,null,null,null,null,null,null,null,null,null,null,null,null,null,null,null,null,null,null,null,null,null,null,null,null,null,null,null,null,null,null,9,{"$f":"IF(HE23<9,10-HE23,IF(HE23=9,1,1/(HE23-8)))","v":1}]
[]
[]
[null,"OPT (Etapa de Construcción) + APP (Etapa de Operación y Mantenimiento)",null,null,null,null,null,null,null,null,null,null,null,null,"Asociación Pública-Privada (APP)"]
[]
[]
[]
[]
[]
[]
[]
[null,null,null,null,null,null,null,null,null,null,null,null,null,null,null,null,null,null,null,null,null,null,null,null,null,null,null,null,null,null,null,null,null,null,null,null,null,null,null,null,null,null,null,null,null,null,null,null,null,null,null,null,null,null,null,null,null,null,null,null,null,null,null,null,null,null,null,null,null,null,null,null,null,null,null,null,null,null,null,null,null,null,null,null,null,null,null,null,null,null,null,null,null,null,null,null,null,null,null,null,null,null,null,null,null,null,null,null,null,null,null,null,null,null,null,null,null,null,null,null,null,null,null,null,null,null,null,null,null,null,null,null,null,null,null,null,null,null,null,null,null,null,null,null,null,null,null,null,null,null,null,null,null,null,null,null,null,null,null,null,null,null,null,null,null,null,null,null,null,null,null,null,null,null,null,null,null,null,null,null,null,null,null,null,null,null,null,null,null,null,null,null,null,null,null,null,null,null,null,null,null,null,null,null,null,null,null,null,null,null,null,null,17,{"$f":"IF(HE34<9,10-HE34,IF(HE34=9,1,1/(HE34-8)))","v":0.1111111111111111}]

{"sheet":"Criterio3","index":4,"n_rows":34,"n_cols":214,"rows_kept":34,"cut":false,"hidden":true,"merged":[[25,1,26,12],[25,14,26,25],[1,1,1,25],[3,1,4,12],[3,14,4,25],[14,1,15,12],[14,14,15,25]]}
[]
[null,"Rápida Disponibilidad del Servicio"]
[]
[null,"Obra Pública Tradicional (OPT)",null,null,null,null,null,null,null,null,null,null,null,null,"OPT (Etapa de Construcción) + APP (Etapa de Operación y Mantenimiento)"]
[]
[]
[]
[]
[]
[]
[]
[null,null,null,null,null,null,null,null,null,null,null,null,null,null,null,null,null,null,null,null,null,null,null,null,null,null,null,null,null,null,null,null,null,null,null,null,null,null,null,null,null,null,null,null,null,null,null,null,null,null,null,null,null,null,null,null,null,null,null,null,null,null,null,null,null,null,null,null,null,null,null,null,null,null,null,null,null,null,null,null,null,null,null,null,null,null,null,null,null,null,null,null,null,null,null,null,null,null,null,null,null,null,null,null,null,null,null,null,null,null,null,null,null,null,null,null,null,null,null,null,null,null,null,null,null,null,null,null,null,null,null,null,null,null,null,null,null,null,null,null,null,null,null,null,null,null,null,null,null,null,null,null,null,null,null,null,null,null,null,null,null,null,null,null,null,null,null,null,null,null,null,null,null,null,null,null,null,null,null,null,null,null,null,null,null,null,null,null,null,null,null,null,null,null,null,null,null,null,null,null,null,null,null,null,null,null,null,null,null,null,null,null,12,{"$f":"IF(HE12<9,10-HE12,IF(HE12=9,1,1/(HE12-8)))","v":0.25}]
[]
[]
[null,"Obra Pública Tradicional (OPT)",null,null,null,null,null,null,null,null,null,null,null,null,"Asociación Pública-Privada (APP)"]
[]
[]
[]
[]
[]
[]
[]
[null,null,null,null,null,null,null,null,null,null,null,null,null,null,null,null,null,null,null,null,null,null,null,null,null,null,null,null,null,null,null,null,null,null,null,null,null,null,null,null,null,null,null,null,null,null,null,null,null,null,null,null,null,null,null,null,null,null,null,null,null,null,null,null,null,null,null,null,null,null,null,null,null,null,null,null,null,null,null,null,null,null,null,null,null,null,null,null,null,null,null,null,null,null,null,null,null,null,null,null,null,null,null,null,null,null,null,null,null,null,null,null,null,null,null,null,null,null,null,null,null,null,null,null,null,null,null,null,null,null,null,null,null,null,null,null,null,null,null,null,null,null,null,null,null,null,null,null,null,null,null,null,null,null,null,null,null,null,null,null,null,null,null,null,null,null,null,null,null,null,null,null,null,null,null,null,null,null,null,null,null,null,null,null,null,null,null,null,null,null,null,null,null,null,null,null,null,null,null,null,null,null,null,null,null,null,null,null,null,null,null,null,6,{"$f":"IF(HE23<9,10-HE23,IF(HE23=9,1,1/(HE23-8)))","v":4}]
[]
[]
[null,"OPT (Etapa de Construcción) + APP (Etapa de Operación y Mantenimiento)",null,null,null,null,null,null,null,null,null,null,null,null,"Asociación Pública-Privada (APP)"]
[]
[]
[null,null,null,null,null,null,null,null,null,null,null,null,null,null,null,null,null,null,null,null,null,null,null,null,null,null,null,{"$f":"Resultados!D8","v":6.6793610598912673E-2}]
[]
[]
[]
[]
[null,null,null,null,null,null,null,null,null,null,null,null,null,null,null,null,null,null,null,null,null,null,null,null,null,null,null,null,null,null,null,null,null,null,null,null,null,null,null,null,null,null,null,null,null,null,null,null,null,null,null,null,null,null,null,null,null,null,null,null,null,null,null,null,null,null,null,null,null,null,null,null,null,null,null,null,null,null,null,null,null,null,null,null,null,null,null,null,null,null,null,null,null,null,null,null,null,null,null,null,null,null,null,null,null,null,null,null,null,null,null,null,null,null,null,null,null,null,null,null,null,null,null,null,null,null,null,null,null,null,null,null,null,null,null,null,null,null,null,null,null,null,null,null,null,null,null,null,null,null,null,null,null,null,null,null,null,null,null,null,null,null,null,null,null,null,null,null,null,null,null,null,null,null,null,null,null,null,null,null,null,null,null,null,null,null,null,null,null,null,null,null,null,null,null,null,null,null,null,null,null,null,null,null,null,null,null,null,null,null,null,null,3,{"$f":"IF(HE34<9,10-HE34,IF(HE34=9,1,1/(HE34-8)))","v":7}]

{"sheet":"Criterio4","index":5,"n_rows":34,"n_cols":214,"rows_kept":34,"cut":false,"hidden":true,"merged":[[25,1,26,12],[25,14,26,25],[1,1,1,25],[3,1,4,12],[3,14,4,25],[14,1,15,12],[14,14,15,25]]}
[]
[null,"Generación de Incentivos para la Innovación Institucional"]
[]
[null,"Obra Pública Tradicional (OPT)",null,null,null,null,null,null,null,null,null,null,null,null,"OPT (Etapa de Construcción) + APP (Etapa de Operación y Mantenimiento)"]
[]
[]
[]
[]
[]
[]
[]
[null,null,null,null,null,null,null,null,null,null,null,null,null,null,null,null,null,null,null,null,null,null,null,null,null,null,null,null,null,null,null,null,null,null,null,null,null,null,null,null,null,null,null,null,null,null,null,null,null,null,null,null,null,null,null,null,null,null,null,null,null,null,null,null,null,null,null,null,null,null,null,null,null,null,null,null,null,null,null,null,null,null,null,null,null,null,null,null,null,null,null,null,null,null,null,null,null,null,null,null,null,null,null,null,null,null,null,null,null,null,null,null,null,null,null,null,null,null,null,null,null,null,null,null,null,null,null,null,null,null,null,null,null,null,null,null,null,null,null,null,null,null,null,null,null,null,null,null,null,null,null,null,null,null,null,null,null,null,null,null,null,null,null,null,null,null,null,null,null,null,null,null,null,null,null,null,null,null,null,null,null,null,null,null,null,null,null,null,null,null,null,null,null,null,null,null,null,null,null,null,null,null,null,null,null,null,null,null,null,null,null,null,10,{"$f":"IF(HE12<9,10-HE12,IF(HE12=9,1,1/(HE12-8)))","v":0.5}]
[]
[]
[null,"Obra Pública Tradicional (OPT)",null,null,null,null,null,null,null,null,null,null,null,null,"Asociación Pública-Privada (APP)"]
[]
[null,null,null,null,null,null,null,null,null,null,null,null,null,null,null,null,null,null,null,null,null,null,null,null,null,null,null,null,{"$f":"Resultados!D9","v":7.938506010665607E-3}]
[]
[]
[]
[]
[]
[null,null,null,null,null,null,null,null,null,null,null,null,null,null,null,null,null,null,null,null,null,null,null,null,null,null,null,null,null,null,null,null,null,null,null,null,null,null,null,null,null,null,null,null,null,null,null,null,null,null,null,null,null,null,null,null,null,null,null,null,null,null,null,null,null,null,null,null,null,null,null,null,null,null,null,null,null,null,null,null,null,null,null,null,null,null,null,null,null,null,null,null,null,null,null,null,null,null,null,null,null,null,null,null,null,null,null,null,null,null,null,null,null,null,null,null,null,null,null,null,null,null,null,null,null,null,null,null,null,null,null,null,null,null,null,null,null,null,null,null,null,null,null,null,null,null,null,null,null,null,null,null,null,null,null,null,null,null,null,null,null,null,null,null,null,null,null,null,null,null,null,null,null,null,null,null,null,null,null,null,null,null,null,null,null,null,null,null,null,null,null,null,null,null,null,null,null,null,null,null,null,null,null,null,null,null,null,null,null,null,null,null,8,{"$f":"IF(HE23<9,10-HE23,IF(HE23=9,1,1/(HE23-8)))","v":2}]
[]
[]
[null,"OPT (Etapa de Construcción) + APP (Etapa de Operación y Mantenimiento)",null,null,null,null,null,null,null,null,null,null,null,null,"Asociación Pública-Privada (APP)"]
[]
[]
[]
[]
[]
[]
[]
[null,null,null,null,null,null,null,null,null,null,null,null,null,null,null,null,null,null,null,null,null,null,null,null,null,null,null,null,null,null,null,null,null,null,null,null,null,null,null,null,null,null,null,null,null,null,null,null,null,null,null,null,null,null,null,null,null,null,null,null,null,null,null,null,null,null,null,null,null,null,null,null,null,null,null,null,null,null,null,null,null,null,null,null,null,null,null,null,null,null,null,null,null,null,null,null,null,null,null,null,null,null,null,null,null,null,null,null,null,null,null,null,null,null,null,null,null,null,null,null,null,null,null,null,null,null,null,null,null,null,null,null,null,null,null,null,null,null,null,null,null,null,null,null,null,null,null,null,null,null,null,null,null,null,null,null,null,null,null,null,null,null,null,null,null,null,null,null,null,null,null,null,null,null,null,null,null,null,null,null,null,null,null,null,null,null,null,null,null,null,null,null,null,null,null,null,null,null,null,null,null,null,null,null,null,null,null,null,null,null,null,null,7,{"$f":"IF(HE34<9,10-HE34,IF(HE34=9,1,1/(HE34-8)))","v":3}]

{"sheet":"Criterio5","index":6,"n_rows":34,"n_cols":214,"rows_kept":34,"cut":false,"hidden":true,"merged":[[25,1,26,12],[25,14,26,25],[1,1,1,25],[3,1,4,12],[3,14,4,25],[14,1,15,12],[14,14,15,25]]}
[]
[null,"Calidad de Servicio"]
[]
[null,"Obra Pública Tradicional (OPT)",null,null,null,null,null,null,null,null,null,null,null,null,"OPT (Etapa de Construcción) + APP (Etapa de Operación y Mantenimiento)"]
[]
[]
[]
[]
[]
[]
[]
[null,null,null,null,null,null,null,null,null,null,null,null,null,null,null,null,null,null,null,null,null,null,null,null,null,null,null,null,null,null,null,null,null,null,null,null,null,null,null,null,null,null,null,null,null,null,null,null,null,null,null,null,null,null,null,null,null,null,null,null,null,null,null,null,null,null,null,null,null,null,null,null,null,null,null,null,null,null,null,null,null,null,null,null,null,null,null,null,null,null,null,null,null,null,null,null,null,null,null,null,null,null,null,null,null,null,null,null,null,null,null,null,null,null,null,null,null,null,null,null,null,null,null,null,null,null,null,null,null,null,null,null,null,null,null,null,null,null,null,null,null,null,null,null,null,null,null,null,null,null,null,null,null,null,null,null,null,null,null,null,null,null,null,null,null,null,null,null,null,null,null,null,null,null,null,null,null,null,null,null,null,null,null,null,null,null,null,null,null,null,null,null,null,null,null,null,null,null,null,null,null,null,null,null,null,null,null,null,null,null,null,null,17,{"$f":"IF(HE12<9,10-HE12,IF(HE12=9,1,1/(HE12-8)))","v":0.1111111111111111}]
[]
[]
[null,"Obra Pública Tradicional (OPT)",null,null,null,null,null,null,null,null,null,null,null,null,"Asociación Pública-Privada (APP)"]
[]
[]
[]
[]
[]
[]
[]
[null,null,null,null,null,null,null,null,null,null,null,null,null,null,null,null,null,null,null,null,null,null,null,null,null,null,null,null,null,null,null,null,null,null,null,null,null,null,null,null,null,null,null,null,null,null,null,null,null,null,null,null,null,null,null,null,null,null,null,null,null,null,null,null,null,null,null,null,null,null,null,null,null,null,null,null,null,null,null,null,null,null,null,null,null,null,null,null,null,null,null,null,null,null,null,null,null,null,null,null,null,null,null,null,null,null,null,null,null,null,null,null,null,null,null,null,null,null,null,null,null,null,null,null,null,null,null,null,null,null,null,null,null,null,null,null,null,null,null,null,null,null,null,null,null,null,null,null,null,null,null,null,null,null,null,null,null,null,null,null,null,null,null,null,null,null,null,null,null,null,null,null,null,null,null,null,null,null,null,null,null,null,null,null,null,null,null,null,null,null,null,null,null,null,null,null,null,null,null,null,null,null,null,null,null,null,null,null,null,null,null,null,14,{"$f":"IF(HE23<9,10-HE23,IF(HE23=9,1,1/(HE23-8)))","v":0.16666666666666666}]
[]
[]
[null,"OPT (Etapa de Construcción) + APP (Etapa de Operación y Mantenimiento)",null,null,null,null,null,null,null,null,null,null,null,null,"Asociación Pública-Privada (APP)"]
[]
[]
[]
[]
[]
[]
[]
[null,null,null,null,null,null,null,null,null,null,null,null,null,null,null,null,null,null,null,null,null,null,null,null,null,null,null,null,null,null,null,null,null,null,null,null,null,null,null,null,null,null,null,null,null,null,null,null,null,null,null,null,null,null,null,null,null,null,null,null,null,null,null,null,null,null,null,null,null,null,null,null,null,null,null,null,null,null,null,null,null,null,null,null,null,null,null,null,null,null,null,null,null,null,null,null,null,null,null,null,null,null,null,null,null,null,null,null,null,null,null,null,null,null,null,null,null,null,null,null,null,null,null,null,null,null,null,null,null,null,null,null,null,null,null,null,null,null,null,null,null,null,null,null,null,null,null,null,null,null,null,null,null,null,null,null,null,null,null,null,null,null,null,null,null,null,null,null,null,null,null,null,null,null,null,null,null,null,null,null,null,null,null,null,null,null,null,null,null,null,null,null,null,null,null,null,null,null,null,null,null,null,null,null,null,null,null,null,null,null,null,null,9,{"$f":"IF(HE34<9,10-HE34,IF(HE34=9,1,1/(HE34-8)))","v":1}]

{"sheet":"Criterio6","index":7,"n_rows":34,"n_cols":214,"rows_kept":34,"cut":false,"hidden":true,"merged":[[25,1,26,12],[25,14,26,25],[1,1,1,25],[3,1,4,12],[3,14,4,25],[14,1,15,12],[14,14,15,25]]}
[]
[null,"Disponibilidad Presupuestaria"]
[]
[null,"Obra Pública Tradicional (OPT)",null,null,null,null,null,null,null,null,null,null,null,null,"OPT (Etapa de Construcción) + APP (Etapa de Operación y Mantenimiento)"]
[]
[]
[]
[]
[]
[]
[]
[null,null,null,null,null,null,null,null,null,null,null,null,null,null,null,null,null,null,null,null,null,null,null,null,null,null,null,null,null,null,null,null,null,null,null,null,null,null,null,null,null,null,null,null,null,null,null,null,null,null,null,null,null,null,null,null,null,null,null,null,null,null,null,null,null,null,null,null,null,null,null,null,null,null,null,null,null,null,null,null,null,null,null,null,null,null,null,null,null,null,null,null,null,null,null,null,null,null,null,null,null,null,null,null,null,null,null,null,null,null,null,null,null,null,null,null,null,null,null,null,null,null,null,null,null,null,null,null,null,null,null,null,null,null,null,null,null,null,null,null,null,null,null,null,null,null,null,null,null,null,null,null,null,null,null,null,null,null,null,null,null,null,null,null,null,null,null,null,null,null,null,null,null,null,null,null,null,null,null,null,null,null,null,null,null,null,null,null,null,null,null,null,null,null,null,null,null,null,null,null,null,null,null,null,null,null,null,null,null,null,null,null,13,{"$f":"IF(HE12<9,10-HE12,IF(HE12=9,1,1/(HE12-8)))","v":0.2}]
[]
[]
[null,"Obra Pública Tradicional (OPT)",null,null,null,null,null,null,null,null,null,null,null,null,"Asociación Pública-Privada (APP)"]
[]
[]
[]
[]
[]
[]
[]
[null,null,null,null,null,null,null,null,null,null,null,null,null,null,null,null,null,null,null,null,null,null,null,null,null,null,null,null,null,null,null,null,null,null,null,null,null,null,null,null,null,null,null,null,null,null,null,null,null,null,null,null,null,null,null,null,null,null,null,null,null,null,null,null,null,null,null,null,null,null,null,null,null,null,null,null,null,null,null,null,null,null,null,null,null,null,null,null,null,null,null,null,null,null,null,null,null,null,null,null,null,null,null,null,null,null,null,null,null,null,null,null,null,null,null,null,null,null,null,null,null,null,null,null,null,null,null,null,null,null,null,null,null,null,null,null,null,null,null,null,null,null,null,null,null,null,null,null,null,null,null,null,null,null,null,null,null,null,null,null,null,null,null,null,null,null,null,null,null,null,null,null,null,null,null,null,null,null,null,null,null,null,null,null,null,null,null,null,null,null,null,null,null,null,null,null,null,null,null,null,null,null,null,null,null,null,null,null,null,null,null,null,11,{"$f":"IF(HE23<9,10-HE23,IF(HE23=9,1,1/(HE23-8)))","v":0.33333333333333331}]
[]
[]
[null,"OPT (Etapa de Construcción) + APP (Etapa de Operación y Mantenimiento)",null,null,null,null,null,null,null,null,null,null,null,null,"Asociación Pública-Privada (APP)"]
[]
[]
[]
[]
[]
[]
[]
[null,null,null,null,null,null,null,null,null,null,null,null,null,null,null,null,null,null,null,null,null,null,null,null,null,null,null,null,null,null,null,null,null,null,null,null,null,null,null,null,null,null,null,null,null,null,null,null,null,null,null,null,null,null,null,null,null,null,null,null,null,null,null,null,null,null,null,null,null,null,null,null,null,null,null,null,null,null,null,null,null,null,null,null,null,null,null,null,null,null,null,null,null,null,null,null,null,null,null,null,null,null,null,null,null,null,null,null,null,null,null,null,null,null,null,null,null,null,null,null,null,null,null,null,null,null,null,null,null,null,null,null,null,null,null,null,null,null,null,null,null,null,null,null,null,null,null,null,null,null,null,null,null,null,null,null,null,null,null,null,null,null,null,null,null,null,null,null,null,null,null,null,null,null,null,null,null,null,null,null,null,null,null,null,null,null,null,null,null,null,null,null,null,null,null,null,null,null,null,null,null,null,null,null,null,null,null,null,null,null,null,null,8,{"$f":"IF(HE34<9,10-HE34,IF(HE34=9,1,1/(HE34-8)))","v":2}]

{"sheet":"Criterio7","index":8,"n_rows":34,"n_cols":214,"rows_kept":34,"cut":false,"hidden":true,"merged":[[25,1,26,12],[25,14,26,25],[1,1,1,25],[3,1,4,12],[3,14,4,25],[14,1,15,12],[14,14,15,25]]}
[]
[null,"Tamaño"]
[]
[null,"Obra Pública Tradicional (OPT)",null,null,null,null,null,null,null,null,null,null,null,null,"OPT (Etapa de Construcción) + APP (Etapa de Operación y Mantenimiento)"]
[]
[]
[]
[]
[]
[]
[]
[null,null,null,null,null,null,null,null,null,null,null,null,null,null,null,null,null,null,null,null,null,null,null,null,null,null,null,null,null,null,null,null,null,null,null,null,null,null,null,null,null,null,null,null,null,null,null,null,null,null,null,null,null,null,null,null,null,null,null,null,null,null,null,null,null,null,null,null,null,null,null,null,null,null,null,null,null,null,null,null,null,null,null,null,null,null,null,null,null,null,null,null,null,null,null,null,null,null,null,null,null,null,null,null,null,null,null,null,null,null,null,null,null,null,null,null,null,null,null,null,null,null,null,null,null,null,null,null,null,null,null,null,null,null,null,null,null,null,null,null,null,null,null,null,null,null,null,null,null,null,null,null,null,null,null,null,null,null,null,null,null,null,null,null,null,null,null,null,null,null,null,null,null,null,null,null,null,null,null,null,null,null,null,null,null,null,null,null,null,null,null,null,null,null,null,null,null,null,null,null,null,null,null,null,null,null,null,null,null,null,null,null,5,{"$f":"IF(HE12<9,10-HE12,IF(HE12=9,1,1/(HE12-8)))","v":5}]
[]
[]
[null,"Obra Pública Tradicional (OPT)",null,null,null,null,null,null,null,null,null,null,null,null,"Asociación Pública-Privada (APP)"]
[]
[]
[]
[]
[]
[]
[]
[null,null,null,null,null,null,null,null,null,null,null,null,null,null,null,null,null,null,null,null,null,null,null,null,null,null,null,null,null,null,null,null,null,null,null,null,null,null,null,null,null,null,null,null,null,null,null,null,null,null,null,null,null,null,null,null,null,null,null,null,null,null,null,null,null,null,null,null,null,null,null,null,null,null,null,null,null,null,null,null,null,null,null,null,null,null,null,null,null,null,null,null,null,null,null,null,null,null,null,null,null,null,null,null,null,null,null,null,null,null,null,null,null,null,null,null,null,null,null,null,null,null,null,null,null,null,null,null,null,null,null,null,null,null,null,null,null,null,null,null,null,null,null,null,null,null,null,null,null,null,null,null,null,null,null,null,null,null,null,null,null,null,null,null,null,null,null,null,null,null,null,null,null,null,null,null,null,null,null,null,null,null,null,null,null,null,null,null,null,null,null,null,null,null,null,null,null,null,null,null,null,null,null,null,null,null,null,null,null,null,null,null,1,{"$f":"IF(HE23<9,10-HE23,IF(HE23=9,1,1/(HE23-8)))","v":9}]
[]
[]
[null,"OPT (Etapa de Construcción) + APP (Etapa de Operación y Mantenimiento)",null,null,null,null,null,null,null,null,null,null,null,null,"Asociación Pública-Privada (APP)"]
[]
[]
[]
[]
[]
[]
[]
[null,null,null,null,null,null,null,null,null,null,null,null,null,null,null,null,null,null,null,null,null,null,null,null,null,null,null,null,null,null,null,null,null,null,null,null,null,null,null,null,null,null,null,null,null,null,null,null,null,null,null,null,null,null,null,null,null,null,null,null,null,null,null,null,null,null,null,null,null,null,null,null,null,null,null,null,null,null,null,null,null,null,null,null,null,null,null,null,null,null,null,null,null,null,null,null,null,null,null,null,null,null,null,null,null,null,null,null,null,null,null,null,null,null,null,null,null,null,null,null,null,null,null,null,null,null,null,null,null,null,null,null,null,null,null,null,null,null,null,null,null,null,null,null,null,null,null,null,null,null,null,null,null,null,null,null,null,null,null,null,null,null,null,null,null,null,null,null,null,null,null,null,null,null,null,null,null,null,null,null,null,null,null,null,null,null,null,null,null,null,null,null,null,null,null,null,null,null,null,null,null,null,null,null,null,null,null,null,null,null,null,null,6,{"$f":"IF(HE34<9,10-HE34,IF(HE34=9,1,1/(HE34-8)))","v":4}]

{"sheet":"Criterio8","index":9,"n_rows":34,"n_cols":214,"rows_kept":34,"cut":false,"hidden":true,"merged":[[25,1,26,12],[25,14,26,25],[1,1,1,25],[3,1,4,12],[3,14,4,25],[14,1,15,12],[14,14,15,25]]}
[]
[null,"Sustentabilidad en el Tiempo"]
[]
[null,"Obra Pública Tradicional (OPT)",null,null,null,null,null,null,null,null,null,null,null,null,"OPT (Etapa de Construcción) + APP (Etapa de Operación y Mantenimiento)"]
[]
[]
[]
[]
[]
[]
[]
[null,null,null,null,null,null,null,null,null,null,null,null,null,null,null,null,null,null,null,null,null,null,null,null,null,null,null,null,null,null,null,null,null,null,null,null,null,null,null,null,null,null,null,null,null,null,null,null,null,null,null,null,null,null,null,null,null,null,null,null,null,null,null,null,null,null,null,null,null,null,null,null,null,null,null,null,null,null,null,null,null,null,null,null,null,null,null,null,null,null,null,null,null,null,null,null,null,null,null,null,null,null,null,null,null,null,null,null,null,null,null,null,null,null,null,null,null,null,null,null,null,null,null,null,null,null,null,null,null,null,null,null,null,null,null,null,null,null,null,null,null,null,null,null,null,null,null,null,null,null,null,null,null,null,null,null,null,null,null,null,null,null,null,null,null,null,null,null,null,null,null,null,null,null,null,null,null,null,null,null,null,null,null,null,null,null,null,null,null,null,null,null,null,null,null,null,null,null,null,null,null,null,null,null,null,null,null,null,null,null,null,null,14,{"$f":"IF(HE12<9,10-HE12,IF(HE12=9,1,1/(HE12-8)))","v":0.16666666666666666}]
[]
[]
[null,"Obra Pública Tradicional (OPT)",null,null,null,null,null,null,null,null,null,null,null,null,"Asociación Pública-Privada (APP)"]
[]
[]
[]
[]
[]
[]
[]
[null,null,null,null,null,null,null,null,null,null,null,null,null,null,null,null,null,null,null,null,null,null,null,null,null,null,null,null,null,null,null,null,null,null,null,null,null,null,null,null,null,null,null,null,null,null,null,null,null,null,null,null,null,null,null,null,null,null,null,null,null,null,null,null,null,null,null,null,null,null,null,null,null,null,null,null,null,null,null,null,null,null,null,null,null,null,null,null,null,null,null,null,null,null,null,null,null,null,null,null,null,null,null,null,null,null,null,null,null,null,null,null,null,null,null,null,null,null,null,null,null,null,null,null,null,null,null,null,null,null,null,null,null,null,null,null,null,null,null,null,null,null,null,null,null,null,null,null,null,null,null,null,null,null,null,null,null,null,null,null,null,null,null,null,null,null,null,null,null,null,null,null,null,null,null,null,null,null,null,null,null,null,null,null,null,null,null,null,null,null,null,null,null,null,null,null,null,null,null,null,null,null,null,null,null,null,null,null,null,null,null,null,7,{"$f":"IF(HE23<9,10-HE23,IF(HE23=9,1,1/(HE23-8)))","v":3}]
[]
[]
[null,"OPT (Etapa de Construcción) + APP (Etapa de Operación y Mantenimiento)",null,null,null,null,null,null,null,null,null,null,null,null,"Asociación Pública-Privada (APP)"]
[]
[]
[]
[]
[]
[]
[]
[null,null,null,null,null,null,null,null,null,null,null,null,null,null,null,null,null,null,null,null,null,null,null,null,null,null,null,null,null,null,null,null,null,null,null,null,null,null,null,null,null,null,null,null,null,null,null,null,null,null,null,null,null,null,null,null,null,null,null,null,null,null,null,null,null,null,null,null,null,null,null,null,null,null,null,null,null,null,null,null,null,null,null,null,null,null,null,null,null,null,null,null,null,null,null,null,null,null,null,null,null,null,null,null,null,null,null,null,null,null,null,null,null,null,null,null,null,null,null,null,null,null,null,null,null,null,null,null,null,null,null,null,null,null,null,null,null,null,null,null,null,null,null,null,null,null,null,null,null,null,null,null,null,null,null,null,null,null,null,null,null,null,null,null,null,null,null,null,null,null,null,null,null,null,null,null,null,null,null,null,null,null,null,null,null,null,null,null,null,null,null,null,null,null,null,null,null,null,null,null,null,null,null,null,null,null,null,null,null,null,null,null,1,{"$f":"IF(HE34<9,10-HE34,IF(HE34=9,1,1/(HE34-8)))","v":9}]

{"sheet":"Criterio9","index":10,"n_rows":34,"n_cols":214,"rows_kept":34,"cut":false,"hidden":true,"merged":[[25,1,26,12],[25,14,26,25],[1,1,1,25],[3,1,4,12],[3,14,4,25],[14,1,15,12],[14,14,15,25]]}
[]
[null,"AAA"]
[]
[null,"Obra Pública Tradicional (OPT)",null,null,null,null,null,null,null,null,null,null,null,null,"OPT (Etapa de Construcción) + APP (Etapa de Operación y Mantenimiento)"]
[]
[]
[]
[]
[]
[]
[]
[null,null,null,null,null,null,null,null,null,null,null,null,null,null,null,null,null,null,null,null,null,null,null,null,null,null,null,null,null,null,null,null,null,null,null,null,null,null,null,null,null,null,null,null,null,null,null,null,null,null,null,null,null,null,null,null,null,null,null,null,null,null,null,null,null,null,null,null,null,null,null,null,null,null,null,null,null,null,null,null,null,null,null,null,null,null,null,null,null,null,null,null,null,null,null,null,null,null,null,null,null,null,null,null,null,null,null,null,null,null,null,null,null,null,null,null,null,null,null,null,null,null,null,null,null,null,null,null,null,null,null,null,null,null,null,null,null,null,null,null,null,null,null,null,null,null,null,null,null,null,null,null,null,null,null,null,null,null,null,null,null,null,null,null,null,null,null,null,null,null,null,null,null,null,null,null,null,null,null,null,null,null,null,null,null,null,null,null,null,null,null,null,null,null,null,null,null,null,null,null,null,null,null,null,null,null,null,null,null,null,null,null,10,{"$f":"IF(HE12<9,10-HE12,IF(HE12=9,1,1/(HE12-8)))","v":0.5}]
[]
[]
[null,"Obra Pública Tradicional (OPT)",null,null,null,null,null,null,null,null,null,null,null,null,"Asociación Pública-Privada (APP)"]
[]
[]
[]
[]
[]
[]
[]
[null,null,null,null,null,null,null,null,null,null,null,null,null,null,null,null,null,null,null,null,null,null,null,null,null,null,null,null,null,null,null,null,null,null,null,null,null,null,null,null,null,null,null,null,null,null,null,null,null,null,null,null,null,null,null,null,null,null,null,null,null,null,null,null,null,null,null,null,null,null,null,null,null,null,null,null,null,null,null,null,null,null,null,null,null,null,null,null,null,null,null,null,null,null,null,null,null,null,null,null,null,null,null,null,null,null,null,null,null,null,null,null,null,null,null,null,null,null,null,null,null,null,null,null,null,null,null,null,null,null,null,null,null,null,null,null,null,null,null,null,null,null,null,null,null,null,null,null,null,null,null,null,null,null,null,null,null,null,null,null,null,null,null,null,null,null,null,null,null,null,null,null,null,null,null,null,null,null,null,null,null,null,null,null,null,null,null,null,null,null,null,null,null,null,null,null,null,null,null,null,null,null,null,null,null,null,null,null,null,null,null,null,9,{"$f":"IF(HE23<9,10-HE23,IF(HE23=9,1,1/(HE23-8)))","v":1}]
[]
[]
[null,"OPT (Etapa de Construcción) + APP (Etapa de Operación y Mantenimiento)",null,null,null,null,null,null,null,null,null,null,null,null,"Asociación Pública-Privada (APP)"]
[]
[]
[]
[]
[]
[]
[]
[null,null,null,null,null,null,null,null,null,null,null,null,null,null,null,null,null,null,null,null,null,null,null,null,null,null,null,null,null,null,null,null,null,null,null,null,null,null,null,null,null,null,null,null,null,null,null,null,null,null,null,null,null,null,null,null,null,null,null,null,null,null,null,null,null,null,null,null,null,null,null,null,null,null,null,null,null,null,null,null,null,null,null,null,null,null,null,null,null,null,null,null,null,null,null,null,null,null,null,null,null,null,null,null,null,null,null,null,null,null,null,null,null,null,null,null,null,null,null,null,null,null,null,null,null,null,null,null,null,null,null,null,null,null,null,null,null,null,null,null,null,null,null,null,null,null,null,null,null,null,null,null,null,null,null,null,null,null,null,null,null,null,null,null,null,null,null,null,null,null,null,null,null,null,null,null,null,null,null,null,null,null,null,null,null,null,null,null,null,null,null,null,null,null,null,null,null,null,null,null,null,null,null,null,null,null,null,null,null,null,null,null,6,{"$f":"IF(HE34<9,10-HE34,IF(HE34=9,1,1/(HE34-8)))","v":4}]

{"sheet":"Criterio10","index":11,"n_rows":34,"n_cols":214,"rows_kept":34,"cut":false,"hidden":true,"merged":[[25,1,26,12],[25,14,26,25],[1,1,1,25],[3,1,4,12],[3,14,4,25],[14,1,15,12],[14,14,15,25]]}
[]
[null,"BBB"]
[]
[null,"Obra Pública Tradicional (OPT)",null,null,null,null,null,null,null,null,null,null,null,null,"OPT (Etapa de Construcción) + APP (Etapa de Operación y Mantenimiento)"]
[]
[]
[]
[]
[]
[]
[]
[null,null,null,null,null,null,null,null,null,null,null,null,null,null,null,null,null,null,null,null,null,null,null,null,null,null,null,null,null,null,null,null,null,null,null,null,null,null,null,null,null,null,null,null,null,null,null,null,null,null,null,null,null,null,null,null,null,null,null,null,null,null,null,null,null,null,null,null,null,null,null,null,null,null,null,null,null,null,null,null,null,null,null,null,null,null,null,null,null,null,null,null,null,null,null,null,null,null,null,null,null,null,null,null,null,null,null,null,null,null,null,null,null,null,null,null,null,null,null,null,null,null,null,null,null,null,null,null,null,null,null,null,null,null,null,null,null,null,null,null,null,null,null,null,null,null,null,null,null,null,null,null,null,null,null,null,null,null,null,null,null,null,null,null,null,null,null,null,null,null,null,null,null,null,null,null,null,null,null,null,null,null,null,null,null,null,null,null,null,null,null,null,null,null,null,null,null,null,null,null,null,null,null,null,null,null,null,null,null,null,null,null,9,{"$f":"IF(HE12<9,10-HE12,IF(HE12=9,1,1/(HE12-8)))","v":1}]
[]
[]
[null,"Obra Pública Tradicional (OPT)",null,null,null,null,null,null,null,null,null,null,null,null,"Asociación Pública-Privada (APP)"]
[]
[]
[]
[]
[]
[]
[]
[null,null,null,null,null,null,null,null,null,null,null,null,null,null,null,null,null,null,null,null,null,null,null,null,null,null,null,null,null,null,null,null,null,null,null,null,null,null,null,null,null,null,null,null,null,null,null,null,null,null,null,null,null,null,null,null,null,null,null,null,null,null,null,null,null,null,null,null,null,null,null,null,null,null,null,null,null,null,null,null,null,null,null,null,null,null,null,null,null,null,null,null,null,null,null,null,null,null,null,null,null,null,null,null,null,null,null,null,null,null,null,null,null,null,null,null,null,null,null,null,null,null,null,null,null,null,null,null,null,null,null,null,null,null,null,null,null,null,null,null,null,null,null,null,null,null,null,null,null,null,null,null,null,null,null,null,null,null,null,null,null,null,null,null,null,null,null,null,null,null,null,null,null,null,null,null,null,null,null,null,null,null,null,null,null,null,null,null,null,null,null,null,null,null,null,null,null,null,null,null,null,null,null,null,null,null,null,null,null,null,null,null,6,{"$f":"IF(HE23<9,10-HE23,IF(HE23=9,1,1/(HE23-8)))","v":4}]
[]
[]
[null,"OPT (Etapa de Construcción) + APP (Etapa de Operación y Mantenimiento)",null,null,null,null,null,null,null,null,null,null,null,null,"Asociación Pública-Privada (APP)"]
[]
[]
[]
[]
[]
[]
[]
[null,null,null,null,null,null,null,null,null,null,null,null,null,null,null,null,null,null,null,null,null,null,null,null,null,null,null,null,null,null,null,null,null,null,null,null,null,null,null,null,null,null,null,null,null,null,null,null,null,null,null,null,null,null,null,null,null,null,null,null,null,null,null,null,null,null,null,null,null,null,null,null,null,null,null,null,null,null,null,null,null,null,null,null,null,null,null,null,null,null,null,null,null,null,null,null,null,null,null,null,null,null,null,null,null,null,null,null,null,null,null,null,null,null,null,null,null,null,null,null,null,null,null,null,null,null,null,null,null,null,null,null,null,null,null,null,null,null,null,null,null,null,null,null,null,null,null,null,null,null,null,null,null,null,null,null,null,null,null,null,null,null,null,null,null,null,null,null,null,null,null,null,null,null,null,null,null,null,null,null,null,null,null,null,null,null,null,null,null,null,null,null,null,null,null,null,null,null,null,null,null,null,null,null,null,null,null,null,null,null,null,null,3,{"$f":"IF(HE34<9,10-HE34,IF(HE34=9,1,1/(HE34-8)))","v":7}]

{"sheet":"Criterios","index":12,"n_rows":509,"n_cols":214,"rows_kept":509,"cut":false,"hidden":false,"merged":[[78,1,79,12],[78,14,79,25],[89,1,90,12],[89,14,90,25],[45,1,46,12],[45,14,46,25],[56,1,57,12],[56,14,57,25],[1,14,2,25],[67,1,68,12],[67,14,68,25],[1,1,2,12],[12,1,13,12],[12,14,13,25],[23,1,24,12],[23,14,24,25],[34,1,35,12],[34,14,35,25],[100,1,101,12],[100,14,101,25],[111,1,112,12],[111,14,112,25],[122,1,123,12],[122,14,123,25],[133,1,134,12],[133,14,134,25],[144,1,145,12],[144,14,145,25],[155,1,156,12],[155,14,156,25],[166,1,167,12],[166,14,167,25],[177,1,178,12],[177,14,178,25],[188,1,189,12],[188,14,189,25],[199,1,200,12],[199,14,200,25],[210,1,211,12],[210,14,211,25],[221,1,222,12],[221,14,222,25],[232,1,233,12],[232,14,233,25],[243,1,244,12],[243,14,244,25],[254,1,255,12],[254,14,255,25],[265,1,266,12],[265,14,266,25],[276,1,277,12],[276,14,277,25],[287,1,288,12],[287,14,288,25],[298,1,299,12],[298,14,299,25],[309,1,310,12],[309,14,310,25],[320,1,321,12],[320,14,321,25],[331,1,332,12],[331,14,332,25],[342,1,343,12],[342,14,343,25],[353,1,354,12],[353,14,354,25],[364,1,365,12],[364,14,365,25],[375,1,376,12],[375,14,376,25],[386,1,387,12],[386,14,387,25],[397,1,398,12],[397,14,398,25],[408,1,409,12],[408,14,409,25],[419,1,420,12],[419,14,420,25],[430,1,431,12],[430,14,431,25],[441,1,442,12],[441,14,442,25],[452,1,453,12],[452,14,453,25],[463,1,464,12],[463,14,464,25],[474,1,475,12],[474,14,475,25],[485,1,486,12],[485,14,486,25]]}
[]
[null,"Valor por Dinero",null,null,null,null,null,null,null,null,null,null,null,null,"Consideraciones Políticas",null,null,null,null,null,null,null,null,null,null,null,null,null,null,null,null,null,null,null,null,null,null,null,null,null,null,null,null,null,null,null,null,null,null,null,null,null,null,null,null,null,null,null,null,null,null,null,null,null,null,null,null,null,null,null,null,null,null,null,null,null,null,null,null,null,null,null,null,null,null,null,null,null,null,null,null,null,null,null,null,null,null,null,null,null,null,null,null,null,null,null,null,null,null,null,null,null,null,null,null,null,null,null,null,null,null,null,null,null,null,null,null,null,null,null,null,null,null,null,null,null,null,null,null,null,null,null,null,null,null,null,null,null,null,null,null,null,null,null,null,null,null,null,null,null,null,null,null,null,null,null,null,null,null,null,null,null,null,null,null,null,null,null,null,null,null,null,null,null,null,null,null,null,null,null,null,null,null,null,null,null,null,null,null,null,null,null,null,null,null,null,null,null,null,null,null,null,10]
[]
[]
[]
[]
[]
[]
[]
[null,null,null,null,null,null,null,null,null,null,null,null,null,null,null,null,null,null,null,null,null,null,null,null,null,null,null,null,null,null,null,null,null,null,null,null,null,null,null,null,null,null,null,null,null,null,null,null,null,null,null,null,null,null,null,null,null,null,null,null,null,null,null,null,null,null,null,null,null,null,null,null,null,null,null,null,null,null,null,null,null,null,null,null,null,null,null,null,null,null,null,null,null,null,null,null,null,null,null,null,null,null,null,null,null,null,null,null,null,null,null,null,null,null,null,null,null,null,null,null,null,null,null,null,null,null,null,null,null,null,null,null,null,null,null,null,null,null,null,null,null,null,null,null,null,null,null,null,null,null,null,null,null,null,null,null,null,null,null,null,null,null,null,null,null,null,null,null,null,null,null,null,null,null,null,null,null,null,null,null,null,null,null,null,null,null,null,null,null,null,null,null,null,null,null,null,null,null,null,null,null,null,null,null,null,null,null,null,null,null,null,1,12,{"$f":"IF(HE10<9,10-HE10,IF(HE10=9,1,1/(HE10-8)))","v":0.25}]
[]
[]
[null,"Valor por Dinero",null,null,null,null,null,null,null,null,null,null,null,null,"Rápida Disponibilidad del Servicio"]
[]
[]
[]
[]
[]
[]
[]
[null,null,null,null,null,null,null,null,null,null,null,null,null,null,null,null,null,null,null,null,null,null,null,null,null,null,null,null,null,null,null,null,null,null,null,null,null,null,null,null,null,null,null,null,null,null,null,null,null,null,null,null,null,null,null,null,null,null,null,null,null,null,null,null,null,null,null,null,null,null,null,null,null,null,null,null,null,null,null,null,null,null,null,null,null,null,null,null,null,null,null,null,null,null,null,null,null,null,null,null,null,null,null,null,null,null,null,null,null,null,null,null,null,null,null,null,null,null,null,null,null,null,null,null,null,null,null,null,null,null,null,null,null,null,null,null,null,null,null,null,null,null,null,null,null,null,null,null,null,null,null,null,null,null,null,null,null,null,null,null,null,null,null,null,null,null,null,null,null,null,null,null,null,null,null,null,null,null,null,null,null,null,null,null,null,null,null,null,null,null,null,null,null,null,null,null,null,null,null,null,null,null,null,null,null,null,null,null,null,null,null,2,9,{"$f":"IF(HE21<9,10-HE21,IF(HE21=9,1,1/(HE21-8)))","v":1}]
[]
[]
[null,"Consideraciones Políticas",null,null,null,null,null,null,null,null,null,null,null,null,"Rápida Disponibilidad del Servicio"]
[]
[]
[]
[]
[]
[]
[]
[null,null,null,null,null,null,null,null,null,null,null,null,null,null,null,null,null,null,null,null,null,null,null,null,null,null,null,null,null,null,null,null,null,null,null,null,null,null,null,null,null,null,null,null,null,null,null,null,null,null,null,null,null,null,null,null,null,null,null,null,null,null,null,null,null,null,null,null,null,null,null,null,null,null,null,null,null,null,null,null,null,null,null,null,null,null,null,null,null,null,null,null,null,null,null,null,null,null,null,null,null,null,null,null,null,null,null,null,null,null,null,null,null,null,null,null,null,null,null,null,null,null,null,null,null,null,null,null,null,null,null,null,null,null,null,null,null,null,null,null,null,null,null,null,null,null,null,null,null,null,null,null,null,null,null,null,null,null,null,null,null,null,null,null,null,null,null,null,null,null,null,null,null,null,null,null,null,null,null,null,null,null,null,null,null,null,null,null,null,null,null,null,null,null,null,null,null,null,null,null,null,null,null,null,null,null,null,null,null,null,null,3,9,{"$f":"IF(HE32<9,10-HE32,IF(HE32=9,1,1/(HE32-8)))","v":1}]
[]
[]
[null,"Valor por Dinero",null,null,null,null,null,null,null,null,null,null,null,null,"Generación de Incentivos para la Innovación Institucional"]
[]
[]
[]
[]
[]
[]
[]
[null,null,null,null,null,null,null,null,null,null,null,null,null,null,null,null,null,null,null,null,null,null,null,null,null,null,null,null,null,null,null,null,null,null,null,null,null,null,null,null,null,null,null,null,null,null,null,null,null,null,null,null,null,null,null,null,null,null,null,null,null,null,null,null,null,null,null,null,null,null,null,null,null,null,null,null,null,null,null,null,null,null,null,null,null,null,null,null,null,null,null,null,null,null,null,null,null,null,null,null,null,null,null,null,null,null,null,null,null,null,null,null,null,null,null,null,null,null,null,null,null,null,null,null,null,null,null,null,null,null,null,null,null,null,null,null,null,null,null,null,null,null,null,null,null,null,null,null,null,null,null,null,null,null,null,null,null,null,null,null,null,null,null,null,null,null,null,null,null,null,null,null,null,null,null,null,null,null,null,null,null,null,null,null,null,null,null,null,null,null,null,null,null,null,null,null,null,null,null,null,null,null,null,null,null,null,null,null,null,null,null,4,7,{"$f":"IF(HE43<9,10-HE43,IF(HE43=9,1,1/(HE43-8)))","v":3}]
[]
[]
[null,"Consideraciones Políticas",null,null,null,null,null,null,null,null,null,null,null,null,"Generación de Incentivos para la Innovación Institucional"]
[]
[]
[]
[]
[]
[]
[]
[null,null,null,null,null,null,null,null,null,null,null,null,null,null,null,null,null,null,null,null,null,null,null,null,null,null,null,null,null,null,null,null,null,null,null,null,null,null,null,null,null,null,null,null,null,null,null,null,null,null,null,null,null,null,null,null,null,null,null,null,null,null,null,null,null,null,null,null,null,null,null,null,null,null,null,null,null,null,null,null,null,null,null,null,null,null,null,null,null,null,null,null,null,null,null,null,null,null,null,null,null,null,null,null,null,null,null,null,null,null,null,null,null,null,null,null,null,null,null,null,null,null,null,null,null,null,null,null,null,null,null,null,null,null,null,null,null,null,null,null,null,null,null,null,null,null,null,null,null,null,null,null,null,null,null,null,null,null,null,null,null,null,null,null,null,null,null,null,null,null,null,null,null,null,null,null,null,null,null,null,null,null,null,null,null,null,null,null,null,null,null,null,null,null,null,null,null,null,null,null,null,null,null,null,null,null,null,null,null,null,null,5,9,{"$f":"IF(HE54<9,10-HE54,IF(HE54=9,1,1/(HE54-8)))","v":1}]
[]
[]
[null,"Rápida Disponibilidad del Servicio",null,null,null,null,null,null,null,null,null,null,null,null,"Generación de Incentivos para la Innovación Institucional"]
[]
[]
[]
[]
[]
[]
[]
[null,null,null,null,null,null,null,null,null,null,null,null,null,null,null,null,null,null,null,null,null,null,null,null,null,null,null,null,null,null,null,null,null,null,null,null,null,null,null,null,null,null,null,null,null,null,null,null,null,null,null,null,null,null,null,null,null,null,null,null,null,null,null,null,null,null,null,null,null,null,null,null,null,null,null,null,null,null,null,null,null,null,null,null,null,null,null,null,null,null,null,null,null,null,null,null,null,null,null,null,null,null,null,null,null,null,null,null,null,null,null,null,null,null,null,null,null,null,null,null,null,null,null,null,null,null,null,null,null,null,null,null,null,null,null,null,null,null,null,null,null,null,null,null,null,null,null,null,null,null,null,null,null,null,null,null,null,null,null,null,null,null,null,null,null,null,null,null,null,null,null,null,null,null,null,null,null,null,null,null,null,null,null,null,null,null,null,null,null,null,null,null,null,null,null,null,null,null,null,null,null,null,null,null,null,null,null,null,null,null,null,6,7,{"$f":"IF(HE65<9,10-HE65,IF(HE65=9,1,1/(HE65-8)))","v":3}]
[]
[]
[null,"Valor por Dinero",null,null,null,null,null,null,null,null,null,null,null,null,"Calidad de Servicio"]
[]
[]
[]
[]
[]
[]
[]
[null,null,null,null,null,null,null,null,null,null,null,null,null,null,null,null,null,null,null,null,null,null,null,null,null,null,null,null,null,null,null,null,null,null,null,null,null,null,null,null,null,null,null,null,null,null,null,null,null,null,null,null,null,null,null,null,null,null,null,null,null,null,null,null,null,null,null,null,null,null,null,null,null,null,null,null,null,null,null,null,null,null,null,null,null,null,null,null,null,null,null,null,null,null,null,null,null,null,null,null,null,null,null,null,null,null,null,null,null,null,null,null,null,null,null,null,null,null,null,null,null,null,null,null,null,null,null,null,null,null,null,null,null,null,null,null,null,null,null,null,null,null,null,null,null,null,null,null,null,null,null,null,null,null,null,null,null,null,null,null,null,null,null,null,null,null,null,null,null,null,null,null,null,null,null,null,null,null,null,null,null,null,null,null,null,null,null,null,null,null,null,null,null,null,null,null,null,null,null,null,null,null,null,null,null,null,null,null,null,null,null,7,8,{"$f":"IF(HE76<9,10-HE76,IF(HE76=9,1,1/(HE76-8)))","v":2}]
[]
[]
[null,"Consideraciones Políticas",null,null,null,null,null,null,null,null,null,null,null,null,"Calidad de Servicio"]
[]
[]
[]
[]
[]
[]
[]
[null,null,null,null,null,null,null,null,null,null,null,null,null,null,null,null,null,null,null,null,null,null,null,null,null,null,null,null,null,null,null,null,null,null,null,null,null,null,null,null,null,null,null,null,null,null,null,null,null,null,null,null,null,null,null,null,null,null,null,null,null,null,null,null,null,null,null,null,null,null,null,null,null,null,null,null,null,null,null,null,null,null,null,null,null,null,null,null,null,null,null,null,null,null,null,null,null,null,null,null,null,null,null,null,null,null,null,null,null,null,null,null,null,null,null,null,null,null,null,null,null,null,null,null,null,null,null,null,null,null,null,null,null,null,null,null,null,null,null,null,null,null,null,null,null,null,null,null,null,null,null,null,null,null,null,null,null,null,null,null,null,null,null,null,null,null,null,null,null,null,null,null,null,null,null,null,null,null,null,null,null,null,null,null,null,null,null,null,null,null,null,null,null,null,null,null,null,null,null,null,null,null,null,null,null,null,null,null,null,null,null,8,8,{"$f":"IF(HE87<9,10-HE87,IF(HE87=9,1,1/(HE87-8)))","v":2}]
[]
[]
[null,"Rápida Disponibilidad del Servicio",null,null,null,null,null,null,null,null,null,null,null,null,"Calidad de Servicio"]
[]
[]
[]
[]
[]
[]
[]
[null,null,null,null,null,null,null,null,null,null,null,null,null,null,null,null,null,null,null,null,null,null,null,null,null,null,null,null,null,null,null,null,null,null,null,null,null,null,null,null,null,null,null,null,null,null,null,null,null,null,null,null,null,null,null,null,null,null,null,null,null,null,null,null,null,null,null,null,null,null,null,null,null,null,null,null,null,null,null,null,null,null,null,null,null,null,null,null,null,null,null,null,null,null,null,null,null,null,null,null,null,null,null,null,null,null,null,null,null,null,null,null,null,null,null,null,null,null,null,null,null,null,null,null,null,null,null,null,null,null,null,null,null,null,null,null,null,null,null,null,null,null,null,null,null,null,null,null,null,null,null,null,null,null,null,null,null,null,null,null,null,null,null,null,null,null,null,null,null,null,null,null,null,null,null,null,null,null,null,null,null,null,null,null,null,null,null,null,null,null,null,null,null,null,null,null,null,null,null,null,null,null,null,null,null,null,null,null,null,null,null,9,6,{"$f":"IF(HE98<9,10-HE98,IF(HE98=9,1,1/(HE98-8)))","v":4}]
[]
[]
[null,"Generación de Incentivos para la Innovación Institucional",null,null,null,null,null,null,null,null,null,null,null,null,"Calidad de Servicio"]
[]
[]
[]
[]
[]
[]
[]
[null,null,null,null,null,null,null,null,null,null,null,null,null,null,null,null,null,null,null,null,null,null,null,null,null,null,null,null,null,null,null,null,null,null,null,null,null,null,null,null,null,null,null,null,null,null,null,null,null,null,null,null,null,null,null,null,null,null,null,null,null,null,null,null,null,null,null,null,null,null,null,null,null,null,null,null,null,null,null,null,null,null,null,null,null,null,null,null,null,null,null,null,null,null,null,null,null,null,null,null,null,null,null,null,null,null,null,null,null,null,null,null,null,null,null,null,null,null,null,null,null,null,null,null,null,null,null,null,null,null,null,null,null,null,null,null,null,null,null,null,null,null,null,null,null,null,null,null,null,null,null,null,null,null,null,null,null,null,null,null,null,null,null,null,null,null,null,null,null,null,null,null,null,null,null,null,null,null,null,null,null,null,null,null,null,null,null,null,null,null,null,null,null,null,null,null,null,null,null,null,null,null,null,null,null,null,null,null,null,null,null,10,8,{"$f":"IF(HE109<9,10-HE109,IF(HE109=9,1,1/(HE109-8)))","v":2}]
[]
[]
[null,"Valor por Dinero",null,null,null,null,null,null,null,null,null,null,null,null,"Disponibilidad Presupuestaria"]
[]
[]
[]
[]
[]
[]
[]
[null,null,null,null,null,null,null,null,null,null,null,null,null,null,null,null,null,null,null,null,null,null,null,null,null,null,null,null,null,null,null,null,null,null,null,null,null,null,null,null,null,null,null,null,null,null,null,null,null,null,null,null,null,null,null,null,null,null,null,null,null,null,null,null,null,null,null,null,null,null,null,null,null,null,null,null,null,null,null,null,null,null,null,null,null,null,null,null,null,null,null,null,null,null,null,null,null,null,null,null,null,null,null,null,null,null,null,null,null,null,null,null,null,null,null,null,null,null,null,null,null,null,null,null,null,null,null,null,null,null,null,null,null,null,null,null,null,null,null,null,null,null,null,null,null,null,null,null,null,null,null,null,null,null,null,null,null,null,null,null,null,null,null,null,null,null,null,null,null,null,null,null,null,null,null,null,null,null,null,null,null,null,null,null,null,null,null,null,null,null,null,null,null,null,null,null,null,null,null,null,null,null,null,null,null,null,null,null,null,null,null,11,6,{"$f":"IF(HE120<9,10-HE120,IF(HE120=9,1,1/(HE120-8)))","v":4}]
[]
[]
[null,"Consideraciones Políticas",null,null,null,null,null,null,null,null,null,null,null,null,"Disponibilidad Presupuestaria"]
[]
[]
[]
[]
[]
[]
[]
[null,null,null,null,null,null,null,null,null,null,null,null,null,null,null,null,null,null,null,null,null,null,null,null,null,null,null,null,null,null,null,null,null,null,null,null,null,null,null,null,null,null,null,null,null,null,null,null,null,null,null,null,null,null,null,null,null,null,null,null,null,null,null,null,null,null,null,null,null,null,null,null,null,null,null,null,null,null,null,null,null,null,null,null,null,null,null,null,null,null,null,null,null,null,null,null,null,null,null,null,null,null,null,null,null,null,null,null,null,null,null,null,null,null,null,null,null,null,null,null,null,null,null,null,null,null,null,null,null,null,null,null,null,null,null,null,null,null,null,null,null,null,null,null,null,null,null,null,null,null,null,null,null,null,null,null,null,null,null,null,null,null,null,null,null,null,null,null,null,null,null,null,null,null,null,null,null,null,null,null,null,null,null,null,null,null,null,null,null,null,null,null,null,null,null,null,null,null,null,null,null,null,null,null,null,null,null,null,null,null,null,12,5,{"$f":"IF(HE131<9,10-HE131,IF(HE131=9,1,1/(HE131-8)))","v":5}]
[]
[]
[null,"Rápida Disponibilidad del Servicio",null,null,null,null,null,null,null,null,null,null,null,null,"Disponibilidad Presupuestaria"]
[]
[]
[]
[]
[]
[]
[]
[null,null,null,null,null,null,null,null,null,null,null,null,null,null,null,null,null,null,null,null,null,null,null,null,null,null,null,null,null,null,null,null,null,null,null,null,null,null,null,null,null,null,null,null,null,null,null,null,null,null,null,null,null,null,null,null,null,null,null,null,null,null,null,null,null,null,null,null,null,null,null,null,null,null,null,null,null,null,null,null,null,null,null,null,null,null,null,null,null,null,null,null,null,null,null,null,null,null,null,null,null,null,null,null,null,null,null,null,null,null,null,null,null,null,null,null,null,null,null,null,null,null,null,null,null,null,null,null,null,null,null,null,null,null,null,null,null,null,null,null,null,null,null,null,null,null,null,null,null,null,null,null,null,null,null,null,null,null,null,null,null,null,null,null,null,null,null,null,null,null,null,null,null,null,null,null,null,null,null,null,null,null,null,null,null,null,null,null,null,null,null,null,null,null,null,null,null,null,null,null,null,null,null,null,null,null,null,null,null,null,null,13,7,{"$f":"IF(HE142<9,10-HE142,IF(HE142=9,1,1/(HE142-8)))","v":3}]
[]
[]
[null,"Generación de Incentivos para la Innovación Institucional",null,null,null,null,null,null,null,null,null,null,null,null,"Disponibilidad Presupuestaria"]
[]
[]
[]
[]
[]
[]
[]
[null,null,null,null,null,null,null,null,null,null,null,null,null,null,null,null,null,null,null,null,null,null,null,null,null,null,null,null,null,null,null,null,null,null,null,null,null,null,null,null,null,null,null,null,null,null,null,null,null,null,null,null,null,null,null,null,null,null,null,null,null,null,null,null,null,null,null,null,null,null,null,null,null,null,null,null,null,null,null,null,null,null,null,null,null,null,null,null,null,null,null,null,null,null,null,null,null,null,null,null,null,null,null,null,null,null,null,null,null,null,null,null,null,null,null,null,null,null,null,null,null,null,null,null,null,null,null,null,null,null,null,null,null,null,null,null,null,null,null,null,null,null,null,null,null,null,null,null,null,null,null,null,null,null,null,null,null,null,null,null,null,null,null,null,null,null,null,null,null,null,null,null,null,null,null,null,null,null,null,null,null,null,null,null,null,null,null,null,null,null,null,null,null,null,null,null,null,null,null,null,null,null,null,null,null,null,null,null,null,null,null,14,6,{"$f":"IF(HE153<9,10-HE153,IF(HE153=9,1,1/(HE153-8)))","v":4}]
[]
[]
[null,"Calidad de Servicio",null,null,null,null,null,null,null,null,null,null,null,null,"Disponibilidad Presupuestaria"]
[]
[]
[]
[]
[]
[]
[]
[null,null,null,null,null,null,null,null,null,null,null,null,null,null,null,null,null,null,null,null,null,null,null,null,null,null,null,null,null,null,null,null,null,null,null,null,null,null,null,null,null,null,null,null,null,null,null,null,null,null,null,null,null,null,null,null,null,null,null,null,null,null,null,null,null,null,null,null,null,null,null,null,null,null,null,null,null,null,null,null,null,null,null,null,null,null,null,null,null,null,null,null,null,null,null,null,null,null,null,null,null,null,null,null,null,null,null,null,null,null,null,null,null,null,null,null,null,null,null,null,null,null,null,null,null,null,null,null,null,null,null,null,null,null,null,null,null,null,null,null,null,null,null,null,null,null,null,null,null,null,null,null,null,null,null,null,null,null,null,null,null,null,null,null,null,null,null,null,null,null,null,null,null,null,null,null,null,null,null,null,null,null,null,null,null,null,null,null,null,null,null,null,null,null,null,null,null,null,null,null,null,null,null,null,null,null,null,null,null,null,null,15,7,{"$f":"IF(HE164<9,10-HE164,IF(HE164=9,1,1/(HE164-8)))","v":3}]
[]
[]
[null,"Valor por Dinero",null,null,null,null,null,null,null,null,null,null,null,null,"Tamaño"]
[]
[]
[]
[]
[]
[]
[]
[null,null,null,null,null,null,null,null,null,null,null,null,null,null,null,null,null,null,null,null,null,null,null,null,null,null,null,null,null,null,null,null,null,null,null,null,null,null,null,null,null,null,null,null,null,null,null,null,null,null,null,null,null,null,null,null,null,null,null,null,null,null,null,null,null,null,null,null,null,null,null,null,null,null,null,null,null,null,null,null,null,null,null,null,null,null,null,null,null,null,null,null,null,null,null,null,null,null,null,null,null,null,null,null,null,null,null,null,null,null,null,null,null,null,null,null,null,null,null,null,null,null,null,null,null,null,null,null,null,null,null,null,null,null,null,null,null,null,null,null,null,null,null,null,null,null,null,null,null,null,null,null,null,null,null,null,null,null,null,null,null,null,null,null,null,null,null,null,null,null,null,null,null,null,null,null,null,null,null,null,null,null,null,null,null,null,null,null,null,null,null,null,null,null,null,null,null,null,null,null,null,null,null,null,null,null,null,null,null,null,null,16,5,{"$f":"IF(HE175<9,10-HE175,IF(HE175=9,1,1/(HE175-8)))","v":5}]
[]
[]
[null,"Consideraciones Políticas",null,null,null,null,null,null,null,null,null,null,null,null,"Tamaño"]
[]
[]
[]
[]
[]
[]
[]
[null,null,null,null,null,null,null,null,null,null,null,null,null,null,null,null,null,null,null,null,null,null,null,null,null,null,null,null,null,null,null,null,null,null,null,null,null,null,null,null,null,null,null,null,null,null,null,null,null,null,null,null,null,null,null,null,null,null,null,null,null,null,null,null,null,null,null,null,null,null,null,null,null,null,null,null,null,null,null,null,null,null,null,null,null,null,null,null,null,null,null,null,null,null,null,null,null,null,null,null,null,null,null,null,null,null,null,null,null,null,null,null,null,null,null,null,null,null,null,null,null,null,null,null,null,null,null,null,null,null,null,null,null,null,null,null,null,null,null,null,null,null,null,null,null,null,null,null,null,null,null,null,null,null,null,null,null,null,null,null,null,null,null,null,null,null,null,null,null,null,null,null,null,null,null,null,null,null,null,null,null,null,null,null,null,null,null,null,null,null,null,null,null,null,null,null,null,null,null,null,null,null,null,null,null,null,null,null,null,null,null,17,4,{"$f":"IF(HE186<9,10-HE186,IF(HE186=9,1,1/(HE186-8)))","v":6}]
[]
[]
[null,"Rápida Disponibilidad del Servicio",null,null,null,null,null,null,null,null,null,null,null,null,"Tamaño"]
[]
[]
[]
[]
[]
[]
[]
[null,null,null,null,null,null,null,null,null,null,null,null,null,null,null,null,null,null,null,null,null,null,null,null,null,null,null,null,null,null,null,null,null,null,null,null,null,null,null,null,null,null,null,null,null,null,null,null,null,null,null,null,null,null,null,null,null,null,null,null,null,null,null,null,null,null,null,null,null,null,null,null,null,null,null,null,null,null,null,null,null,null,null,null,null,null,null,null,null,null,null,null,null,null,null,null,null,null,null,null,null,null,null,null,null,null,null,null,null,null,null,null,null,null,null,null,null,null,null,null,null,null,null,null,null,null,null,null,null,null,null,null,null,null,null,null,null,null,null,null,null,null,null,null,null,null,null,null,null,null,null,null,null,null,null,null,null,null,null,null,null,null,null,null,null,null,null,null,null,null,null,null,null,null,null,null,null,null,null,null,null,null,null,null,null,null,null,null,null,null,null,null,null,null,null,null,null,null,null,null,null,null,null,null,null,null,null,null,null,null,null,18,7,{"$f":"IF(HE197<9,10-HE197,IF(HE197=9,1,1/(HE197-8)))","v":3}]
[]
[]
[null,"Generación de Incentivos para la Innovación Institucional",null,null,null,null,null,null,null,null,null,null,null,null,"Tamaño"]
[]
[]
[]
[]
[]
[]
[]
[null,null,null,null,null,null,null,null,null,null,null,null,null,null,null,null,null,null,null,null,null,null,null,null,null,null,null,null,null,null,null,null,null,null,null,null,null,null,null,null,null,null,null,null,null,null,null,null,null,null,null,null,null,null,null,null,null,null,null,null,null,null,null,null,null,null,null,null,null,null,null,null,null,null,null,null,null,null,null,null,null,null,null,null,null,null,null,null,null,null,null,null,null,null,null,null,null,null,null,null,null,null,null,null,null,null,null,null,null,null,null,null,null,null,null,null,null,null,null,null,null,null,null,null,null,null,null,null,null,null,null,null,null,null,null,null,null,null,null,null,null,null,null,null,null,null,null,null,null,null,null,null,null,null,null,null,null,null,null,null,null,null,null,null,null,null,null,null,null,null,null,null,null,null,null,null,null,null,null,null,null,null,null,null,null,null,null,null,null,null,null,null,null,null,null,null,null,null,null,null,null,null,null,null,null,null,null,null,null,null,null,19,8,{"$f":"IF(HE208<9,10-HE208,IF(HE208=9,1,1/(HE208-8)))","v":2}]
[]
[]
[null,"Calidad de Servicio",null,null,null,null,null,null,null,null,null,null,null,null,"Tamaño"]
[]
[]
[]
[]
[]
[]
[]
[null,null,null,null,null,null,null,null,null,null,null,null,null,null,null,null,null,null,null,null,null,null,null,null,null,null,null,null,null,null,null,null,null,null,null,null,null,null,null,null,null,null,null,null,null,null,null,null,null,null,null,null,null,null,null,null,null,null,null,null,null,null,null,null,null,null,null,null,null,null,null,null,null,null,null,null,null,null,null,null,null,null,null,null,null,null,null,null,null,null,null,null,null,null,null,null,null,null,null,null,null,null,null,null,null,null,null,null,null,null,null,null,null,null,null,null,null,null,null,null,null,null,null,null,null,null,null,null,null,null,null,null,null,null,null,null,null,null,null,null,null,null,null,null,null,null,null,null,null,null,null,null,null,null,null,null,null,null,null,null,null,null,null,null,null,null,null,null,null,null,null,null,null,null,null,null,null,null,null,null,null,null,null,null,null,null,null,null,null,null,null,null,null,null,null,null,null,null,null,null,null,null,null,null,null,null,null,null,null,null,null,20,8,{"$f":"IF(HE219<9,10-HE219,IF(HE219=9,1,1/(HE219-8)))","v":2}]
[]
[]
[null,"Disponibilidad Presupuestaria",null,null,null,null,null,null,null,null,null,null,null,null,"Tamaño"]
[]
[]
[]
[]
[]
[]
[]
[null,null,null,null,null,null,null,null,null,null,null,null,null,null,null,null,null,null,null,null,null,null,null,null,null,null,null,null,null,null,null,null,null,null,null,null,null,null,null,null,null,null,null,null,null,null,null,null,null,null,null,null,null,null,null,null,null,null,null,null,null,null,null,null,null,null,null,null,null,null,null,null,null,null,null,null,null,null,null,null,null,null,null,null,null,null,null,null,null,null,null,null,null,null,null,null,null,null,null,null,null,null,null,null,null,null,null,null,null,null,null,null,null,null,null,null,null,null,null,null,null,null,null,null,null,null,null,null,null,null,null,null,null,null,null,null,null,null,null,null,null,null,null,null,null,null,null,null,null,null,null,null,null,null,null,null,null,null,null,null,null,null,null,null,null,null,null,null,null,null,null,null,null,null,null,null,null,null,null,null,null,null,null,null,null,null,null,null,null,null,null,null,null,null,null,null,null,null,null,null,null,null,null,null,null,null,null,null,null,null,null,21,7,{"$f":"IF(HE230<9,10-HE230,IF(HE230=9,1,1/(HE230-8)))","v":3}]
[]
[]
[null,"Valor por Dinero",null,null,null,null,null,null,null,null,null,null,null,null,"Sustentabilidad en el Tiempo"]
[]
[]
[]
[]
[]
[]
[]
[null,null,null,null,null,null,null,null,null,null,null,null,null,null,null,null,null,null,null,null,null,null,null,null,null,null,null,null,null,null,null,null,null,null,null,null,null,null,null,null,null,null,null,null,null,null,null,null,null,null,null,null,null,null,null,null,null,null,null,null,null,null,null,null,null,null,null,null,null,null,null,null,null,null,null,null,null,null,null,null,null,null,null,null,null,null,null,null,null,null,null,null,null,null,null,null,null,null,null,null,null,null,null,null,null,null,null,null,null,null,null,null,null,null,null,null,null,null,null,null,null,null,null,null,null,null,null,null,null,null,null,null,null,null,null,null,null,null,null,null,null,null,null,null,null,null,null,null,null,null,null,null,null,null,null,null,null,null,null,null,null,null,null,null,null,null,null,null,null,null,null,null,null,null,null,null,null,null,null,null,null,null,null,null,null,null,null,null,null,null,null,null,null,null,null,null,null,null,null,null,null,null,null,null,null,null,null,null,null,null,null,22,4,{"$f":"IF(HE241<9,10-HE241,IF(HE241=9,1,1/(HE241-8)))","v":6}]
[]
[]
[null,"Consideraciones Políticas",null,null,null,null,null,null,null,null,null,null,null,null,"Sustentabilidad en el Tiempo"]
[]
[]
[]
[]
[]
[]
[]
[null,null,null,null,null,null,null,null,null,null,null,null,null,null,null,null,null,null,null,null,null,null,null,null,null,null,null,null,null,null,null,null,null,null,null,null,null,null,null,null,null,null,null,null,null,null,null,null,null,null,null,null,null,null,null,null,null,null,null,null,null,null,null,null,null,null,null,null,null,null,null,null,null,null,null,null,null,null,null,null,null,null,null,null,null,null,null,null,null,null,null,null,null,null,null,null,null,null,null,null,null,null,null,null,null,null,null,null,null,null,null,null,null,null,null,null,null,null,null,null,null,null,null,null,null,null,null,null,null,null,null,null,null,null,null,null,null,null,null,null,null,null,null,null,null,null,null,null,null,null,null,null,null,null,null,null,null,null,null,null,null,null,null,null,null,null,null,null,null,null,null,null,null,null,null,null,null,null,null,null,null,null,null,null,null,null,null,null,null,null,null,null,null,null,null,null,null,null,null,null,null,null,null,null,null,null,null,null,null,null,null,23,4,{"$f":"IF(HE252<9,10-HE252,IF(HE252=9,1,1/(HE252-8)))","v":6}]
[]
[]
[null,"Rápida Disponibilidad del Servicio",null,null,null,null,null,null,null,null,null,null,null,null,"Sustentabilidad en el Tiempo"]
[]
[]
[]
[]
[]
[]
[]
[null,null,null,null,null,null,null,null,null,null,null,null,null,null,null,null,null,null,null,null,null,null,null,null,null,null,null,null,null,null,null,null,null,null,null,null,null,null,null,null,null,null,null,null,null,null,null,null,null,null,null,null,null,null,null,null,null,null,null,null,null,null,null,null,null,null,null,null,null,null,null,null,null,null,null,null,null,null,null,null,null,null,null,null,null,null,null,null,null,null,null,null,null,null,null,null,null,null,null,null,null,null,null,null,null,null,null,null,null,null,null,null,null,null,null,null,null,null,null,null,null,null,null,null,null,null,null,null,null,null,null,null,null,null,null,null,null,null,null,null,null,null,null,null,null,null,null,null,null,null,null,null,null,null,null,null,null,null,null,null,null,null,null,null,null,null,null,null,null,null,null,null,null,null,null,null,null,null,null,null,null,null,null,null,null,null,null,null,null,null,null,null,null,null,null,null,null,null,null,null,null,null,null,null,null,null,null,null,null,null,null,24,3,{"$f":"IF(HE263<9,10-HE263,IF(HE263=9,1,1/(HE263-8)))","v":7}]
[]
[]
[null,"Generación de Incentivos para la Innovación Institucional",null,null,null,null,null,null,null,null,null,null,null,null,"Sustentabilidad en el Tiempo"]
[]
[]
[]
[]
[]
[]
[]
[null,null,null,null,null,null,null,null,null,null,null,null,null,null,null,null,null,null,null,null,null,null,null,null,null,null,null,null,null,null,null,null,null,null,null,null,null,null,null,null,null,null,null,null,null,null,null,null,null,null,null,null,null,null,null,null,null,null,null,null,null,null,null,null,null,null,null,null,null,null,null,null,null,null,null,null,null,null,null,null,null,null,null,null,null,null,null,null,null,null,null,null,null,null,null,null,null,null,null,null,null,null,null,null,null,null,null,null,null,null,null,null,null,null,null,null,null,null,null,null,null,null,null,null,null,null,null,null,null,null,null,null,null,null,null,null,null,null,null,null,null,null,null,null,null,null,null,null,null,null,null,null,null,null,null,null,null,null,null,null,null,null,null,null,null,null,null,null,null,null,null,null,null,null,null,null,null,null,null,null,null,null,null,null,null,null,null,null,null,null,null,null,null,null,null,null,null,null,null,null,null,null,null,null,null,null,null,null,null,null,null,25,7,{"$f":"IF(HE274<9,10-HE274,IF(HE274=9,1,1/(HE274-8)))","v":3}]
[]
[]
[null,"Calidad de Servicio",null,null,null,null,null,null,null,null,null,null,null,null,"Sustentabilidad en el Tiempo"]
[]
[]
[]
[]
[]
[]
[]
[null,null,null,null,null,null,null,null,null,null,null,null,null,null,null,null,null,null,null,null,null,null,null,null,null,null,null,null,null,null,null,null,null,null,null,null,null,null,null,null,null,null,null,null,null,null,null,null,null,null,null,null,null,null,null,null,null,null,null,null,null,null,null,null,null,null,null,null,null,null,null,null,null,null,null,null,null,null,null,null,null,null,null,null,null,null,null,null,null,null,null,null,null,null,null,null,null,null,null,null,null,null,null,null,null,null,null,null,null,null,null,null,null,null,null,null,null,null,null,null,null,null,null,null,null,null,null,null,null,null,null,null,null,null,null,null,null,null,null,null,null,null,null,null,null,null,null,null,null,null,null,null,null,null,null,null,null,null,null,null,null,null,null,null,null,null,null,null,null,null,null,null,null,null,null,null,null,null,null,null,null,null,null,null,null,null,null,null,null,null,null,null,null,null,null,null,null,null,null,null,null,null,null,null,null,null,null,null,null,null,null,26,8,{"$f":"IF(HE285<9,10-HE285,IF(HE285=9,1,1/(HE285-8)))","v":2}]
[]
[]
[null,"Disponibilidad Presupuestaria",null,null,null,null,null,null,null,null,null,null,null,null,"Sustentabilidad en el Tiempo"]
[]
[]
[]
[]
[]
[]
[]
[null,null,null,null,null,null,null,null,null,null,null,null,null,null,null,null,null,null,null,null,null,null,null,null,null,null,null,null,null,null,null,null,null,null,null,null,null,null,null,null,null,null,null,null,null,null,null,null,null,null,null,null,null,null,null,null,null,null,null,null,null,null,null,null,null,null,null,null,null,null,null,null,null,null,null,null,null,null,null,null,null,null,null,null,null,null,null,null,null,null,null,null,null,null,null,null,null,null,null,null,null,null,null,null,null,null,null,null,null,null,null,null,null,null,null,null,null,null,null,null,null,null,null,null,null,null,null,null,null,null,null,null,null,null,null,null,null,null,null,null,null,null,null,null,null,null,null,null,null,null,null,null,null,null,null,null,null,null,null,null,null,null,null,null,null,null,null,null,null,null,null,null,null,null,null,null,null,null,null,null,null,null,null,null,null,null,null,null,null,null,null,null,null,null,null,null,null,null,null,null,null,null,null,null,null,null,null,null,null,null,null,27,8,{"$f":"IF(HE296<9,10-HE296,IF(HE296=9,1,1/(HE296-8)))","v":2}]
[]
[]
[null,"Tamaño",null,null,null,null,null,null,null,null,null,null,null,null,"Sustentabilidad en el Tiempo"]
[]
[]
[]
[]
[]
[]
[]
[null,null,null,null,null,null,null,null,null,null,null,null,null,null,null,null,null,null,null,null,null,null,null,null,null,null,null,null,null,null,null,null,null,null,null,null,null,null,null,null,null,null,null,null,null,null,null,null,null,null,null,null,null,null,null,null,null,null,null,null,null,null,null,null,null,null,null,null,null,null,null,null,null,null,null,null,null,null,null,null,null,null,null,null,null,null,null,null,null,null,null,null,null,null,null,null,null,null,null,null,null,null,null,null,null,null,null,null,null,null,null,null,null,null,null,null,null,null,null,null,null,null,null,null,null,null,null,null,null,null,null,null,null,null,null,null,null,null,null,null,null,null,null,null,null,null,null,null,null,null,null,null,null,null,null,null,null,null,null,null,null,null,null,null,null,null,null,null,null,null,null,null,null,null,null,null,null,null,null,null,null,null,null,null,null,null,null,null,null,null,null,null,null,null,null,null,null,null,null,null,null,null,null,null,null,null,null,null,null,null,null,28,6,{"$f":"IF(HE307<9,10-HE307,IF(HE307=9,1,1/(HE307-8)))","v":4}]
[]
[]
[null,"Valor por Dinero",null,null,null,null,null,null,null,null,null,null,null,null,"AAA"]
[]
[]
[]
[]
[]
[]
[]
[null,null,null,null,null,null,null,null,null,null,null,null,null,null,null,null,null,null,null,null,null,null,null,null,null,null,null,null,null,null,null,null,null,null,null,null,null,null,null,null,null,null,null,null,null,null,null,null,null,null,null,null,null,null,null,null,null,null,null,null,null,null,null,null,null,null,null,null,null,null,null,null,null,null,null,null,null,null,null,null,null,null,null,null,null,null,null,null,null,null,null,null,null,null,null,null,null,null,null,null,null,null,null,null,null,null,null,null,null,null,null,null,null,null,null,null,null,null,null,null,null,null,null,null,null,null,null,null,null,null,null,null,null,null,null,null,null,null,null,null,null,null,null,null,null,null,null,null,null,null,null,null,null,null,null,null,null,null,null,null,null,null,null,null,null,null,null,null,null,null,null,null,null,null,null,null,null,null,null,null,null,null,null,null,null,null,null,null,null,null,null,null,null,null,null,null,null,null,null,null,null,null,null,null,null,null,null,null,null,null,null,29,2,{"$f":"IF(HE318<9,10-HE318,IF(HE318=9,1,1/(HE318-8)))","v":8}]
[]
[]
[null,"Consideraciones Políticas",null,null,null,null,null,null,null,null,null,null,null,null,"AAA"]
[]
[]
[]
[]
[]
[]
[]
[null,null,null,null,null,null,null,null,null,null,null,null,null,null,null,null,null,null,null,null,null,null,null,null,null,null,null,null,null,null,null,null,null,null,null,null,null,null,null,null,null,null,null,null,null,null,null,null,null,null,null,null,null,null,null,null,null,null,null,null,null,null,null,null,null,null,null,null,null,null,null,null,null,null,null,null,null,null,null,null,null,null,null,null,null,null,null,null,null,null,null,null,null,null,null,null,null,null,null,null,null,null,null,null,null,null,null,null,null,null,null,null,null,null,null,null,null,null,null,null,null,null,null,null,null,null,null,null,null,null,null,null,null,null,null,null,null,null,null,null,null,null,null,null,null,null,null,null,null,null,null,null,null,null,null,null,null,null,null,null,null,null,null,null,null,null,null,null,null,null,null,null,null,null,null,null,null,null,null,null,null,null,null,null,null,null,null,null,null,null,null,null,null,null,null,null,null,null,null,null,null,null,null,null,null,null,null,null,null,null,null,30,4,{"$f":"IF(HE329<9,10-HE329,IF(HE329=9,1,1/(HE329-8)))","v":6}]
[]
[]
[null,"Rápida Disponibilidad del Servicio",null,null,null,null,null,null,null,null,null,null,null,null,"AAA"]
[]
[]
[]
[]
[]
[]
[]
[null,null,null,null,null,null,null,null,null,null,null,null,null,null,null,null,null,null,null,null,null,null,null,null,null,null,null,null,null,null,null,null,null,null,null,null,null,null,null,null,null,null,null,null,null,null,null,null,null,null,null,null,null,null,null,null,null,null,null,null,null,null,null,null,null,null,null,null,null,null,null,null,null,null,null,null,null,null,null,null,null,null,null,null,null,null,null,null,null,null,null,null,null,null,null,null,null,null,null,null,null,null,null,null,null,null,null,null,null,null,null,null,null,null,null,null,null,null,null,null,null,null,null,null,null,null,null,null,null,null,null,null,null,null,null,null,null,null,null,null,null,null,null,null,null,null,null,null,null,null,null,null,null,null,null,null,null,null,null,null,null,null,null,null,null,null,null,null,null,null,null,null,null,null,null,null,null,null,null,null,null,null,null,null,null,null,null,null,null,null,null,null,null,null,null,null,null,null,null,null,null,null,null,null,null,null,null,null,null,null,null,31,7,{"$f":"IF(HE340<9,10-HE340,IF(HE340=9,1,1/(HE340-8)))","v":3}]
[]
[]
[null,"Generación de Incentivos para la Innovación Institucional",null,null,null,null,null,null,null,null,null,null,null,null,"AAA"]
[]
[]
[]
[]
[]
[]
[]
[null,null,null,null,null,null,null,null,null,null,null,null,null,null,null,null,null,null,null,null,null,null,null,null,null,null,null,null,null,null,null,null,null,null,null,null,null,null,null,null,null,null,null,null,null,null,null,null,null,null,null,null,null,null,null,null,null,null,null,null,null,null,null,null,null,null,null,null,null,null,null,null,null,null,null,null,null,null,null,null,null,null,null,null,null,null,null,null,null,null,null,null,null,null,null,null,null,null,null,null,null,null,null,null,null,null,null,null,null,null,null,null,null,null,null,null,null,null,null,null,null,null,null,null,null,null,null,null,null,null,null,null,null,null,null,null,null,null,null,null,null,null,null,null,null,null,null,null,null,null,null,null,null,null,null,null,null,null,null,null,null,null,null,null,null,null,null,null,null,null,null,null,null,null,null,null,null,null,null,null,null,null,null,null,null,null,null,null,null,null,null,null,null,null,null,null,null,null,null,null,null,null,null,null,null,null,null,null,null,null,null,32,3,{"$f":"IF(HE351<9,10-HE351,IF(HE351=9,1,1/(HE351-8)))","v":7}]
[]
[]
[null,"Calidad de Servicio",null,null,null,null,null,null,null,null,null,null,null,null,"AAA"]
[]
[]
[]
[]
[]
[]
[]
[null,null,null,null,null,null,null,null,null,null,null,null,null,null,null,null,null,null,null,null,null,null,null,null,null,null,null,null,null,null,null,null,null,null,null,null,null,null,null,null,null,null,null,null,null,null,null,null,null,null,null,null,null,null,null,null,null,null,null,null,null,null,null,null,null,null,null,null,null,null,null,null,null,null,null,null,null,null,null,null,null,null,null,null,null,null,null,null,null,null,null,null,null,null,null,null,null,null,null,null,null,null,null,null,null,null,null,null,null,null,null,null,null,null,null,null,null,null,null,null,null,null,null,null,null,null,null,null,null,null,null,null,null,null,null,null,null,null,null,null,null,null,null,null,null,null,null,null,null,null,null,null,null,null,null,null,null,null,null,null,null,null,null,null,null,null,null,null,null,null,null,null,null,null,null,null,null,null,null,null,null,null,null,null,null,null,null,null,null,null,null,null,null,null,null,null,null,null,null,null,null,null,null,null,null,null,null,null,null,null,null,33,6,{"$f":"IF(HE362<9,10-HE362,IF(HE362=9,1,1/(HE362-8)))","v":4}]
[]
[]
[null,"Disponibilidad Presupuestaria",null,null,null,null,null,null,null,null,null,null,null,null,"AAA"]
[]
[]
[]
[]
[]
[]
[]
[null,null,null,null,null,null,null,null,null,null,null,null,null,null,null,null,null,null,null,null,null,null,null,null,null,null,null,null,null,null,null,null,null,null,null,null,null,null,null,null,null,null,null,null,null,null,null,null,null,null,null,null,null,null,null,null,null,null,null,null,null,null,null,null,null,null,null,null,null,null,null,null,null,null,null,null,null,null,null,null,null,null,null,null,null,null,null,null,null,null,null,null,null,null,null,null,null,null,null,null,null,null,null,null,null,null,null,null,null,null,null,null,null,null,null,null,null,null,null,null,null,null,null,null,null,null,null,null,null,null,null,null,null,null,null,null,null,null,null,null,null,null,null,null,null,null,null,null,null,null,null,null,null,null,null,null,null,null,null,null,null,null,null,null,null,null,null,null,null,null,null,null,null,null,null,null,null,null,null,null,null,null,null,null,null,null,null,null,null,null,null,null,null,null,null,null,null,null,null,null,null,null,null,null,null,null,null,null,null,null,null,34,6,{"$f":"IF(HE373<9,10-HE373,IF(HE373=9,1,1/(HE373-8)))","v":4}]
[]
[]
[null,"Tamaño",null,null,null,null,null,null,null,null,null,null,null,null,"AAA"]
[]
[]
[]
[]
[]
[]
[]
[null,null,null,null,null,null,null,null,null,null,null,null,null,null,null,null,null,null,null,null,null,null,null,null,null,null,null,null,null,null,null,null,null,null,null,null,null,null,null,null,null,null,null,null,null,null,null,null,null,null,null,null,null,null,null,null,null,null,null,null,null,null,null,null,null,null,null,null,null,null,null,null,null,null,null,null,null,null,null,null,null,null,null,null,null,null,null,null,null,null,null,null,null,null,null,null,null,null,null,null,null,null,null,null,null,null,null,null,null,null,null,null,null,null,null,null,null,null,null,null,null,null,null,null,null,null,null,null,null,null,null,null,null,null,null,null,null,null,null,null,null,null,null,null,null,null,null,null,null,null,null,null,null,null,null,null,null,null,null,null,null,null,null,null,null,null,null,null,null,null,null,null,null,null,null,null,null,null,null,null,null,null,null,null,null,null,null,null,null,null,null,null,null,null,null,null,null,null,null,null,null,null,null,null,null,null,null,null,null,null,null,35,7,{"$f":"IF(HE384<9,10-HE384,IF(HE384=9,1,1/(HE384-8)))","v":3}]
[]
[]
[null,"Sustentabilidad en el Tiempo",null,null,null,null,null,null,null,null,null,null,null,null,"AAA"]
[]
[]
[]
[]
[]
[]
[]
[null,null,null,null,null,null,null,null,null,null,null,null,null,null,null,null,null,null,null,null,null,null,null,null,null,null,null,null,null,null,null,null,null,null,null,null,null,null,null,null,null,null,null,null,null,null,null,null,null,null,null,null,null,null,null,null,null,null,null,null,null,null,null,null,null,null,null,null,null,null,null,null,null,null,null,null,null,null,null,null,null,null,null,null,null,null,null,null,null,null,null,null,null,null,null,null,null,null,null,null,null,null,null,null,null,null,null,null,null,null,null,null,null,null,null,null,null,null,null,null,null,null,null,null,null,null,null,null,null,null,null,null,null,null,null,null,null,null,null,null,null,null,null,null,null,null,null,null,null,null,null,null,null,null,null,null,null,null,null,null,null,null,null,null,null,null,null,null,null,null,null,null,null,null,null,null,null,null,null,null,null,null,null,null,null,null,null,null,null,null,null,null,null,null,null,null,null,null,null,null,null,null,null,null,null,null,null,null,null,null,null,36,7,{"$f":"IF(HE395<9,10-HE395,IF(HE395=9,1,1/(HE395-8)))","v":3}]
[]
[]
[null,"Valor por Dinero",null,null,null,null,null,null,null,null,null,null,null,null,"BBB"]
[]
[]
[]
[]
[]
[]
[]
[null,null,null,null,null,null,null,null,null,null,null,null,null,null,null,null,null,null,null,null,null,null,null,null,null,null,null,null,null,null,null,null,null,null,null,null,null,null,null,null,null,null,null,null,null,null,null,null,null,null,null,null,null,null,null,null,null,null,null,null,null,null,null,null,null,null,null,null,null,null,null,null,null,null,null,null,null,null,null,null,null,null,null,null,null,null,null,null,null,null,null,null,null,null,null,null,null,null,null,null,null,null,null,null,null,null,null,null,null,null,null,null,null,null,null,null,null,null,null,null,null,null,null,null,null,null,null,null,null,null,null,null,null,null,null,null,null,null,null,null,null,null,null,null,null,null,null,null,null,null,null,null,null,null,null,null,null,null,null,null,null,null,null,null,null,null,null,null,null,null,null,null,null,null,null,null,null,null,null,null,null,null,null,null,null,null,null,null,null,null,null,null,null,null,null,null,null,null,null,null,null,null,null,null,null,null,null,null,null,null,null,37,6,{"$f":"IF(HE406<9,10-HE406,IF(HE406=9,1,1/(HE406-8)))","v":4}]
[]
[]
[null,"Consideraciones Políticas",null,null,null,null,null,null,null,null,null,null,null,null,"BBB"]
[]
[]
[]
[]
[]
[]
[]
[null,null,null,null,null,null,null,null,null,null,null,null,null,null,null,null,null,null,null,null,null,null,null,null,null,null,null,null,null,null,null,null,null,null,null,null,null,null,null,null,null,null,null,null,null,null,null,null,null,null,null,null,null,null,null,null,null,null,null,null,null,null,null,null,null,null,null,null,null,null,null,null,null,null,null,null,null,null,null,null,null,null,null,null,null,null,null,null,null,null,null,null,null,null,null,null,null,null,null,null,null,null,null,null,null,null,null,null,null,null,null,null,null,null,null,null,null,null,null,null,null,null,null,null,null,null,null,null,null,null,null,null,null,null,null,null,null,null,null,null,null,null,null,null,null,null,null,null,null,null,null,null,null,null,null,null,null,null,null,null,null,null,null,null,null,null,null,null,null,null,null,null,null,null,null,null,null,null,null,null,null,null,null,null,null,null,null,null,null,null,null,null,null,null,null,null,null,null,null,null,null,null,null,null,null,null,null,null,null,null,null,38,4,{"$f":"IF(HE417<9,10-HE417,IF(HE417=9,1,1/(HE417-8)))","v":6}]
[]
[]
[null,"Rápida Disponibilidad del Servicio",null,null,null,null,null,null,null,null,null,null,null,null,"BBB"]
[]
[]
[]
[]
[]
[]
[]
[null,null,null,null,null,null,null,null,null,null,null,null,null,null,null,null,null,null,null,null,null,null,null,null,null,null,null,null,null,null,null,null,null,null,null,null,null,null,null,null,null,null,null,null,null,null,null,null,null,null,null,null,null,null,null,null,null,null,null,null,null,null,null,null,null,null,null,null,null,null,null,null,null,null,null,null,null,null,null,null,null,null,null,null,null,null,null,null,null,null,null,null,null,null,null,null,null,null,null,null,null,null,null,null,null,null,null,null,null,null,null,null,null,null,null,null,null,null,null,null,null,null,null,null,null,null,null,null,null,null,null,null,null,null,null,null,null,null,null,null,null,null,null,null,null,null,null,null,null,null,null,null,null,null,null,null,null,null,null,null,null,null,null,null,null,null,null,null,null,null,null,null,null,null,null,null,null,null,null,null,null,null,null,null,null,null,null,null,null,null,null,null,null,null,null,null,null,null,null,null,null,null,null,null,null,null,null,null,null,null,null,39,6,{"$f":"IF(HE428<9,10-HE428,IF(HE428=9,1,1/(HE428-8)))","v":4}]
[]
[]
[null,"Generación de Incentivos para la Innovación Institucional",null,null,null,null,null,null,null,null,null,null,null,null,"BBB"]
[]
[]
[]
[]
[]
[]
[]
[null,null,null,null,null,null,null,null,null,null,null,null,null,null,null,null,null,null,null,null,null,null,null,null,null,null,null,null,null,null,null,null,null,null,null,null,null,null,null,null,null,null,null,null,null,null,null,null,null,null,null,null,null,null,null,null,null,null,null,null,null,null,null,null,null,null,null,null,null,null,null,null,null,null,null,null,null,null,null,null,null,null,null,null,null,null,null,null,null,null,null,null,null,null,null,null,null,null,null,null,null,null,null,null,null,null,null,null,null,null,null,null,null,null,null,null,null,null,null,null,null,null,null,null,null,null,null,null,null,null,null,null,null,null,null,null,null,null,null,null,null,null,null,null,null,null,null,null,null,null,null,null,null,null,null,null,null,null,null,null,null,null,null,null,null,null,null,null,null,null,null,null,null,null,null,null,null,null,null,null,null,null,null,null,null,null,null,null,null,null,null,null,null,null,null,null,null,null,null,null,null,null,null,null,null,null,null,null,null,null,null,40,7,{"$f":"IF(HE439<9,10-HE439,IF(HE439=9,1,1/(HE439-8)))","v":3}]
[]
[]
[null,"Calidad de Servicio",null,null,null,null,null,null,null,null,null,null,null,null,"BBB"]
[]
[]
[]
[]
[]
[]
[]
[null,null,null,null,null,null,null,null,null,null,null,null,null,null,null,null,null,null,null,null,null,null,null,null,null,null,null,null,null,null,null,null,null,null,null,null,null,null,null,null,null,null,null,null,null,null,null,null,null,null,null,null,null,null,null,null,null,null,null,null,null,null,null,null,null,null,null,null,null,null,null,null,null,null,null,null,null,null,null,null,null,null,null,null,null,null,null,null,null,null,null,null,null,null,null,null,null,null,null,null,null,null,null,null,null,null,null,null,null,null,null,null,null,null,null,null,null,null,null,null,null,null,null,null,null,null,null,null,null,null,null,null,null,null,null,null,null,null,null,null,null,null,null,null,null,null,null,null,null,null,null,null,null,null,null,null,null,null,null,null,null,null,null,null,null,null,null,null,null,null,null,null,null,null,null,null,null,null,null,null,null,null,null,null,null,null,null,null,null,null,null,null,null,null,null,null,null,null,null,null,null,null,null,null,null,null,null,null,null,null,null,41,9,{"$f":"IF(HE450<9,10-HE450,IF(HE450=9,1,1/(HE450-8)))","v":1}]
[]
[]
[null,"Disponibilidad Presupuestaria",null,null,null,null,null,null,null,null,null,null,null,null,"BBB"]
[]
[]
[]
[]
[]
[]
[]
[null,null,null,null,null,null,null,null,null,null,null,null,null,null,null,null,null,null,null,null,null,null,null,null,null,null,null,null,null,null,null,null,null,null,null,null,null,null,null,null,null,null,null,null,null,null,null,null,null,null,null,null,null,null,null,null,null,null,null,null,null,null,null,null,null,null,null,null,null,null,null,null,null,null,null,null,null,null,null,null,null,null,null,null,null,null,null,null,null,null,null,null,null,null,null,null,null,null,null,null,null,null,null,null,null,null,null,null,null,null,null,null,null,null,null,null,null,null,null,null,null,null,null,null,null,null,null,null,null,null,null,null,null,null,null,null,null,null,null,null,null,null,null,null,null,null,null,null,null,null,null,null,null,null,null,null,null,null,null,null,null,null,null,null,null,null,null,null,null,null,null,null,null,null,null,null,null,null,null,null,null,null,null,null,null,null,null,null,null,null,null,null,null,null,null,null,null,null,null,null,null,null,null,null,null,null,null,null,null,null,null,42,12,{"$f":"IF(HE461<9,10-HE461,IF(HE461=9,1,1/(HE461-8)))","v":0.25}]
[]
[]
[null,"Tamaño",null,null,null,null,null,null,null,null,null,null,null,null,"BBB"]
[]
[]
[]
[]
[]
[]
[]
[null,null,null,null,null,null,null,null,null,null,null,null,null,null,null,null,null,null,null,null,null,null,null,null,null,null,null,null,null,null,null,null,null,null,null,null,null,null,null,null,null,null,null,null,null,null,null,null,null,null,null,null,null,null,null,null,null,null,null,null,null,null,null,null,null,null,null,null,null,null,null,null,null,null,null,null,null,null,null,null,null,null,null,null,null,null,null,null,null,null,null,null,null,null,null,null,null,null,null,null,null,null,null,null,null,null,null,null,null,null,null,null,null,null,null,null,null,null,null,null,null,null,null,null,null,null,null,null,null,null,null,null,null,null,null,null,null,null,null,null,null,null,null,null,null,null,null,null,null,null,null,null,null,null,null,null,null,null,null,null,null,null,null,null,null,null,null,null,null,null,null,null,null,null,null,null,null,null,null,null,null,null,null,null,null,null,null,null,null,null,null,null,null,null,null,null,null,null,null,null,null,null,null,null,null,null,null,null,null,null,null,43,8,{"$f":"IF(HE472<9,10-HE472,IF(HE472=9,1,1/(HE472-8)))","v":2}]
[]
[]
[null,"Sustentabilidad en el Tiempo",null,null,null,null,null,null,null,null,null,null,null,null,"BBB"]
[]
[]
[]
[]
[]
[]
[]
[null,null,null,null,null,null,null,null,null,null,null,null,null,null,null,null,null,null,null,null,null,null,null,null,null,null,null,null,null,null,null,null,null,null,null,null,null,null,null,null,null,null,null,null,null,null,null,null,null,null,null,null,null,null,null,null,null,null,null,null,null,null,null,null,null,null,null,null,null,null,null,null,null,null,null,null,null,null,null,null,null,null,null,null,null,null,null,null,null,null,null,null,null,null,null,null,null,null,null,null,null,null,null,null,null,null,null,null,null,null,null,null,null,null,null,null,null,null,null,null,null,null,null,null,null,null,null,null,null,null,null,null,null,null,null,null,null,null,null,null,null,null,null,null,null,null,null,null,null,null,null,null,null,null,null,null,null,null,null,null,null,null,null,null,null,null,null,null,null,null,null,null,null,null,null,null,null,null,null,null,null,null,null,null,null,null,null,null,null,null,null,null,null,null,null,null,null,null,null,null,null,null,null,null,null,null,null,null,null,null,null,44,9,{"$f":"IF(HE483<9,10-HE483,IF(HE483=9,1,1/(HE483-8)))","v":1}]
[]
[]
[null,"AAA",null,null,null,null,null,null,null,null,null,null,null,null,"BBB"]
[]
[]
[]
[]
[]
[]
[]
[null,null,null,null,null,null,null,null,null,null,null,null,null,null,null,null,null,null,null,null,null,null,null,null,null,null,null,null,null,null,null,null,null,null,null,null,null,null,null,null,null,null,null,null,null,null,null,null,null,null,null,null,null,null,null,null,null,null,null,null,null,null,null,null,null,null,null,null,null,null,null,null,null,null,null,null,null,null,null,null,null,null,null,null,null,null,null,null,null,null,null,null,null,null,null,null,null,null,null,null,null,null,null,null,null,null,null,null,null,null,null,null,null,null,null,null,null,null,null,null,null,null,null,null,null,null,null,null,null,null,null,null,null,null,null,null,null,null,null,null,null,null,null,null,null,null,null,null,null,null,null,null,null,null,null,null,null,null,null,null,null,null,null,null,null,null,null,null,null,null,null,null,null,null,null,null,null,null,null,null,null,null,null,null,null,null,null,null,null,null,null,null,null,null,null,null,null,null,null,null,null,null,null,null,null,null,null,null,null,null,null,45,11,{"$f":"IF(HE494<9,10-HE494,IF(HE494=9,1,1/(HE494-8)))","v":0.33333333333333331}]
[]
[]
[]
[]
[]
[]
[]
[]
[]
[]
[]
[]
[]
[null,"CAMPO NO HABILITADO","CAMPO NO HABILITADO","CAMPO NO HABILITADO","CAMPO NO HABILITADO","CAMPO NO HABILITADO","CAMPO NO HABILITADO","CAMPO NO HABILITADO","CAMPO NO HABILITADO","CAMPO NO HABILITADO","CAMPO NO HABILITADO","CAMPO NO HABILITADO","CAMPO NO HABILITADO",null,"CAMPO NO HABILITADO","CAMPO NO HABILITADO","CAMPO NO HABILITADO","CAMPO NO HABILITADO","CAMPO NO HABILITADO","CAMPO NO HABILITADO","CAMPO NO HABILITADO","CAMPO NO HABILITADO","CAMPO NO HABILITADO","CAMPO NO HABILITADO","CAMPO NO HABILITADO","CAMPO NO HABILITADO"]
[null,"CAMPO NO HABILITADO","CAMPO NO HABILITADO","CAMPO NO HABILITADO","CAMPO NO HABILITADO","CAMPO NO HABILITADO","CAMPO NO HABILITADO","CAMPO NO HABILITADO","CAMPO NO HABILITADO","CAMPO NO HABILITADO","CAMPO NO HABILITADO","CAMPO NO HABILITADO","CAMPO NO HABILITADO",null,"CAMPO NO HABILITADO","CAMPO NO HABILITADO","CAMPO NO HABILITADO","CAMPO NO HABILITADO","CAMPO NO HABILITADO","CAMPO NO HABILITADO","CAMPO NO HABILITADO","CAMPO NO HABILITADO","CAMPO NO HABILITADO","CAMPO NO HABILITADO","CAMPO NO HABILITADO","CAMPO NO HABILITADO"]

{"sheet":"Resultados","index":13,"n_rows":25,"n_cols":213,"rows_kept":25,"cut":false,"hidden":false,"merged":[[20,15,20,17],[21,15,21,17],[22,15,22,17],[1,1,1,3],[16,1,16,2],[22,1,22,3],[20,1,20,3],[21,1,21,3],[18,1,19,3]]}
[]
[null,"Consistencia de las Alternativas"]
[]
[null,null,null,"VDC"]
[null,null,null,null,null,null,null,null,null,null,null,null,null,null,null,null,null,null,null,0.84375,0.5625,"","",null,null,0.37080797406476806,6.0335362074818555,null,23.97840160005391]
[null,null,"Criterios 1",4.7738286953652644E-3,null,null,null,null,null,null,null,null,null,null,null,null,null,null,null,"","","","",null,null,"",""]
[null,null,"Criterios 2",3.3346554260818471E-2,null,null,null,null,null,null,null,null,null,null,null,null,null,null,null,"","","","",null,null,"",""]
[null,null,"Criterios 3",6.6793610598912673E-2]
[null,null,"Criterios 4",7.938506010665607E-3]
[null,null,"Criterios 5",1.5804312292677647E-2]
[null,null,"Criterios 6",3.1862831063420509E-3]
[null,null,"Criterios 7",6.2452257409184204E-2]
[null,null,"Criterios 8",4.6895587919844287E-2]
[null,null,"Criterios 9",4.6466554500193068E-2]
[null,null,"Criterios 10",4.5900666826864861E-2]
[]
[null,"Consistencia de los Criterios",null,9.7176999078633225E-2]
[]
[null,"Clasificación de Criterios y Alternativas",null,null,"C1","C2","C3","C4","C5","C6","C7","C8","C9","C10",null,null,null,null,null,null,null,null,null,null,null,null,null,null,null,null,null,null,null,null,null,null,null,null,null,null,null,null,null,null,null,null,null,null,null,null,null,null,null,null,null,null,null,null,null,null,null,null,null,null,null,null,null,null,null,null,null,null,null,null,null,null,null,null,null,null,null,null,null,null,null,null,null,null,null,null,null,null,null,null,null,null,null,null,null,null,null,null,null,null,null,null,null,null,null,null,null,null,null,null,null,null,null,null,null,null,null,null,null,null,null,null,null,null,null,null,null,null,null,null,null,null,null,null,null,null,null,null,null,null,null,null,null,null,null,null,null,null,null,null,null,null,null,null,null,null,null,null,null,null,null,null,null,null,null,null,null,null,null,null,null,null,null,null,null,null,null,null,null,null,null,null,null,null,null,null,null,null,null,null,null,null,null,null,null,null,null,null,null,null,null,null,null,null,null,null,null,null,1]
[null,null,null,null,0.17576081141153491,0.22287632484472186,0.18526727586566366,0.12112407390582672,7.5338215736643205E-2,5.2964266026148552E-2,5.5547092578702252E-2,3.3345511116691977E-2,2.2495342165063634E-2,5.5281086349003215E-2]
[null,{"$f":"Matriz!M22","v":"Obra Pública Tradicional (OPT)"},null,null,0.46632996632996632,0.42052099946836785,0.2344322344322344,0.29725829725829728,6.4018218623481782E-2,0.10958605664488018,0.73518966908797412,0.16585588324718761,0.2341269841269841,0.45555555555555555,0.34257019941819883]
[null,{"$f":"Matriz!M23","v":"OPT (Etapa de Construcción) + APP (Etapa de Operación y Mantenimiento)"},null,null,0.10067340067340068,7.0069112174375336E-2,0.68772893772893784,0.53896103896103897,0.49924089068825905,0.58126361655773418,0.19941888619854722,0.7643660687138949,0.57936507936507942,0.45555555555555555,0.369186065362264,"Alternativa seleccionada"]
[null,{"$f":"Matriz!M24","v":"Asociación Pública-Privada (APP)"},null,null,0.43299663299663299,0.50940988835725676,7.783882783882784E-2,0.16378066378066378,0.43674089068825905,0.30915032679738563,6.5391444713478616E-2,6.9778048038917601E-2,0.18650793650793651,8.8888888888888878E-2,0.28824373521953711]
[]
[null,"Seleccione Gráfico"]

{"sheet":"Matriz","index":14,"n_rows":102,"n_cols":49,"rows_kept":102,"cut":false,"hidden":true,"merged":[[0,45,0,48],[31,0,31,12],[31,14,31,26],[31,28,31,40],[25,0,25,12],[25,14,25,26],[25,28,25,40],[0,0,0,3],[0,5,0,8],[0,10,0,13],[0,15,0,18],[0,20,0,23],[0,25,0,28],[0,30,0,33],[37,14,37,26],[37,28,37,40],[0,35,0,38],[0,40,0,43],[43,0,43,12],[37,0,37,12]]}
["Criterio 1",null,null,null,null,"Criterio 2",null,null,null,null,"Criterio 3",null,null,null,null,"Criterio 4",null,null,null,null,"Criterio 5",null,null,null,null,"Criterio 6",null,null,null,null,"Criterio 7",null,null,null,null,"Criterio 8",null,null,null,null,"Criterio 9",null,null,null,null,"Criterio 10"]
[{"$f":"Entrada!C2","v":3},"A1","A2","A3",null,{"$f":"Entrada!C2","v":3},"A1","A2","A3",null,{"$f":"Entrada!C2","v":3},"A1","A2","A3",null,{"$f":"Entrada!C2","v":3},"A1","A2","A3",null,{"$f":"Entrada!C2","v":3},"A1","A2","A3",null,{"$f":"Entrada!C2","v":3},"A1","A2","A3",null,{"$f":"Entrada!C2","v":3},"A1","A2","A3",null,{"$f":"Entrada!C2","v":3},"A1","A2","A3",null,{"$f":"Entrada!C2","v":3},"A1","A2","A3",null,{"$f":"Entrada!C2","v":3},"A1","A2","A3"]
["A1",1,{"$f":"Criterio1!HF12","v":5},{"$f":"Criterio1!HF23","v":1},null,"A1",1,{"$f":"Criterio2!HF12","v":5},{"$f":"Criterio2!HF23","v":1},null,"A1",1,{"$f":"Criterio3!HF12","v":0.25},{"$f":"Criterio3!HF23","v":4},null,"A1",1,{"$f":"Criterio4!HF12","v":0.5},{"$f":"Criterio4!HF23","v":2},null,"A1",1,{"$f":"Criterio5!HF12","v":0.1111111111111111},{"$f":"Criterio5!HF23","v":0.16666666666666666},null,"A1",1,{"$f":"Criterio6!HF12","v":0.2},{"$f":"Criterio6!HF23","v":0.33333333333333331},null,"A1",1,{"$f":"Criterio7!HF12","v":5},{"$f":"Criterio7!HF23","v":9},null,"A1",1,{"$f":"Criterio8!HF12","v":0.16666666666666666},{"$f":"Criterio8!HF23","v":3},null,"A1",1,{"$f":"Criterio9!HF12","v":0.5},{"$f":"Criterio9!HF23","v":1},null,"A1",1,{"$f":"Criterio10!HF12","v":1},{"$f":"Criterio10!HF23","v":4}]
["A2",{"$f":"1/C3","v":0.2},1,{"$f":"Criterio1!HF34","v":0.25},null,"A2",{"$f":"1/H3","v":0.2},1,{"$f":"Criterio2!HF34","v":0.1111111111111111},null,"A2",{"$f":"1/M3","v":4},1,{"$f":"Criterio3!HF34","v":7},null,"A2",{"$f":"1/R3","v":2},1,{"$f":"Criterio4!HF34","v":3},null,"A2",{"$f":"1/W3","v":9},1,{"$f":"Criterio5!HF34","v":1},null,"A2",{"$f":"1/AB3","v":5},1,{"$f":"Criterio6!HF34","v":2},null,"A2",{"$f":"1/AG3","v":0.2},1,{"$f":"Criterio7!HF34","v":4},null,"A2",{"$f":"1/AL3","v":6},1,{"$f":"Criterio8!HF34","v":9},null,"A2",{"$f":"1/AQ3","v":2},1,{"$f":"Criterio9!HF34","v":4},null,"A2",{"$f":"1/AV3","v":1},1,{"$f":"Criterio10!HF34","v":7}]
["A3",{"$f":"1/D3","v":1},{"$f":"1/D4","v":4},1,null,"A3",{"$f":"1/I3","v":1},{"$f":"1/I4","v":9},1,null,"A3",{"$f":"1/N3","v":0.25},{"$f":"1/N4","v":0.14285714285714285},1,null,"A3",{"$f":"1/S3","v":0.5},{"$f":"1/S4","v":0.33333333333333331},1,null,"A3",{"$f":"1/X3","v":6},{"$f":"1/X4","v":1},1,null,"A3",{"$f":"1/AC3","v":3},{"$f":"1/AC4","v":0.5},1,null,"A3",{"$f":"1/AH3","v":0.1111111111111111},{"$f":"1/AH4","v":0.25},1,null,"A3",{"$f":"1/AM3","v":0.33333333333333331},{"$f":"1/AM4","v":0.1111111111111111},1,null,"A3",{"$f":"1/AR3","v":1},{"$f":"1/AR4","v":0.25},1,null,"A3",{"$f":"1/AW3","v":0.25},{"$f":"1/AW4","v":0.14285714285714285},1]
[]
[4,"C1","C2","C3","C4","C5","C6","C7","C8","C9","C10",null,null,"Suma",{"$f":"IF($A$7=2,SUM(B8:B9),IF($A$7=3,SUM(B8:B10),IF($A$7=4,SUM(B8:B11),IF($A$7=5,SUM(B8:B12),IF($A$7=6,SUM(B8:B13),IF($A$7=7,SUM(B8:B14),IF($A$7=8,SUM(B8:B15),IF($A$7=9,SUM(B8:B16),SUM(B8:B17)))))))))","v":6.333333333333333},{"$f":"IF($A$7=2,SUM(C8:C9),IF($A$7=3,SUM(C8:C10),IF($A$7=4,SUM(C8:C11),IF($A$7=5,SUM(C8:C12),IF($A$7=6,SUM(C8:C13),IF($A$7=7,SUM(C8:C14),IF($A$7=8,SUM(C8:C15),IF($A$7=9,SUM(C8:C16),SUM(C8:C17)))))))))","v":3.25},{"$f":"IF($A$7=2,\"\",IF($A$7=3,SUM(D8:D10),IF($A$7=4,SUM(D8:D11),IF($A$7=5,SUM(D8:D12),IF($A$7=6,SUM(D8:D13),IF($A$7=7,SUM(D8:D14),IF($A$7=8,SUM(D8:D15),IF($A$7=9,SUM(D8:D16),SUM(D8:D17)))))))))","v":3.3333333333333335},{"$f":"IF($A$7=2,\"\",IF($A$7=3,\"\",IF($A$7=4,SUM(E8:E11),IF($A$7=5,SUM(E8:E12),IF($A$7=6,SUM(E8:E13),IF($A$7=7,SUM(E8:E14),IF($A$7=8,SUM(E8:E15),IF($A$7=9,SUM(E8:E16),SUM(E8:E17)))))))))","v":8},{"$f":"IF($A$7=2,\"\",IF($A$7=3,\"\",IF($A$7=4,\"\",IF($A$7=5,SUM(F8:F12),IF($A$7=6,SUM(F8:F13),IF($A$7=7,SUM(F8:F14),IF($A$7=8,SUM(F8:F15),IF($A$7=9,SUM(F8:F16),SUM(F8:F17)))))))))","v":""},{"$f":"IF($A$7=2,\"\",IF($A$7=3,\"\",IF($A$7=4,\"\",IF($A$7=5,\"\",IF($A$7=6,SUM(G8:G13),IF($A$7=7,SUM(G8:G14),IF($A$7=8,SUM(G8:G15),IF($A$7=9,SUM(G8:G16),SUM(G8:G17)))))))))","v":""},{"$f":"IF($A$7=2,\"\",IF($A$7=3,\"\",IF($A$7=4,\"\",IF($A$7=5,\"\",IF($A$7=6,\"\",IF($A$7=7,SUM(H8:H14),IF($A$7=8,SUM(H8:H15),IF($A$7=9,SUM(H8:H16),SUM(H8:H17)))))))))","v":""},{"$f":"IF($A$7=2,\"\",IF($A$7=3,\"\",IF($A$7=4,\"\",IF($A$7=5,\"\",IF($A$7=6,\"\",IF($A$7=7,\"\",IF($A$7=8,SUM(I8:I15),IF($A$7=9,SUM(I8:I16),SUM(I8:I17)))))))))","v":""},{"$f":"IF($A$7=2,\"\",IF($A$7=3,\"\",IF($A$7=4,\"\",IF($A$7=5,\"\",IF($A$7=6,\"\",IF($A$7=7,\"\",IF($A$7=8,\"\",IF($A$7=9,SUM(J8:J16),SUM(J8:J17)))))))))","v":""},{"$f":"IF($A$7=2,\"\",IF($A$7=3,\"\",IF($A$7=4,\"\",IF($A$7=5,\"\",IF($A$7=6,\"\",IF($A$7=7,\"\",IF($A$7=8,\"\",IF($A$7=9,\"\",SUM(K8:K17)))))))))","v":""},null,null,"Promd","Sumpd",null,"Vmáx",{"$f":"IF($A$7=2,AVERAGE(AD8:AD9),IF(A7=3,AVERAGE(AD8:AD10),IF(A7=4,AVERAGE(AD8:AD11),IF(A7=5,AVERAGE(AD8:AD12),IF(A7=6,AVERAGE(AD8:AD13),IF(A7=7,AVERAGE(AD8:AD14),IF(A7=8,AVERAGE(AD8:AD15),IF(A7=9,AVERAGE(AD8:AD16),AVERAGE(AD8:AD17)))))))))","v":4.6307434409630206},null,"IDC",{"$f":"ABS(AE7-A7)/(A7-1)","v":0.2102478136543402},null,null,"Clasificación de Alternativas"]
["C1",1,{"$f":"Criterios!HF10","v":0.25},{"$f":"Criterios!HF21","v":1},{"$f":"Criterios!HF43","v":3},{"$f":"Criterios!HF76","v":2},{"$f":"Criterios!HF120","v":4},{"$f":"Criterios!HF175","v":5},{"$f":"Criterios!HF241","v":6},{"$f":"Criterios!HF318","v":8},{"$f":"Criterios!HF406","v":4},null,null,{"$f":"A8","v":"C1"},{"$f":"B8/$O$7","v":0.15789473684210528},{"$f":"C8/$P$7","v":7.6923076923076927E-2},{"$f":"IF(OR(A7<3,Q7=\"\"),\"\",D8/$Q$7)","v":0.3},{"$f":"IF(OR(A7<4,R7=\"\"),\"\",E8/$R$7)","v":0.375},{"$f":"IF(OR(A7<5,S7=\"\"),\"\",F8/$S$7)","v":""},{"$f":"IF(OR(A7<6,T7=\"\"),\"\",G8/$T$7)","v":""},{"$f":"IF(OR(A7<7,U7=\"\"),\"\",H8/$U$7)","v":""},{"$f":"IF(OR(A7<8,V7=\"\"),\"\",I8/$V$7)","v":""},{"$f":"IF(OR(A7<9,W7=\"\"),\"\",J8/$W$7)","v":""},{"$f":"IF(OR(A7<10,X7=\"\"),\"\",K8/$X$7)","v":""},null,null,{"$f":"IF($A$7=2,AVERAGE(O8:P8),IF($A$7=3,AVERAGE(O8:Q8),IF($A$7=4,AVERAGE(O8:R8),IF($A$7=5,AVERAGE(O8:S8),IF($A$7=6,AVERAGE(O8:T8),IF($A$7=7,AVERAGE(O8:U8),IF($A$7=8,AVERAGE(O8:V8),IF($A$7=9,AVERAGE(O8:W8),AVERAGE(O8:X8)))))))))","v":0.22745445344129556},{"$f":"IF($A$7=2,MMULT(B8:C8,$AA$8:$AA$9),IF($A$7=3,MMULT(B8:D8,$AA$8:$AA$10),IF($A$7=4,MMULT(B8:E8,$AA$8:$AA$11),IF($A$7=5,MMULT(B8:F8,$AA$8:$AA$12),IF(A7=6,MMULT(B8:G8,$AA$8:$AA$13),IF(A7=7,MMULT(B8:H8,$AA$8:$AA$14),IF(A7=8,MMULT(B8:I8,$AA$8:$AA$15),IF(A7=9,MMULT(B8:J8,$AA$8:$AA$16),MMULT(B8:K8,$AA$8:$AA$17)))))))))","v":1.0368610829959515},null,{"$f":"AB8/AA8","v":4.5585437757258873},null,null,"IA",{"$f":"IF(A7=2,0.001,IF(A7=3,0.58,IF(A7=4,0.9,IF(A7=5,1.12,IF(A7=6,1.24,IF(A7=7,1.32,IF(A7=8,1.41,IF(A7=9,1.45,1.49))))))))","v":0.9},null,null,{"$f":"Entrada!C10","v":0}]
["C2",{"$f":"1/C8","v":4},1,{"$f":"Criterios!HF32","v":1},{"$f":"Criterios!HF54","v":1},{"$f":"Criterios!HF87","v":2},{"$f":"Criterios!HF131","v":5},{"$f":"Criterios!HF186","v":6},{"$f":"Criterios!HF252","v":6},{"$f":"Criterios!HF329","v":6},{"$f":"Criterios!HF417","v":6},null,null,{"$f":"A9","v":"C2"},{"$f":"B9/$O$7","v":0.63157894736842113},{"$f":"C9/$P$7","v":0.30769230769230771},{"$f":"IF(OR(A7<3,Q7=\"\"),\"\",D9/$Q$7)","v":0.3},{"$f":"IF(OR(A7<4,R7=\"\"),\"\",E9/$R$7)","v":0.125},{"$f":"IF(OR(A7<5,S7=\"\"),\"\",F9/$S$7)","v":""},{"$f":"IF(OR(A7<6,T7=\"\"),\"\",G9/$T$7)","v":""},{"$f":"IF(OR(A7<7,U7=\"\"),\"\",H9/$U$7)","v":""},{"$f":"IF(OR(A7<8,V7=\"\"),\"\",I9/$V$7)","v":""},{"$f":"IF(OR(A7<9,W7=\"\"),\"\",J9/$W$7)","v":""},{"$f":"IF(OR(A7<10,X7=\"\"),\"\",K9/$X$7)","v":""},null,null,{"$f":"IF($A$7=2,AVERAGE(O9:P9),IF($A$7=3,AVERAGE(O9:Q9),IF($A$7=4,AVERAGE(O9:R9),IF($A$7=5,AVERAGE(O9:S9),IF($A$7=6,AVERAGE(O9:T9),IF($A$7=7,AVERAGE(O9:U9),IF($A$7=8,AVERAGE(O9:V9),IF($A$7=9,AVERAGE(O9:W9),AVERAGE(O9:X9)))))))))","v":0.34106781376518219},{"$f":"IF($A$7=2,MMULT(B9:C9,$AA$8:$AA$9),IF($A$7=3,MMULT(B9:D9,$AA$8:$AA$10),IF($A$7=4,MMULT(B9:E9,$AA$8:$AA$11),IF($A$7=5,MMULT(B9:F9,$AA$8:$AA$12),IF($A$7=6,MMULT(B9:G9,$AA$8:$AA$13),IF($A$7=7,MMULT(B9:H9,$AA$8:$AA$14),IF($A$7=8,MMULT(B9:I9,$AA$8:$AA$15),IF($A$7=9,MMULT(B9:J9,$AA$8:$AA$16),MMULT(B9:K9,$AA$8:$AA$17)))))))))","v":1.6823633603238868},null,{"$f":"AB9/AA9","v":4.9326359522219754},null,null,"VDC",{"$f":"AH7/AH8","v":0.23360868183815578},null,null,{"$f":"Entrada!C11","v":0}]
["C3",{"$f":"1/D8","v":1},{"$f":"1/D9","v":1},1,{"$f":"Criterios!HF65","v":3},{"$f":"Criterios!HF98","v":4},{"$f":"Criterios!HF142","v":3},{"$f":"Criterios!HF197","v":3},{"$f":"Criterios!HF263","v":7},{"$f":"Criterios!HF340","v":3},{"$f":"Criterios!HF428","v":4},null,null,"C3",{"$f":"IF(A7<3,\"\",B10/$O$7)","v":0.15789473684210528},{"$f":"IF(A7<3,\"\",C10/$P$7)","v":0.30769230769230771},{"$f":"IF(OR(A7<3,Q7=\"\"),\"\",D10/$Q$7)","v":0.3},{"$f":"IF(OR(A7<4,R7=\"\"),\"\",E10/$R$7)","v":0.375},{"$f":"IF(OR(A7<5,S7=\"\"),\"\",F10/$S$7)","v":""},{"$f":"IF(OR(A7<6,T7=\"\"),\"\",G10/$T$7)","v":""},{"$f":"IF(OR(A7<7,U7=\"\"),\"\",H10/$U$7)","v":""},{"$f":"IF(OR(A7<8,V7=\"\"),\"\",I10/$V$7)","v":""},{"$f":"IF(OR(A7<9,W7=\"\"),\"\",J10/$W$7)","v":""},{"$f":"IF(OR(A7<10,X7=\"\"),\"\",K10/$X$7)","v":""},null,null,{"$f":"IF($A$7=2,\"\",IF($A$7=3,AVERAGE(O10:Q10),IF($A$7=4,AVERAGE(O10:R10),IF($A$7=5,AVERAGE(O10:S10),IF($A$7=6,AVERAGE(O10:T10),IF($A$7=7,AVERAGE(O10:U10),IF($A$7=8,AVERAGE(O10:V10),IF($A$7=9,AVERAGE(O10:W10),AVERAGE(O10:X10)))))))))","v":0.28514676113360327},{"$f":"IF($A$7=2,\"\",IF($A$7=3,MMULT(B10:D10,$AA$8:$AA$10),IF($A$7=4,MMULT(B10:E10,$AA$8:$AA$11),IF($A$7=5,MMULT(B10:F10,$AA$8:$AA$12),IF($A$7=6,MMULT(B10:G10,$AA$8:$AA$13),IF($A$7=7,MMULT(B10:H10,$AA$8:$AA$14),IF($A$7=8,MMULT(B10:I10,$AA$8:$AA$15),IF($A$7=9,MMULT(B10:J10,$AA$8:$AA$16),MMULT(B10:K10,$AA$8:$AA$17)))))))))","v":1.2926619433198381},null,{"$f":"IF(A7>2,AB10/AA10,\"\")","v":4.5333215014641937},null,null,null,null,null,null,{"$f":"Entrada!C12","v":0}]
["C4",{"$f":"1/E8","v":0.33333333333333331},{"$f":"1/E9","v":1},{"$f":"1/E10","v":0.33333333333333331},1,{"$f":"Criterios!HF109","v":2},{"$f":"Criterios!HF153","v":4},{"$f":"Criterios!HF208","v":2},{"$f":"Criterios!HF274","v":3},{"$f":"Criterios!HF351","v":7},{"$f":"Criterios!HF439","v":3},null,null,"C4",{"$f":"IF(A7<4,\"\",B11/$O$7)","v":5.2631578947368418E-2},{"$f":"IF(A7<4,\"\",C11/$P$7)","v":0.30769230769230771},{"$f":"IF(OR(A7<4,Q7=\"\"),\"\",D11/$Q$7)","v":9.9999999999999992E-2},{"$f":"IF(OR(A7<4,R7=\"\"),\"\",E11/$R$7)","v":0.125},{"$f":"IF(OR(A7<5,S7=\"\"),\"\",F11/$S$7)","v":""},{"$f":"IF(OR(A7<6,T7=\"\"),\"\",G11/$T$7)","v":""},{"$f":"IF(OR(A7<7,U7=\"\"),\"\",H11/$U$7)","v":""},{"$f":"IF(OR(A7<8,V7=\"\"),\"\",I11/$V$7)","v":""},{"$f":"IF(OR(A7<9,W7=\"\"),\"\",J11/$W$7)","v":""},{"$f":"IF(OR(A7<10,X7=\"\"),\"\",K11/$X$7)","v":""},null,null,{"$f":"IF($A$7=2,\"\",IF($A$7=3,\"\",IF($A$7=4,AVERAGE(O11:R11),IF($A$7=5,AVERAGE(O11:S11),IF($A$7=6,AVERAGE(O11:T11),IF($A$7=7,AVERAGE(O11:U11),IF($A$7=8,AVERAGE(O11:V11),IF($A$7=9,AVERAGE(O11:W11),AVERAGE(O11:X11)))))))))","v":0.14633097165991904},{"$f":"IF($A$7=2,\"\",IF($A$7=3,\"\",IF($A$7=4,MMULT(B11:E11,$AA$8:$AA$11),IF($A$7=5,MMULT(B11:F11,$AA$8:$AA$12),IF($A$7=6,MMULT(B11:G11,$AA$8:$AA$13),IF($A$7=7,MMULT(B11:H11,$AA$8:$AA$14),IF($A$7=8,MMULT(B11:I11,$AA$8:$AA$15),IF($A$7=9,MMULT(B11:J11,$AA$8:$AA$16),MMULT(B11:K11,$AA$8:$AA$17)))))))))","v":0.65826585695006745},null,{"$f":"IF(A7>3,AB11/AA11,\"\")","v":4.4984725344400252},null,null,null,null,null,null,{"$f":"Entrada!C13","v":0}]
["C5",{"$f":"1/F8","v":0.5},{"$f":"1/F9","v":0.5},{"$f":"1/F10","v":0.25},{"$f":"1/F11","v":0.5},1,{"$f":"Criterios!HF164","v":3},{"$f":"Criterios!HF219","v":2},{"$f":"Criterios!HF285","v":2},{"$f":"Criterios!HF362","v":4},{"$f":"Criterios!HF450","v":1},null,null,"C5",{"$f":"IF(A7<5,\"\",B12/$O$7)","v":""},{"$f":"IF(A7<5,\"\",C12/$P$7)","v":""},{"$f":"IF(OR(A7<5,Q7=\"\"),\"\",D12/$Q$7)","v":""},{"$f":"IF(OR(A7<5,R7=\"\"),\"\",E12/$R$7)","v":""},{"$f":"IF(OR(A7<5,S7=\"\"),\"\",F12/$S$7)","v":""},{"$f":"IF(OR(A7<6,T7=\"\"),\"\",G12/$T$7)","v":""},{"$f":"IF(OR(A7<7,U7=\"\"),\"\",H12/$U$7)","v":""},{"$f":"IF(OR(A7<8,V7=\"\"),\"\",I12/$V$7)","v":""},{"$f":"IF(OR(A7<9,W7=\"\"),\"\",J12/$W$7)","v":""},{"$f":"IF(OR(A7<10,X7=\"\"),\"\",K12/$X$7)","v":""},null,null,{"$f":"IF($A$7=2,\"\",IF($A$7=3,\"\",IF($A$7=4,\"\",IF($A$7=5,AVERAGE(O12:S12),IF($A$7=6,AVERAGE(O12:T12),IF($A$7=7,AVERAGE(O12:U12),IF($A$7=8,AVERAGE(O12:V12),IF($A$7=9,AVERAGE(O12:W12),AVERAGE(O12:X12)))))))))","v":""},{"$f":"IF($A$7=2,\"\",IF($A$7=3,\"\",IF($A$7=4,\"\",IF($A$7=5,MMULT(B12:F12,$AA$8:$AA$12),IF($A$7=6,MMULT(B12:G12,$AA$8:$AA$13),IF($A$7=7,MMULT(B12:H12,$AA$8:$AA$14),IF($A$7=8,MMULT(B12:I12,$AA$8:$AA$15),IF($A$7=9,MMULT(B12:J12,$AA$8:$AA$16),MMULT(B12:K12,$AA$8:$AA$17)))))))))","v":""},null,{"$f":"IF(A7>4,AB12/AA12,\"\")","v":""},null,null,null,null,null,null,{"$f":"Entrada!C14","v":0}]
["C6",{"$f":"1/G8","v":0.25},{"$f":"1/G9","v":0.2},{"$f":"1/G10","v":0.33333333333333331},{"$f":"1/G11","v":0.25},{"$f":"1/G12","v":0.33333333333333331},1,{"$f":"Criterios!HF230","v":3},{"$f":"Criterios!HF296","v":2},{"$f":"Criterios!HF373","v":4},{"$f":"Criterios!HF461","v":0.25},null,null,"C6",{"$f":"IF(A7<6,\"\",B13/$O$7)","v":""},{"$f":"IF(A7<6,\"\",C13/$P$7)","v":""},{"$f":"IF(OR(A7<6,Q7=\"\"),\"\",D13/$Q$7)","v":""},{"$f":"IF(OR(A7<6,R7=\"\"),\"\",E13/$R$7)","v":""},{"$f":"IF(OR(A7<6,S7=\"\"),\"\",F13/$S$7)","v":""},{"$f":"IF(OR(A7<6,T7=\"\"),\"\",G13/$T$7)","v":""},{"$f":"IF(OR(A7<7,U7=\"\"),\"\",H13/$U$7)","v":""},{"$f":"IF(OR(A7<8,V7=\"\"),\"\",I13/$V$7)","v":""},{"$f":"IF(OR(A7<9,W7=\"\"),\"\",J13/$W$7)","v":""},{"$f":"IF(OR(A7<10,X7=\"\"),\"\",K13/$X$7)","v":""},null,null,{"$f":"IF($A$7=2,\"\",IF($A$7=3,\"\",IF($A$7=4,\"\",IF($A$7=5,\"\",IF($A$7=6,AVERAGE(O13:T13),IF($A$7=7,AVERAGE(O13:U13),IF($A$7=8,AVERAGE(O13:V13),IF($A$7=9,AVERAGE(O13:W13),AVERAGE(O13:X13)))))))))","v":""},{"$f":"IF($A$7=2,\"\",IF($A$7=3,\"\",IF($A$7=4,\"\",IF($A$7=5,\"\",IF($A$7=6,MMULT(B13:G13,$AA$8:$AA$13),IF($A$7=7,MMULT(B13:H13,$AA$8:$AA$14),IF($A$7=8,MMULT(B13:I13,$AA$8:$AA$15),IF($A$7=9,MMULT(B13:J13,$AA$8:$AA$16),MMULT(B13:K13,$AA$8:$AA$17)))))))))","v":""},null,{"$f":"IF(A7>5,AB13/AA13,\"\")","v":""},null,null,null,null,null,null,{"$f":"Entrada!C15","v":0}]
["C7",{"$f":"1/H8","v":0.2},{"$f":"1/H9","v":0.16666666666666666},{"$f":"1/H10","v":0.33333333333333331},{"$f":"1/H11","v":0.5},{"$f":"1/H12","v":0.5},{"$f":"1/H13","v":0.33333333333333331},1,{"$f":"Criterios!HF307","v":4},{"$f":"Criterios!HF384","v":3},{"$f":"Criterios!HF472","v":2},null,null,"C7",{"$f":"IF(A7<7,\"\",B14/$O$7)","v":""},{"$f":"IF(A7<7,\"\",C14/$P$7)","v":""},{"$f":"IF(OR(A7<7,Q7=\"\"),\"\",D14/$Q$7)","v":""},{"$f":"IF(OR(A7<7,R7=\"\"),\"\",E14/$R$7)","v":""},{"$f":"IF(OR(A7<7,S7=\"\"),\"\",F14/$S$7)","v":""},{"$f":"IF(OR(A7<7,T7=\"\"),\"\",G14/$T$7)","v":""},{"$f":"IF(OR(A7<7,U7=\"\"),\"\",H14/$U$7)","v":""},{"$f":"IF(OR(A7<8,V7=\"\"),\"\",I14/$V$7)","v":""},{"$f":"IF(OR(A7<9,Q7=\"\"),\"\",J14/$W$7)","v":""},{"$f":"IF(OR(A7<10,X7=\"\"),\"\",K14/$X$7)","v":""},null,null,{"$f":"IF($A$7=2,\"\",IF($A$7=3,\"\",IF($A$7=4,\"\",IF($A$7=5,\"\",IF($A$7=6,\"\",IF($A$7=7,AVERAGE(O14:U14),IF($A$7=8,AVERAGE(O14:V14),IF($A$7=9,AVERAGE(O14:W14),AVERAGE(O14:X14)))))))))","v":""},{"$f":"IF($A$7=2,\"\",IF($A$7=3,\"\",IF($A$7=4,\"\",IF($A$7=5,\"\",IF($A$7=6,\"\",IF($A$7=7,MMULT(B14:H14,$AA$8:$AA$14),IF($A$7=8,MMULT(B14:I14,$AA$8:$AA$15),IF($A$7=9,MMULT(B14:J14,$AA$8:$AA$16),MMULT(B14:K14,$AA$8:$AA$17)))))))))","v":""},null,{"$f":"IF(A7>6,AB14/AA14,\"\")","v":""},null,null,null,null,null,null,{"$f":"Entrada!C16","v":0}]
["C8",{"$f":"1/I8","v":0.16666666666666666},{"$f":"1/I9","v":0.16666666666666666},{"$f":"1/I10","v":0.14285714285714285},{"$f":"1/I11","v":0.33333333333333331},{"$f":"1/I12","v":0.5},{"$f":"1/I13","v":0.5},{"$f":"1/I14","v":0.25},1,{"$f":"Criterios!HF395","v":3},{"$f":"Criterios!HF483","v":1},null,null,"C8",{"$f":"IF(A7<8,\"\",B15/$O$7)","v":""},{"$f":"IF(A7<8,\"\",C15/$P$7)","v":""},{"$f":"IF(OR(A7<8,Q7=\"\"),\"\",D15/$Q$7)","v":""},{"$f":"IF(OR(A7<8,R7=\"\"),\"\",E15/$R$7)","v":""},{"$f":"IF(OR(A7<8,S7=\"\"),\"\",F15/$S$7)","v":""},{"$f":"IF(OR(A7<8,T7=\"\"),\"\",G15/$T$7)","v":""},{"$f":"IF(OR(A7<8,U7=\"\"),\"\",H15/$U$7)","v":""},{"$f":"IF(OR(A7<8,V7=\"\"),\"\",I15/$V$7)","v":""},{"$f":"IF(OR(A7<9,W7=\"\"),\"\",J15/$W$7)","v":""},{"$f":"IF(OR(A7<10,X7=\"\"),\"\",K15/$X$7)","v":""},null,null,{"$f":"IF($A$7=2,\"\",IF($A$7=3,\"\",IF($A$7=4,\"\",IF($A$7=5,\"\",IF($A$7=6,\"\",IF($A$7=7,\"\",IF($A$7=8,AVERAGE(O15:V15),IF($A$7=9,AVERAGE(O15:W15),AVERAGE(O15:X15)))))))))","v":""},{"$f":"IF($A$7=2,\"\",IF($A$7=3,\"\",IF($A$7=4,\"\",IF($A$7=5,\"\",IF($A$7=6,\"\",IF($A$7=7,\"\",IF($A$7=8,MMULT(B15:I15,$AA$8:$AA$15),IF($A$7=9,MMULT(B15:J15,$AA$8:$AA$16),MMULT(B15:K15,$AA$8:$AA$17)))))))))","v":""},null,{"$f":"IF(A7>7,AB15/AA15,\"\")","v":""},null,null,null,null,null,null,{"$f":"Entrada!C17","v":0}]
["C9",{"$f":"1/J8","v":0.125},{"$f":"1/J9","v":0.16666666666666666},{"$f":"1/J10","v":0.33333333333333331},{"$f":"1/J11","v":0.14285714285714285},{"$f":"1/J12","v":0.25},{"$f":"1/J13","v":0.25},{"$f":"1/J14","v":0.33333333333333331},{"$f":"1/J15","v":0.33333333333333331},1,{"$f":"Criterios!HF494","v":0.33333333333333331},null,null,"C9",{"$f":"IF(A7<9,\"\",B16/$O$7)","v":""},{"$f":"IF(A7<9,\"\",C16/$P$7)","v":""},{"$f":"IF(OR(A7<9,Q7=\"\"),\"\",D16/$Q$7)","v":""},{"$f":"IF(OR(A7<9,R7=\"\"),\"\",E16/$R$7)","v":""},{"$f":"IF(OR(A7<9,S7=\"\"),\"\",F16/$S$7)","v":""},{"$f":"IF(OR(A7<9,T7=\"\"),\"\",G16/$T$7)","v":""},{"$f":"IF(OR(A7<9,U7=\"\"),\"\",H16/$U$7)","v":""},{"$f":"IF(OR(A7<9,V7=\"\"),\"\",I16/$V$7)","v":""},{"$f":"IF(OR(A7<9,W7=\"\"),\"\",J16/$W$7)","v":""},{"$f":"IF(OR(A7<10,X7=\"\"),\"\",K16/$X$7)","v":""},null,null,{"$f":"IF($A$7=2,\"\",IF($A$7=3,\"\",IF($A$7=4,\"\",IF($A$7=5,\"\",IF($A$7=6,\"\",IF($A$7=7,\"\",IF($A$7=8,\"\",IF($A$7=9,AVERAGE(O16:W16),AVERAGE(O16:X16)))))))))","v":""},{"$f":"IF($A$7=2,\"\",IF($A$7=3,\"\",IF($A$7=4,\"\",IF($A$7=5,\"\",IF($A$7=6,\"\",IF($A$7=7,\"\",IF($A$7=8,\"\",IF($A$7=9,MMULT(B16:J16,$AA$8:$AA$16),MMULT(B16:K16,$AA$8:$AA$17)))))))))","v":""},null,{"$f":"IF(A7>8,AB16/AA16,\"\")","v":""},null,null,null,null,null,null,{"$f":"IF(Entrada!C18=\"\",\"\",Entrada!C18)","v":""}]
["C10",{"$f":"1/K8","v":0.25},{"$f":"1/K9","v":0.16666666666666666},{"$f":"1/K10","v":0.25},{"$f":"1/K11","v":0.33333333333333331},{"$f":"1/K12","v":1},{"$f":"1/K13","v":4},{"$f":"1/K14","v":0.5},{"$f":"1/K15","v":1},{"$f":"1/K16","v":3},1,null,null,"C10",{"$f":"IF(A7<10,\"\",B17/$O$7)","v":""},{"$f":"IF(A7<10,\"\",C17/$P$7)","v":""},{"$f":"IF(OR(A7<10,Q7=\"\"),\"\",D17/$Q$7)","v":""},{"$f":"IF(OR(A7<10,R7=\"\"),\"\",E17/$R$7)","v":""},{"$f":"IF(OR(A7<10,S7=\"\"),\"\",F17/$S$7)","v":""},{"$f":"IF(OR(A7<10,T7=\"\"),\"\",G17/$T$7)","v":""},{"$f":"IF(OR(A7<10,U7=\"\"),\"\",H17/$U$7)","v":""},{"$f":"IF(OR(A7<10,V7=\"\"),\"\",I17/$V$7)","v":""},{"$f":"IF(OR(A7<10,W7=\"\"),\"\",J17/$W$7)","v":""},{"$f":"IF(OR(A7<10,X7=\"\"),\"\",K17/$X$7)","v":""},null,null,{"$f":"IF($A$7=2,\"\",IF($A$7=3,\"\",IF($A$7=4,\"\",IF($A$7=5,\"\",IF($A$7=6,\"\",IF($A$7=7,\"\",IF($A$7=8,\"\",IF($A$7=9,\"\",AVERAGE(O17:X17)))))))))","v":""},{"$f":"IF($A$7=2,\"\",IF($A$7=3,\"\",IF($A$7=4,\"\",IF($A$7=5,\"\",IF($A$7=6,\"\",IF($A$7=7,\"\",IF($A$7=8,\"\",IF($A$7=9,\"\",MMULT(B17:K17,$AA$8:$AA$17)))))))))","v":""},null,{"$f":"IF(A7>9,AB17/AA17,\"\")","v":""},null,null,null,null,null,null,{"$f":"IF(Entrada!C19=\"\",\"\",Entrada!C19)","v":""}]
[]
[1,2,3,4,5,6,7,8,9,10,11,12,13,14,15,16,17,18,19,20,21,22,23,24,25]
[null,null,null,null,null,null,null,null,null,null,null,null,null,null,"C1","C2","C3","C4","C5","C6","C7","C8","C9","C10"]
[null,null,null,null,null,null,null,null,null,null,null,null,null,null,{"$f":"AA8","v":0.22745445344129556},{"$f":"AA9","v":0.34106781376518219},{"$f":"IF(AA10=\"\",\"\",AA10)","v":0.28514676113360327},{"$f":"IF(AA11=\"\",\"\",AA11)","v":0.14633097165991904},{"$f":"IF(AA12=\"\",\"\",AA12)","v":""},{"$f":"IF(AA13=\"\",\"\",AA13)","v":""},{"$f":"IF(AA14=\"\",\"\",AA14)","v":""},{"$f":"IF(AA15=\"\",\"\",AA15)","v":""},{"$f":"IF(AA16=\"\",\"\",AA16)","v":""},{"$f":"IF(AA17=\"\",\"\",AA17)","v":""}]
[null,null,null,null,null,null,null,null,null,null,null,null,{"$f":"Entrada!C4","v":"Obra Pública Tradicional (OPT)"},"A1",{"$f":"F28","v":0.46632996632996632},{"$f":"T28","v":0.42052099946836785},{"$f":"AH28","v":0.2344322344322344},{"$f":"F34","v":0.29725829725829728},{"$f":"T34","v":6.4018218623481782E-2},{"$f":"AH34","v":0.10958605664488018},{"$f":"F40","v":0.73518966908797412},{"$f":"T40","v":0.16585588324718761},{"$f":"AH40","v":0.2341269841269841},{"$f":"F46","v":0.45555555555555555},{"$f":"IF(A7=2,MMULT(Matriz!$O$21:$P$21,TRANSPOSE(Matriz!O22:P22)),IF(A7=3,MMULT(Matriz!$O$21:$Q$21,TRANSPOSE(Matriz!O22:Q22)),IF(A7=4,MMULT(Matriz!$O$21:$R$21,TRANSPOSE(Matriz!O22:R22)),IF(A7=5,MMULT(Matriz!$O$21:$S$21,TRANSPOSE(Matriz!O22:S22)),IF(A7=6,MMULT(Matriz!$O$21:$T$21,TRANSPOSE(Matriz!O22:T22)),IF(A7=7,MMULT(Matriz!$O$21:$U$21,TRANSPOSE(Matriz!O22:U22)),IF(A7=8,MMULT(Matriz!$O$21:$V$21,TRANSPOSE(Matriz!O22:V22)),IF(A7=9,MMULT(Matriz!$O$21:$W$21,TRANSPOSE(Matriz!O22:W22)),MMULT(Matriz!$O$21:$X$21,TRANSPOSE(Matriz!O22:X22))))))))))","v":0.35984069337135072}]
[null,null,null,null,null,null,null,null,null,null,null,null,{"$f":"Entrada!C5","v":"OPT (Etapa de Construcción) + APP (Etapa de Operación y Mantenimiento)"},"A2",{"$f":"F29","v":0.10067340067340068},{"$f":"T29","v":7.0069112174375336E-2},{"$f":"AH29","v":0.68772893772893784},{"$f":"F35","v":0.53896103896103897},{"$f":"T35","v":0.49924089068825905},{"$f":"AH35","v":0.58126361655773418},{"$f":"F41","v":0.19941888619854722},{"$f":"T41","v":0.7643660687138949},{"$f":"AH41","v":0.57936507936507942},{"$f":"F47","v":0.45555555555555555},{"$f":"IF(A7=2,MMULT(Matriz!$O$21:$P$21,TRANSPOSE(Matriz!O23:P23)),IF(A7=3,MMULT(Matriz!$O$21:$Q$21,TRANSPOSE(Matriz!O23:Q23)),IF(A7=4,MMULT(Matriz!$O$21:$R$21,TRANSPOSE(Matriz!O23:R23)),IF(A7=5,MMULT(Matriz!$O$21:$S$21,TRANSPOSE(Matriz!O23:S23)),IF(A7=6,MMULT(Matriz!$O$21:$T$21,TRANSPOSE(Matriz!O23:T23)),IF(A7=7,MMULT(Matriz!$O$21:$U$21,TRANSPOSE(Matriz!O23:U23)),IF(A7=8,MMULT(Matriz!$O$21:$V$21,TRANSPOSE(Matriz!O23:V23)),IF(A7=9,MMULT(Matriz!$O$21:$W$21,TRANSPOSE(Matriz!O23:W23)),MMULT(Matriz!$O$21:$X$21,TRANSPOSE(Matriz!O23:X23))))))))))","v":0.32176730387729491}]
[null,null,null,null,null,null,null,null,null,null,null,null,{"$f":"IF(Entrada!C6=\"\",\"\",Entrada!C6)","v":"Asociación Pública-Privada (APP)"},"A3",{"$f":"IF(A2=2,\"\",F30)","v":0.43299663299663299},0.50940988835725676,7.783882783882784E-2,0.16378066378066378,0.43674089068825905,{"$f":"AH36","v":0.30915032679738563},{"$f":"F42","v":6.5391444713478616E-2},6.9778048038917601E-2,{"$f":"AH42","v":0.18650793650793651},8.8888888888888878E-2,{"$f":"IF(A7=2,MMULT(Matriz!$O$21:$P$21,TRANSPOSE(Matriz!O24:P24)),IF(A7=2,MMULT(Matriz!$O$21:$P$21,TRANSPOSE(Matriz!O24:P24)),IF(A7=3,MMULT(Matriz!$O$21:$Q$21,TRANSPOSE(Matriz!O24:Q24)),IF(A7=4,MMULT(Matriz!$O$21:$R$21,TRANSPOSE(Matriz!O24:R24)),IF(A7=5,MMULT(Matriz!$O$21:$S$21,TRANSPOSE(Matriz!O24:S24)),IF(A7=6,MMULT(Matriz!$O$21:$T$21,TRANSPOSE(Matriz!O24:T24)),IF(A7=7,MMULT(Matriz!$O$21:$U$21,TRANSPOSE(Matriz!O24:U24)),IF(A7=8,MMULT(Matriz!$O$21:$V$21,TRANSPOSE(Matriz!O24:V24)),IF(A7=9,MMULT(Matriz!$O$21:$W$21,TRANSPOSE(Matriz!O24:W24)),MMULT(Matriz!$O$21:$X$21,TRANSPOSE(Matriz!O24:X24)))))))))))","v":0.31839200275135443}]
[]
["CRITERIO 1",null,null,null,null,null,null,null,null,null,null,null,null,null,"CRITERIO 2",null,null,null,null,null,null,null,null,null,null,null,null,null,"CRITERIO 3"]
["Suma",{"$f":"IF(A2=2,SUM(B3:B4),SUM(B3:B5))","v":2.2000000000000002},{"$f":"IF(A2=2,SUM(C3:C4),SUM(C3:C5))","v":10},{"$f":"IF(A2=2,\"\",SUM(D3:D5))","v":2.25},null,"Promd","Sumpd",null,"Vmáx",{"$f":"IF(A2=2,AVERAGE(I28:I29),AVERAGE(I28:I30))","v":3.0055376412866237},null,"IDC",{"$f":"ABS(J27-A2)/(A2-1)","v":2.7688206433118534E-3},null,"Suma",{"$f":"IF($F$2=2,SUM(G3:G4),SUM(G3:G5))","v":2.2000000000000002},{"$f":"IF($F$2=2,SUM(H3:H4),SUM(H3:H5))","v":15},{"$f":"IF($F$2=2,\"\",SUM(I3:I5))","v":2.1111111111111112},null,"Promd","Sumpd",null,"Vmáx",{"$f":"IF(F2=2,AVERAGE(W28:W29),AVERAGE(W28:W30))","v":3.0386820029425494},null,"IDC",{"$f":"ABS(X27-F2)/(F2-1)","v":1.934100147127471E-2},null,"Suma",{"$f":"IF($K$2=2,SUM(L3:L4),SUM(L3:L5))","v":5.25},{"$f":"IF($K$2=2,SUM(M3:M4),SUM(M3:M5))","v":1.3928571428571428},{"$f":"IF($K$2=2,\"\",SUM(N3:N5))","v":12},null,"Promd","Sumpd",null,"Vmáx",{"$f":"IF(K2=2,AVERAGE(AK28:AK29),AVERAGE(AK28:AK30))","v":3.0774805882947387},null,"IDC",{"$f":"ABS(AL27-K2)/(K2-1)","v":3.8740294147369347E-2}]
["A1",{"$f":"B3/$B$27","v":0.45454545454545453},{"$f":"C3/$C$27","v":0.5},{"$f":"IF(A2=3,D3/$D$27,\"\")","v":0.44444444444444442},null,{"$f":"IF(A2=2,AVERAGE(B28:C28),AVERAGE(B28:D28))","v":0.46632996632996632},{"$f":"IF(A2=2,MMULT(B3:C3,$F$28:$F$29),MMULT(B3:D3,$F$28:$F$30))","v":1.4026936026936028},null,{"$f":"G28/F28","v":3.0079422382671481},null,null,"IA",{"$f":"IF(A2=2,0.001,0.58)","v":0.57999999999999996},null,"A1",{"$f":"G3/P27","v":0.45454545454545453},{"$f":"H3/$Q$27","v":0.33333333333333331},{"$f":"IF($F$2=3,I3/$R$27,\"\")","v":0.47368421052631576},null,{"$f":"IF($F$2=2,AVERAGE(P28:Q28),AVERAGE(P28:R28))","v":0.42052099946836785},{"$f":"IF($F$2=2,MMULT(G3:H3,$T$28:$T$29),MMULT(G3:I3,$T$28:$T$30))","v":1.2802764486975011},null,{"$f":"U28/T28","v":3.0445006321112515},null,null,"IA",{"$f":"IF(F2=2,0.001,0.58)","v":0.57999999999999996},null,"A1",{"$f":"L3/AD27","v":0.19047619047619047},{"$f":"M3/$AE$27","v":0.17948717948717949},{"$f":"IF($K$2=3,N3/$AF$27,\"\")","v":0.33333333333333331},null,{"$f":"IF($F$2=2,AVERAGE(AD28:AE28),AVERAGE(AD28:AF28))","v":0.2344322344322344},{"$f":"IF($K$2=2,MMULT(L3:M3,$AH$28:$AH$29),MMULT(L3:N3,$AH$28:$AH$30))","v":0.71771978021978022},null,{"$f":"AI28/AH28","v":3.0615234375000004},null,null,"IA",{"$f":"IF(K2=2,0.001,0.58)","v":0.57999999999999996}]
["A2",{"$f":"B4/$B$27","v":9.0909090909090912E-2},{"$f":"C4/$C$27","v":0.1},{"$f":"IF(A2=3,D4/$D$27,\"\")","v":0.1111111111111111},null,{"$f":"IF(A3=2,AVERAGE(B29:C29),AVERAGE(B29:D29))","v":0.10067340067340068},{"$f":"IF(A2=2,MMULT(B4:C4,$F$28:$F$29),MMULT(B4:D4,$F$28:$F$30))","v":0.30218855218855223},null,{"$f":"G29/F29","v":3.0016722408026757},null,null,"VDC",{"$f":"M27/M28","v":4.7738286953652644E-3},null,"A2",{"$f":"G4/$P$27","v":9.0909090909090912E-2},{"$f":"H4/$Q$27","v":6.6666666666666666E-2},{"$f":"IF($F$2=3,I4/$R$27,\"\")","v":5.2631578947368418E-2},null,{"$f":"IF($F$2=2,AVERAGE(P29:Q29),AVERAGE(P29:R29))","v":7.0069112174375336E-2},{"$f":"IF($F$2=2,MMULT(G4:H4,$T$28:$T$29),MMULT(G4:I4,$T$28:$T$30))","v":0.21077441077441078},null,{"$f":"U29/T29","v":3.008093070308548},null,null,"VDC",{"$f":"AA27/AA28","v":3.3346554260818471E-2},null,"A2",{"$f":"L4/$AD$27","v":0.76190476190476186},{"$f":"M4/$AE$27","v":0.71794871794871795},{"$f":"IF($K$2=3,N4/$AF$27,\"\")","v":0.58333333333333337},null,{"$f":"IF($F$2=2,AVERAGE(AD29:AE29),AVERAGE(AD29:AF29))","v":0.68772893772893784},{"$f":"IF($K$2=2,MMULT(L4:M4,$AH$28:$AH$29),MMULT(L4:N4,$AH$28:$AH$30))","v":2.1703296703296706},null,{"$f":"AI29/AH29","v":3.1557922769640476},null,null,"VDC",{"$f":"AO27/AO28","v":6.6793610598912673E-2}]
["A3",{"$f":"IF(A2=2,\"\",B5/$B$27)","v":0.45454545454545453},{"$f":"IF(A2=2,\"\",C5/$C$27)","v":0.4},{"$f":"IF(A2=3,D5/$D$27,\"\")","v":0.44444444444444442},null,{"$f":"IF(A2=2,\"\",AVERAGE(B30:D30))","v":0.43299663299663299},{"$f":"IF(A2=2,\"\",MMULT(B5:D5,$F$28:$F$30))","v":1.3020202020202021},null,{"$f":"IF(A2=2,\"\",G30/F30)","v":3.0069984447900469},null,null,null,null,null,"A3",{"$f":"IF(F2=2,\"\",G5/$P$27)","v":0.45454545454545453},{"$f":"IF(F2=2,\"\",H5/$Q$27)","v":0.6},{"$f":"IF($F$2=3,I5/$R$27,\"\")","v":0.47368421052631576},null,{"$f":"IF($F$2=2,\"\",AVERAGE(P30:R30))","v":0.50940988835725676},{"$f":"IF($F$2=2,\"\",MMULT(G5:I5,$T$28:$T$30))","v":1.5605528973950027},null,{"$f":"IF(F2=2,\"\",U30/T30)","v":3.0634523064078483},null,null,null,null,null,"A3",{"$f":"IF(K2=2,\"\",L5/$AD$27)","v":4.7619047619047616E-2},{"$f":"IF(K2=2,\"\",M5/$AE$27)","v":0.10256410256410256},{"$f":"IF($K$2=3,N5/$AF$27,\"\")","v":8.3333333333333329E-2},null,{"$f":"IF($F$2=2,\"\",AVERAGE(AD30:AF30))","v":7.783882783882784E-2},{"$f":"IF($K$2=2,\"\",MMULT(L5:N5,$AH$28:$AH$30))","v":0.23469387755102042},null,{"$f":"IF(K2=2,\"\",AI30/AH30)","v":3.015126050420168}]
[]
["CRITERIO 4",null,null,null,null,null,null,null,null,null,null,null,null,null,"CRITERIO 5",null,null,null,null,null,null,null,null,null,null,null,null,null,"CRITERIO 6"]
["Suma",{"$f":"IF($P$2=2,SUM(Q3:Q4),SUM(Q3:Q5))","v":3.5},{"$f":"IF($P$2=2,SUM(R3:R4),SUM(R3:R5))","v":1.8333333333333333},{"$f":"IF($P$2=2,\"\",SUM(S3:S5))","v":6},null,"Promd","Sumpd",null,"Vmáx",{"$f":"IF(P2=2,AVERAGE(I34:I35),AVERAGE(I34:I36))","v":3.0092086669723721},null,"IDC",{"$f":"ABS(J33-P2)/(P2-1)","v":4.6043334861860519E-3},null,"Suma",{"$f":"IF($U$2=2,SUM(V3:V4),SUM(V3:V5))","v":16},{"$f":"IF($U$2=2,SUM(W3:W4),SUM(W3:W5))","v":2.1111111111111112},{"$f":"IF($U$2=2,\"\",SUM(X3:X5))","v":2.166666666666667},null,"Promd","Sumpd",null,"Vmáx",{"$f":"IF(U2=2,AVERAGE(W34:W35),AVERAGE(W34:W36))","v":3.0183330022595061},null,"IDC",{"$f":"ABS(X33-U2)/(U2-1)","v":9.1665011297530352E-3},null,"Suma",{"$f":"IF($Z$2=2,SUM(AA3:AA4),SUM(AA3:AA5))","v":9},{"$f":"IF($Z$2=2,SUM(AB3:AB4),SUM(AB3:AB5))","v":1.7},{"$f":"IF($Z$2=2,\"\",SUM(AC3:AC5))","v":3.3333333333333335},null,"Promd","Sumpd",null,"Vmáx",{"$f":"IF(Z2=2,AVERAGE(AK34:AK35),AVERAGE(AK34:AK36))","v":3.0036960884033568},null,"IDC",{"$f":"ABS(AL33-Z2)/(Z2-1)","v":1.8480442016783893E-3}]
["A1",{"$f":"Q3/B33","v":0.2857142857142857},{"$f":"R3/C33","v":0.27272727272727276},{"$f":"IF(P2=3,S3/$D$33,\"\")","v":0.33333333333333331},null,{"$f":"IF($P$2=2,AVERAGE(B34:C34),AVERAGE(B34:D34))","v":0.29725829725829728},{"$f":"IF($P$2=2,MMULT(Q3:R3,$F$34:$F$35),MMULT(Q3:S3,$F$34:$F$36))","v":0.89430014430014437},null,{"$f":"G34/F34","v":3.008495145631068},null,null,"IA",{"$f":"IF(P2=2,0.001,0.58)","v":0.57999999999999996},null,"A1",{"$f":"V3/P33","v":6.25E-2},{"$f":"W3/$Q$33","v":5.2631578947368418E-2},{"$f":"IF($U$2=3,X3/$R$33,\"\")","v":7.6923076923076913E-2},null,{"$f":"IF($U$2=2,AVERAGE(P34:Q34),AVERAGE(P34:R34))","v":6.4018218623481782E-2},{"$f":"IF($U$2=2,MMULT(V3:W3,$T$34:$T$35),MMULT(V3:X3,$T$34:$T$36))","v":0.19227957714799818},null,{"$f":"U34/T34","v":3.0035133948177424},null,null,"IA",{"$f":"IF(U2=2,0.001,0.58)","v":0.57999999999999996},null,"A1",{"$f":"AA3/AD33","v":0.1111111111111111},{"$f":"AB3/$AE$33","v":0.11764705882352942},{"$f":"IF($Z$2=3,AC3/$AF$33,\"\")","v":9.9999999999999992E-2},null,{"$f":"IF($Z$2=2,AVERAGE(AD34:AE34),AVERAGE(AD34:AF34))","v":0.10958605664488018},{"$f":"IF($Z$2=2,MMULT(AA3:AB3,$AH$34:$AH$35),MMULT(AA3:AC3,$AH$34:$AH$36))","v":0.3288888888888889},null,{"$f":"AI34/AH34","v":3.0011928429423458},null,null,"IA",{"$f":"IF(Z2=2,0.001,0.58)","v":0.57999999999999996}]
["A2",{"$f":"Q4/$B$33","v":0.5714285714285714},{"$f":"R4/C33","v":0.54545454545454553},{"$f":"IF(P2=3,S4/$D$33,\"\")","v":0.5},null,{"$f":"IF($P$2=2,AVERAGE(B35:C35),AVERAGE(B35:D35))","v":0.53896103896103897},{"$f":"IF($P$2=2,MMULT(Q4:R4,$F$34:$F$35),MMULT(Q4:S4,$F$34:$F$36))","v":1.6248196248196249},null,{"$f":"G35/F35","v":3.0147255689424366},null,null,"VDC",{"$f":"M33/M34","v":7.938506010665607E-3},null,"A2",{"$f":"V4/P33","v":0.5625},{"$f":"W4/$Q$33","v":0.47368421052631576},{"$f":"IF($U$2=3,X4/$R$33,\"\")","v":0.46153846153846145},null,{"$f":"IF($U$2=2,AVERAGE(P35:Q35),AVERAGE(P35:R35))","v":0.49924089068825905},{"$f":"IF($U$2=2,MMULT(V4:W4,$T$34:$T$35),MMULT(V4:X4,$T$34:$T$36))","v":1.5121457489878543},null,{"$f":"U35/T35","v":3.0288900152052713},null,null,"VDC",{"$f":"AA33/AA34","v":1.5804312292677647E-2},null,"A2",{"$f":"AA4/$AD$33","v":0.55555555555555558},{"$f":"AB4/$AE$33","v":0.58823529411764708},{"$f":"IF($Z$2=3,AC4/$AF$33,\"\")","v":0.6},null,{"$f":"IF($Z$2=2,AVERAGE(AD35:AE35),AVERAGE(AD35:AF35))","v":0.58126361655773418},{"$f":"IF($Z$2=2,MMULT(AA4:AB4,$AH$34:$AH$35),MMULT(AA4:AC4,$AH$34:$AH$36))","v":1.7474945533769062},null,{"$f":"AI35/AH35","v":3.0063718140929536},null,null,"VDC",{"$f":"AO33/AO34","v":3.1862831063420509E-3}]
["A3",{"$f":"IF($P$2=2,\"\",Q5/B33)","v":0.14285714285714285},{"$f":"IF($P$2=2,\"\",R5/C33)","v":0.18181818181818182},{"$f":"IF(P2=3,S5/$D$33,\"\")","v":0.16666666666666666},null,{"$f":"IF($P$2=2,\"\",AVERAGE(B36:D36))","v":0.16378066378066378},{"$f":"IF($P$2=2,\"\",MMULT(Q5:S5,$F$34:$F$36))","v":0.49206349206349209},null,{"$f":"IF(P2=2,\"\",G36/F36)","v":3.0044052863436126},null,null,null,null,null,"A3",{"$f":"IF(U2=2,\"\",V5/P33)","v":0.375},{"$f":"IF(U2=2,\"\",W5/Q33)","v":0.47368421052631576},{"$f":"IF($U$2=3,X5/$R$33,\"\")","v":0.46153846153846145},null,{"$f":"IF($U$2=2,\"\",AVERAGE(P36:R36))","v":0.43674089068825905},{"$f":"IF($U$2=2,\"\",MMULT(V5:X5,$T$34:$T$36))","v":1.3200910931174088},null,{"$f":"IF(U2=2,\"\",U36/T36)","v":3.022595596755504},null,null,null,null,null,"A3",{"$f":"IF($Z$2=2,\"\",AA5/AD33)","v":0.33333333333333331},{"$f":"IF($Z$2=2,\"\",AB5/AE33)","v":0.29411764705882354},{"$f":"IF($Z$2=3,AC5/$AF$33,\"\")","v":0.3},null,{"$f":"IF($Z$2=2,\"\",AVERAGE(AD36:AF36))","v":0.30915032679738563},{"$f":"IF($Z$2=2,\"\",MMULT(AA5:AC5,$AH$34:$AH$36))","v":0.92854030501089324},null,{"$f":"IF(Z2=2,\"\",AI36/AH36)","v":3.0035236081747709}]
[]
["CRITERIO 7",null,null,null,null,null,null,null,null,null,null,null,null,null,"CRITERIO 8",null,null,null,null,null,null,null,null,null,null,null,null,null,"CRITERIO 9"]
["Suma",{"$f":"IF($AE$2=2,SUM(AF3:AF4),SUM(AF3:AF5))","v":1.3111111111111111},{"$f":"IF($AE$2=2,SUM(AG3:AG4),SUM(AG3:AG5))","v":6.25},{"$f":"IF($AE$2=2,\"\",SUM(AH3:AH5))","v":14},null,"Promd","Sumpd",null,"Vmáx",{"$f":"IF(AE2=2,AVERAGE(I40:I41),AVERAGE(I40:I42))","v":3.0724446185946537},null,"IDC",{"$f":"ABS(J39-AE2)/(AE2-1)","v":3.6222309297326838E-2},null,"Suma",{"$f":"IF($AJ$2=2,SUM(AK3:AK4),SUM(AK3:AK5))","v":7.333333333333333},{"$f":"IF($AJ$2=2,SUM(AL3:AL4),SUM(AL3:AL5))","v":1.2777777777777779},{"$f":"IF($AJ$2=2,\"\",SUM(AM3:AM5))","v":13},null,"Promd","Sumpd",null,"Vmáx",{"$f":"IF(AJ2=2,AVERAGE(W40:W41),AVERAGE(W40:W42))","v":3.0543988819870194},null,"IDC",{"$f":"ABS(X39-AJ2)/(AJ2-1)","v":2.7199440993509683E-2},null,"Suma",{"$f":"IF($AO$2=2,SUM(AP3:AP4),SUM(AP3:AP5))","v":4},{"$f":"IF($AO$2=2,SUM(AQ3:AQ4),SUM(AQ3:AQ5))","v":1.75},{"$f":"IF($AO$2=2,\"\",SUM(AR3:AR5))","v":6},null,"Promd","Sumpd",null,"Vmáx",{"$f":"IF(AO2=2,AVERAGE(AK40:AK41),AVERAGE(AK40:AK42))","v":3.053901203220224},null,"IDC",{"$f":"ABS(AL39-AO2)/(AO2-1)","v":2.6950601610111979E-2}]
["A1",{"$f":"AF3/$B$39","v":0.76271186440677963},{"$f":"AG3/$C$39","v":0.8},{"$f":"IF(AE2=3,AH3/$D$39,\"\")","v":0.6428571428571429},null,{"$f":"IF($AE$2=2,AVERAGE(B40:C40),AVERAGE(B40:D40))","v":0.73518966908797412},{"$f":"IF($AE$2=2,MMULT(AF3:AG3,$F$40:$F$41),MMULT(AF3:AH3,$F$40:$F$42))","v":2.3208071025020178},null,{"$f":"G40/F40","v":3.1567460753101333},null,null,"IA",{"$f":"IF(AE2=2,0.001,0.58)","v":0.57999999999999996},null,"A1",{"$f":"AK3/$P$39","v":0.13636363636363638},{"$f":"AL3/$Q$39","v":0.13043478260869562},{"$f":"IF($AJ$2=3,AM3/$R$39,\"\")","v":0.23076923076923078},null,{"$f":"IF(AJ2=2,AVERAGE(P40:Q40),AVERAGE(P40:R40))","v":0.16585588324718761},{"$f":"IF($AJ$2=2,MMULT(AK3:AL3,$T$40:$T$41),MMULT(AK3:AM3,$T$40:$T$42))","v":0.50258437214958951},null,{"$f":"U40/T40","v":3.030247479376718},null,null,"IA",{"$f":"IF(AJ2=2,0.001,0.58)","v":0.57999999999999996},null,"A1",{"$f":"AP3/$AD$39","v":0.25},{"$f":"AQ3/$AE$39","v":0.2857142857142857},{"$f":"IF($AO$2=2,\"\",AR3/$AF$39)","v":0.16666666666666666},null,{"$f":"IF($AO$2=2,AVERAGE(AD40:AE40),AVERAGE(AD40:AF40))","v":0.2341269841269841},{"$f":"IF($AO$2=2,MMULT(AP3:AQ3,$AH$40:$AH$41),MMULT(AP3:AR3,$AH$40:$AH$42))","v":0.71031746031746035},null,{"$f":"AI40/AH40","v":3.0338983050847461},null,null,"IA",{"$f":"IF(AO2=2,0.001,0.58)","v":0.57999999999999996}]
["A2",{"$f":"AF4/$B$39","v":0.15254237288135594},{"$f":"AG4/$C$39","v":0.16},{"$f":"IF(AE2=3,AH4/$D$39,\"\")","v":0.2857142857142857},null,{"$f":"IF($AE$2=2,AVERAGE(B41:C41),AVERAGE(B41:D41))","v":0.19941888619854722},{"$f":"IF($AE$2=2,MMULT(AF4:AG4,$F$40:$F$41),MMULT(AF4:AH4,$F$40:$F$42))","v":0.6080225988700565},null,{"$f":"G41/F41","v":3.0489719928768011},null,null,"VDC",{"$f":"M39/M40","v":6.2452257409184204E-2},null,"A2",{"$f":"AK4/$P$39","v":0.81818181818181823},{"$f":"AL4/$Q$39","v":0.78260869565217384},{"$f":"IF($AJ$2=3,AM4/$R$39,\"\")","v":0.69230769230769229},null,{"$f":"IF(AJ3=2,AVERAGE(P41:Q41),AVERAGE(P41:R41))","v":0.7643660687138949},{"$f":"IF($AJ$2=2,MMULT(AK4:AL4,$T$40:$T$41),MMULT(AK4:AM4,$T$40:$T$42))","v":2.3875038005472788},null,{"$f":"U41/T41","v":3.1235083532219567},null,null,"VDC",{"$f":"AA39/AA40","v":4.6895587919844287E-2},null,"A2",{"$f":"AP4/$AD$39","v":0.5},{"$f":"AQ4/$AE$39","v":0.5714285714285714},{"$f":"IF($AO$2=2,\"\",AR4/$AF$39)","v":0.66666666666666663},null,{"$f":"IF($AO$2=2,AVERAGE(AD41:AE41),AVERAGE(AD41:AF41))","v":0.57936507936507942},{"$f":"IF($AO$2=2,MMULT(AP4:AQ4,$AH$40:$AH$41),MMULT(AP4:AR4,$AH$40:$AH$42))","v":1.7936507936507937},null,{"$f":"AI41/AH41","v":3.095890410958904},null,null,"VDC",{"$f":"AO39/AO40","v":4.6466554500193068E-2}]
["A3",{"$f":"IF(AE2=2,\"\",AF5/$B$39)","v":8.4745762711864403E-2},{"$f":"IF(AE2=2,\"\",AG5/$C$39)","v":0.04},{"$f":"IF(AE2=3,AH5/$D$39,\"\")","v":7.1428571428571425E-2},null,{"$f":"IF($AE$2=2,\"\",AVERAGE(B42:D42))","v":6.5391444713478616E-2},{"$f":"IF($AE$2=2,\"\",MMULT(AF5:AH5,$F$40:$F$42))","v":0.19693390727289034},null,{"$f":"IF(AE2=2,\"\",G42/F42)","v":3.0116157875970266},null,null,null,null,null,"A3",{"$f":"IF(AJ2=2,\"\",AK5/$P$39)","v":4.5454545454545456E-2},{"$f":"IF(AJ2=2,\"\",AL5/$Q$39)","v":8.6956521739130418E-2},{"$f":"IF($AJ$2=3,AM5/$R$39,\"\")","v":7.6923076923076927E-2},null,{"$f":"IF(AJ2=2,\"\",AVERAGE(P42:R42))","v":6.9778048038917601E-2},{"$f":"IF($AJ$2=2,\"\",MMULT(AK5:AM5,$T$40:$T$42))","v":0.20999290564507958},null,{"$f":"IF(AJ2=2,\"\",U42/T42)","v":3.0094408133623824},null,null,null,null,null,"A3",{"$f":"IF(AO2=2,\"\",AP5/$AD$39)","v":0.25},{"$f":"IF(AO2=2,\"\",AQ5/$AE$39)","v":0.14285714285714285},{"$f":"IF($AO$2=2,\"\",AR5/$AF$39)","v":0.16666666666666666},null,{"$f":"IF($AO$2=2,\"\",AVERAGE(AD42:AF42))","v":0.18650793650793651},{"$f":"IF($AO$2=2,\"\",MMULT(AP5:AR5,$AH$40:$AH$42))","v":0.56547619047619047},null,{"$f":"IF(AO2=2,\"\",AI42/AH42)","v":3.0319148936170213}]
[]
["CRITERIO 10"]
["Suma",{"$f":"IF($AT$2=2,SUM(AU3:AU4),SUM(AU3:AU5))","v":2.25},{"$f":"IF($AT$2=2,SUM(AV3:AV4),SUM(AV3:AV5))","v":2.1428571428571428},{"$f":"IF($AT$2=2,\"\",SUM(AW3:AW5))","v":12},null,"Promd","Sumpd",null,"Vmáx",{"$f":"IF(AE8=2,AVERAGE(I46:I47),AVERAGE(I46:I48))","v":3.0532447735191632},null,"IDC",{"$f":"ABS(J45-AT2)/(AT2-1)","v":2.6622386759581618E-2}]
["A1",{"$f":"AU3/$B$45","v":0.44444444444444442},{"$f":"AV3/$C$45","v":0.46666666666666667},{"$f":"IF(AE8=3,AH9/$D$39,\"\")","v":""},null,{"$f":"IF($AT$2=2,AVERAGE(B46:C46),AVERAGE(B46:D46))","v":0.45555555555555555},{"$f":"IF($AT$2=2,MMULT(AU3:AV3,$F$46:$F$47),MMULT(AU3:AW3,$F$46:$F$48))","v":1.2666666666666666},null,{"$f":"G46/F46","v":2.7804878048780486},null,null,"IA",{"$f":"IF(AT2=2,0.001,0.58)","v":0.57999999999999996}]
["A2",{"$f":"AU4/$B$45","v":0.44444444444444442},{"$f":"AV4/$C$45","v":0.46666666666666667},{"$f":"IF(AE9=3,AH10/$D$39,\"\")","v":""},null,{"$f":"IF($AT$2=2,AVERAGE(B47:C47),AVERAGE(B47:D47))","v":0.45555555555555555},{"$f":"IF($AT$2=2,MMULT(AU4:AV4,$F$46:$F$47),MMULT(AU4:AW4,$F$46:$F$48))","v":1.5333333333333332},null,{"$f":"G47/F47","v":3.3658536585365852},null,null,"VDC",{"$f":"M45/M46","v":4.5900666826864861E-2}]
["A3",{"$f":"IF(AT2=2,\"\",AU5/$B$45)","v":0.1111111111111111},{"$f":"IF(AT2=2,\"\",AV5/$C$45)","v":6.6666666666666666E-2},{"$f":"IF(AE10=3,AH11/$D$39,\"\")","v":""},null,{"$f":"IF($AT$2=2,\"\",AVERAGE(B48:D48))","v":8.8888888888888878E-2},{"$f":"IF($AT$2=2,\"\",MMULT(AU5:AW5,$F$46:$F$48))","v":0.26785714285714279},null,{"$f":"IF(AT2=2,\"\",G48/F48)","v":3.0133928571428568}]
[]
[]
[]
[]
[]
[]
[]
[]
[]
[]
[]
[]
[]
[]
[]
[]
[]
[]
[]
[]
[]
[]
[]
[]
[]
[]
[]
[]
[]
[]
[]
[]
[]
[]
[]
[]
[]
[]
[]
[]
[]
[]
[]
[]
[]
[]
[]
[]
[]
[]
[]
[]
[]
[null,2]